{"text_format":"1","workbook":"xlsx","n_sheets":2,"sheets":["Introduction","Example_Data"],"not_rendered":{"charts":0,"images":1,"macros":1,"external_links":0,"defined_names":0,"comments":0,"pivot_tables":0},"unopened":[],"bounds":{"document_bytes":16777216,"sheet_cells":100000,"rows_first":2000,"rows_last":500,"rows_between":2000,"halvings":0,"cell_chars":16384,"cell_head_chars":4096},"cells_cut":0,"cells_raw":0,"read":"whole","date_system":"1900"}

{"sheet":"Introduction","index":0,"n_rows":42,"n_cols":15,"rows_kept":42,"cut":false,"hidden":false,"merged":[]}
[]
[]
[]
["This workbook contains VBA programs written to assist in creating hydrographs from water-level data from NWIS and other sources.  "]
["The programs will ONLY run on properly formatted data in specified locations on the data worksheet (see below).  To ensure proper formatting"]
["of the data, it is recommended that users run the \"combine_format_datasets\" macro in the Well_Analyses.xlsm workbook on their dataset first."]
["See Techniques and Methods report xx-xxx for complete details."]
[]
["There are two macros visible to the user in this workbook:"]
[null,"makeExcelHydrographs()"]
[null,"makePDFfromChart"]
[]
["makeExcelHydrographs() produces hydrographs from water-level data on a worksheet.  The location of data in the data worksheet is critical for the code to run properly (see below)."]
["Hydrographs are created for each site identification number in the datasheet.  Options are provide for specifying the minimum and maximum values for both date and observation"]
["axes (useful for producing consistent hydrographs for comparison), or allowing the axes to span the time period and water-level observations in the dataset of each site id."]
["The program will open a new workbook for every 50 hydrographs, all of which are linked back to the original data worksheet.  In each workbook a worksheet titled \"SolidLineData\""]
["is created to assist in properly noting observations that are greater that one year apart with a dashed line."]
[]
["makePDFfromChart() produces portable document format (PDF) versions of each chart in the workbook using the Microsoft® Save as PDF Add-in for 2007 Microsoft® Office programs."]
["This free add-in must be installed on your computer for this code to work.  To obtain the add-in, visit:",null,null,null,null,null,null,"http://www.microsoft.com/downloads"]
["and search for \"Microsoft Save as PDF or XPS\". The user is prompted for the location to save the pdf hydrographs, then a pdf version of the hydrograph is created for each chart in the workbook."]
["The \"PATH\" in the Hydrograph column of the xyz worksheet created using the Well_analyses.xlsm tools can be replaced with this path to the hydrographs (using the search and replace tools in"]
["Excel or ArcGIS).  This will allow hyperlinking between the well location and the pdf hydrograph in ArcGIS."]
[]
[]
["Data Requirements"]
["All data on the data worksheet must begin on row 22 and must have at a minimum the site identification number, the latitude and longitude of the well, the water-level"]
["observation, and the date of the water-level observation, all in the columns shown in the table below.  The table below also lists other useful information, with the "]
["required data highlighted in RED and data used in the hydrograph header highlighted in orange.  If data are not available for certain fields, then leave the cells empty."]
["Note that Column H may also contain water-level altitude instead of depth to water.  If this is the case, the check box beside \"Water-Level Altitude\" on the second input "]
["window should be checked.  This will allow the chart axis to be adjusted accordingly."]
[]
["Column A","Column B","Column C","Column D","Column E","Column F","Column G","Column H","Column I","Column J","Column K","Column L","Column M","Column N"]
["Source agency code","Site ID (station number)","Local well number","Latitude","Longitude","Lat/Long Datum","Water-level measurement date","Water-level below LSD","Water-level status","Altitude of land surface","Altitude datum","Primary use of water","Hole depth","Well depth"]
["C004","C001","C012","C909","C910","C036","C235","C237","C238","C016","C022","C024","C027","C028"]
["USGS",312544111212401,"D-23-10 18ACA",31.42898229,-111.35732114,"NAD83","yyyymmdd",260,"P",3150,"NGVD29","U",358,320,"<--ROW 22"]
[null,"no blanks, sorted by",null,"no blanks","no blanks",null,"yyyymm"]
[null,"site ID, then by water-level observation date.",null,null,null,null,"or any Excel-recognizable date format","Column H may also contain Water-Level Altitude"]
[null,"data required",null,null,null,null,"Due to limitations","no blanks"]
[null,"data not required, but used in hydrograph header",null,null,null,null,"in Excel, only dates"]
[null,null,null,null,null,null,"after 1/1/1900"]
[null,null,null,null,null,null,"are allowed."]

{"sheet":"Example_Data","index":1,"n_rows":1166,"n_cols":101,"rows_kept":562,"cut":true,"hidden":false,"merged":[],"bounds":{"rows_first":250,"rows_last":62,"rows_between":250,"halvings":3}}
["RDB file created by NWIS gwtable program"]
[""]
["FIELD   CODE   DESCRIPTION"]
[""]
["1   C004   Source agency code                                "]
["2   C001   Site ID (station number)                          "]
["3   C012   Local well number                                 "]
["4   C909   Latitude NAD83 in decimal degrees                 "]
["5   C910   Longitude NAD83 in decimal degrees                "]
["6   C036  Lat/Long datum"]
["7   C235   Water-level measurement date                      "]
["8   C237   Water-level below LSD                             "]
["9   C238   Water-level status                                "]
["10   C016   Altitude of land surface                          "]
["11   C022   Altitude Datum                                    "]
["12   C024   Primary use of water                              "]
["13   C027   Hole depth                                        "]
["14   C028   Well depth                                        "]
[""]
[]
["C004","C001","C012","C909","C910","C036","C235","C237","C238","C016","C022","C024","C027","C028"]
["USGS",330338112200201,"C-04-01 23CDB",33.060555555555553,-112.33388888888888,"NAD27","1979-01-31",467.1,"S",1345,"NGVD29","U",610,610,null,{"$f":"1347-H22","v":879.9},null,null,null,null,null,null,null,null,null,null,null,null,null,null,null,null,null,null,null,null,null,null,null,null,null,null,null,null,null,null,null,null,null,null,null,null,null,null,null,null,null,null,null,null,null,null,null,null,null,null,null,null,null,null,null,null,null,null,null,null,null,null,null,null,null,null,null,null,null,null,null,null,null,null,null,null,null,null,null,null,null,null,null,null,1]
["USGS",330338112200201,"C-04-01 23CDB",33.060555555555553,-112.33388888888888,"NAD27","1984-07-19",477.1,null,1345,"NGVD29","U",610,610,null,{"$f":"1347-H23","v":869.9},null,null,null,null,null,null,null,null,null,null,null,null,null,null,null,null,null,null,null,null,null,null,null,null,null,null,null,null,null,null,null,null,null,null,null,null,null,null,null,null,null,null,null,null,null,null,null,null,null,null,null,null,null,null,null,null,null,null,null,null,null,null,null,null,null,null,null,null,null,null,null,null,null,null,null,null,null,null,null,null,null,null,null,null,1]
["USGS",330338112200201,"C-04-01 23CDB",33.060555555555553,-112.33388888888888,"NAD27","1984-10-22",477.4,null,1345,"NGVD29","U",610,610,null,869.6,null,null,null,null,null,null,null,null,null,null,null,null,null,null,null,null,null,null,null,null,null,null,null,null,null,null,null,null,null,null,null,null,null,null,null,null,null,null,null,null,null,null,null,null,null,null,null,null,null,null,null,null,null,null,null,null,null,null,null,null,null,null,null,null,null,null,null,null,null,null,null,null,null,null,null,null,null,null,null,null,null,null,null,null,1]
["USGS",330338112200201,"C-04-01 23CDB",33.060555555555553,-112.33388888888888,"NAD27","1985-01-07",477.79999999999995,null,1345,"NGVD29","U",610,610,null,869.2,null,null,null,null,null,null,null,null,null,null,null,null,null,null,null,null,null,null,null,null,null,null,null,null,null,null,null,null,null,null,null,null,null,null,null,null,null,null,null,null,null,null,null,null,null,null,null,null,null,null,null,null,null,null,null,null,null,null,null,null,null,null,null,null,null,null,null,null,null,null,null,null,null,null,null,null,null,null,null,null,null,null,null,null,1]
["USGS",330338112200201,"C-04-01 23CDB",33.060555555555553,-112.33388888888888,"NAD27","1985-03-05",478,null,1345,"NGVD29","U",610,610,null,869,null,null,null,null,null,null,null,null,null,null,null,null,null,null,null,null,null,null,null,null,null,null,null,null,null,null,null,null,null,null,null,null,null,null,null,null,null,null,null,null,null,null,null,null,null,null,null,null,null,null,null,null,null,null,null,null,null,null,null,null,null,null,null,null,null,null,null,null,null,null,null,null,null,null,null,null,null,null,null,null,null,null,null,null,1]
["USGS",330338112200201,"C-04-01 23CDB",33.060555555555553,-112.33388888888888,"NAD27","1985-06-05",478.6,null,1345,"NGVD29","U",610,610,null,868.4,null,null,null,null,null,null,null,null,null,null,null,null,null,null,null,null,null,null,null,null,null,null,null,null,null,null,null,null,null,null,null,null,null,null,null,null,null,null,null,null,null,null,null,null,null,null,null,null,null,null,null,null,null,null,null,null,null,null,null,null,null,null,null,null,null,null,null,null,null,null,null,null,null,null,null,null,null,null,null,null,null,null,null,null,1]
["USGS",330338112200201,"C-04-01 23CDB",33.060555555555553,-112.33388888888888,"NAD27","1985-09-10",478.79999999999995,null,1345,"NGVD29","U",610,610,null,868.2,null,null,null,null,null,null,null,null,null,null,null,null,null,null,null,null,null,null,null,null,null,null,null,null,null,null,null,null,null,null,null,null,null,null,null,null,null,null,null,null,null,null,null,null,null,null,null,null,null,null,null,null,null,null,null,null,null,null,null,null,null,null,null,null,null,null,null,null,null,null,null,null,null,null,null,null,null,null,null,null,null,null,null,null,1]
["USGS",330338112200201,"C-04-01 23CDB",33.060555555555553,-112.33388888888888,"NAD27","1985-12-04",479.18000000000006,null,1345,"NGVD29","U",610,610,null,867.81999999999994,null,null,null,null,null,null,null,null,null,null,null,null,null,null,null,null,null,null,null,null,null,null,null,null,null,null,null,null,null,null,null,null,null,null,null,null,null,null,null,null,null,null,null,null,null,null,null,null,null,null,null,null,null,null,null,null,null,null,null,null,null,null,null,null,null,null,null,null,null,null,null,null,null,null,null,null,null,null,null,null,null,null,null,null,1]
["USGS",330338112200201,"C-04-01 23CDB",33.060555555555553,-112.33388888888888,"NAD27","1986-03-10",479.6,null,1345,"NGVD29","U",610,610,null,867.4,null,null,null,null,null,null,null,null,null,null,null,null,null,null,null,null,null,null,null,null,null,null,null,null,null,null,null,null,null,null,null,null,null,null,null,null,null,null,null,null,null,null,null,null,null,null,null,null,null,null,null,null,null,null,null,null,null,null,null,null,null,null,null,null,null,null,null,null,null,null,null,null,null,null,null,null,null,null,null,null,null,null,null,null,1]
["USGS",330338112200201,"C-04-01 23CDB",33.060555555555553,-112.33388888888888,"NAD27","1986-05-29",480.1,null,1345,"NGVD29","U",610,610,null,866.9,null,null,null,null,null,null,null,null,null,null,null,null,null,null,null,null,null,null,null,null,null,null,null,null,null,null,null,null,null,null,null,null,null,null,null,null,null,null,null,null,null,null,null,null,null,null,null,null,null,null,null,null,null,null,null,null,null,null,null,null,null,null,null,null,null,null,null,null,null,null,null,null,null,null,null,null,null,null,null,null,null,null,null,null,1]
["USGS",330338112200201,"C-04-01 23CDB",33.060555555555553,-112.33388888888888,"NAD27","1986-09-04",479.79999999999995,null,1345,"NGVD29","U",610,610,null,867.2,null,null,null,null,null,null,null,null,null,null,null,null,null,null,null,null,null,null,null,null,null,null,null,null,null,null,null,null,null,null,null,null,null,null,null,null,null,null,null,null,null,null,null,null,null,null,null,null,null,null,null,null,null,null,null,null,null,null,null,null,null,null,null,null,null,null,null,null,null,null,null,null,null,null,null,null,null,null,null,null,null,null,null,null,1]
["USGS",330338112200201,"C-04-01 23CDB",33.060555555555553,-112.33388888888888,"NAD27","1986-09-12",479.70000000000005,null,1345,"NGVD29","U",610,610,null,867.3,null,null,null,null,null,null,null,null,null,null,null,null,null,null,null,null,null,null,null,null,null,null,null,null,null,null,null,null,null,null,null,null,null,null,null,null,null,null,null,null,null,null,null,null,null,null,null,null,null,null,null,null,null,null,null,null,null,null,null,null,null,null,null,null,null,null,null,null,null,null,null,null,null,null,null,null,null,null,null,null,null,null,null,null,1]
["USGS",330338112200201,"C-04-01 23CDB",33.060555555555553,-112.33388888888888,"NAD27","1986-12-01",481.5,null,1345,"NGVD29","U",610,610,null,865.5,null,null,null,null,null,null,null,null,null,null,null,null,null,null,null,null,null,null,null,null,null,null,null,null,null,null,null,null,null,null,null,null,null,null,null,null,null,null,null,null,null,null,null,null,null,null,null,null,null,null,null,null,null,null,null,null,null,null,null,null,null,null,null,null,null,null,null,null,null,null,null,null,null,null,null,null,null,null,null,null,null,null,null,null,1]
["USGS",330338112200201,"C-04-01 23CDB",33.060555555555553,-112.33388888888888,"NAD27","1986-12-22",480.29999999999995,null,1345,"NGVD29","U",610,610,null,866.7,null,null,null,null,null,null,null,null,null,null,null,null,null,null,null,null,null,null,null,null,null,null,null,null,null,null,null,null,null,null,null,null,null,null,null,null,null,null,null,null,null,null,null,null,null,null,null,null,null,null,null,null,null,null,null,null,null,null,null,null,null,null,null,null,null,null,null,null,null,null,null,null,null,null,null,null,null,null,null,null,null,null,null,null,1]
["USGS",330338112200201,"C-04-01 23CDB",33.060555555555553,-112.33388888888888,"NAD27","1986-12-30",481.4,null,1345,"NGVD29","U",610,610,null,865.6,null,null,null,null,null,null,null,null,null,null,null,null,null,null,null,null,null,null,null,null,null,null,null,null,null,null,null,null,null,null,null,null,null,null,null,null,null,null,null,null,null,null,null,null,null,null,null,null,null,null,null,null,null,null,null,null,null,null,null,null,null,null,null,null,null,null,null,null,null,null,null,null,null,null,null,null,null,null,null,null,null,null,null,null,1]
["USGS",330338112200201,"C-04-01 23CDB",33.060555555555553,-112.33388888888888,"NAD27","1987-01-06",481.6,null,1345,"NGVD29","U",610,610,null,865.4,null,null,null,null,null,null,null,null,null,null,null,null,null,null,null,null,null,null,null,null,null,null,null,null,null,null,null,null,null,null,null,null,null,null,null,null,null,null,null,null,null,null,null,null,null,null,null,null,null,null,null,null,null,null,null,null,null,null,null,null,null,null,null,null,null,null,null,null,null,null,null,null,null,null,null,null,null,null,null,null,null,null,null,null,1]
["USGS",330338112200201,"C-04-01 23CDB",33.060555555555553,-112.33388888888888,"NAD27","1987-01-13",481.5,null,1345,"NGVD29","U",610,610,null,865.5,null,null,null,null,null,null,null,null,null,null,null,null,null,null,null,null,null,null,null,null,null,null,null,null,null,null,null,null,null,null,null,null,null,null,null,null,null,null,null,null,null,null,null,null,null,null,null,null,null,null,null,null,null,null,null,null,null,null,null,null,null,null,null,null,null,null,null,null,null,null,null,null,null,null,null,null,null,null,null,null,null,null,null,null,1]
["USGS",330338112200201,"C-04-01 23CDB",33.060555555555553,-112.33388888888888,"NAD27","1987-01-16",481.5,null,1345,"NGVD29","U",610,610,null,865.5,null,null,null,null,null,null,null,null,null,null,null,null,null,null,null,null,null,null,null,null,null,null,null,null,null,null,null,null,null,null,null,null,null,null,null,null,null,null,null,null,null,null,null,null,null,null,null,null,null,null,null,null,null,null,null,null,null,null,null,null,null,null,null,null,null,null,null,null,null,null,null,null,null,null,null,null,null,null,null,null,null,null,null,null,1]
["USGS",330338112200201,"C-04-01 23CDB",33.060555555555553,-112.33388888888888,"NAD27","1987-01-20",481.5,null,1345,"NGVD29","U",610,610,null,865.5,null,null,null,null,null,null,null,null,null,null,null,null,null,null,null,null,null,null,null,null,null,null,null,null,null,null,null,null,null,null,null,null,null,null,null,null,null,null,null,null,null,null,null,null,null,null,null,null,null,null,null,null,null,null,null,null,null,null,null,null,null,null,null,null,null,null,null,null,null,null,null,null,null,null,null,null,null,null,null,null,null,null,null,null,1]
["USGS",330338112200201,"C-04-01 23CDB",33.060555555555553,-112.33388888888888,"NAD27","1987-03-05",481.70000000000005,null,1345,"NGVD29","U",610,610,null,865.3,null,null,null,null,null,null,null,null,null,null,null,null,null,null,null,null,null,null,null,null,null,null,null,null,null,null,null,null,null,null,null,null,null,null,null,null,null,null,null,null,null,null,null,null,null,null,null,null,null,null,null,null,null,null,null,null,null,null,null,null,null,null,null,null,null,null,null,null,null,null,null,null,null,null,null,null,null,null,null,null,null,null,null,null,1]
["USGS",330338112200201,"C-04-01 23CDB",33.060555555555553,-112.33388888888888,"NAD27","1987-04-01",480.9,null,1345,"NGVD29","U",610,610,null,866.1,null,null,null,null,null,null,null,null,null,null,null,null,null,null,null,null,null,null,null,null,null,null,null,null,null,null,null,null,null,null,null,null,null,null,null,null,null,null,null,null,null,null,null,null,null,null,null,null,null,null,null,null,null,null,null,null,null,null,null,null,null,null,null,null,null,null,null,null,null,null,null,null,null,null,null,null,null,null,null,null,null,null,null,null,1]
["USGS",330338112200201,"C-04-01 23CDB",33.060555555555553,-112.33388888888888,"NAD27","1987-04-15",481.70000000000005,null,1345,"NGVD29","U",610,610,null,865.3,null,null,null,null,null,null,null,null,null,null,null,null,null,null,null,null,null,null,null,null,null,null,null,null,null,null,null,null,null,null,null,null,null,null,null,null,null,null,null,null,null,null,null,null,null,null,null,null,null,null,null,null,null,null,null,null,null,null,null,null,null,null,null,null,null,null,null,null,null,null,null,null,null,null,null,null,null,null,null,null,null,null,null,null,1]
["USGS",330338112200201,"C-04-01 23CDB",33.060555555555553,-112.33388888888888,"NAD27","1987-06-15",481.29999999999995,null,1345,"NGVD29","U",610,610,null,865.7,null,null,null,null,null,null,null,null,null,null,null,null,null,null,null,null,null,null,null,null,null,null,null,null,null,null,null,null,null,null,null,null,null,null,null,null,null,null,null,null,null,null,null,null,null,null,null,null,null,null,null,null,null,null,null,null,null,null,null,null,null,null,null,null,null,null,null,null,null,null,null,null,null,null,null,null,null,null,null,null,null,null,null,null,1]
["USGS",330338112200201,"C-04-01 23CDB",33.060555555555553,-112.33388888888888,"NAD27","1987-09-03",481.1,null,1345,"NGVD29","U",610,610,null,865.9,null,null,null,null,null,null,null,null,null,null,null,null,null,null,null,null,null,null,null,null,null,null,null,null,null,null,null,null,null,null,null,null,null,null,null,null,null,null,null,null,null,null,null,null,null,null,null,null,null,null,null,null,null,null,null,null,null,null,null,null,null,null,null,null,null,null,null,null,null,null,null,null,null,null,null,null,null,null,null,null,null,null,null,null,1]
["USGS",330338112200201,"C-04-01 23CDB",33.060555555555553,-112.33388888888888,"NAD27","1987-12-07",481.70000000000005,null,1345,"NGVD29","U",610,610,null,865.3,null,null,null,null,null,null,null,null,null,null,null,null,null,null,null,null,null,null,null,null,null,null,null,null,null,null,null,null,null,null,null,null,null,null,null,null,null,null,null,null,null,null,null,null,null,null,null,null,null,null,null,null,null,null,null,null,null,null,null,null,null,null,null,null,null,null,null,null,null,null,null,null,null,null,null,null,null,null,null,null,null,null,null,null,1]
["USGS",330338112200201,"C-04-01 23CDB",33.060555555555553,-112.33388888888888,"NAD27","1987-12-22",481.79999999999995,null,1345,"NGVD29","U",610,610,null,865.2,null,null,null,null,null,null,null,null,null,null,null,null,null,null,null,null,null,null,null,null,null,null,null,null,null,null,null,null,null,null,null,null,null,null,null,null,null,null,null,null,null,null,null,null,null,null,null,null,null,null,null,null,null,null,null,null,null,null,null,null,null,null,null,null,null,null,null,null,null,null,null,null,null,null,null,null,null,null,null,null,null,null,null,null,1]
["USGS",330338112200201,"C-04-01 23CDB",33.060555555555553,-112.33388888888888,"NAD27","1988-03-01",481.79999999999995,null,1345,"NGVD29","U",610,610,null,865.2,null,null,null,null,null,null,null,null,null,null,null,null,null,null,null,null,null,null,null,null,null,null,null,null,null,null,null,null,null,null,null,null,null,null,null,null,null,null,null,null,null,null,null,null,null,null,null,null,null,null,null,null,null,null,null,null,null,null,null,null,null,null,null,null,null,null,null,null,null,null,null,null,null,null,null,null,null,null,null,null,null,null,null,null,1]
["USGS",330338112200201,"C-04-01 23CDB",33.060555555555553,-112.33388888888888,"NAD27","1988-06-02",482,null,1345,"NGVD29","U",610,610,null,865,null,null,null,null,null,null,null,null,null,null,null,null,null,null,null,null,null,null,null,null,null,null,null,null,null,null,null,null,null,null,null,null,null,null,null,null,null,null,null,null,null,null,null,null,null,null,null,null,null,null,null,null,null,null,null,null,null,null,null,null,null,null,null,null,null,null,null,null,null,null,null,null,null,null,null,null,null,null,null,null,null,null,null,null,1]
["USGS",330338112200201,"C-04-01 23CDB",33.060555555555553,-112.33388888888888,"NAD27","1988-08-08",482.1,null,1345,"NGVD29","U",610,610,null,864.9,null,null,null,null,null,null,null,null,null,null,null,null,null,null,null,null,null,null,null,null,null,null,null,null,null,null,null,null,null,null,null,null,null,null,null,null,null,null,null,null,null,null,null,null,null,null,null,null,null,null,null,null,null,null,null,null,null,null,null,null,null,null,null,null,null,null,null,null,null,null,null,null,null,null,null,null,null,null,null,null,null,null,null,null,1]
["USGS",330338112200201,"C-04-01 23CDB",33.060555555555553,-112.33388888888888,"NAD27","1988-10-24",482.29999999999995,null,1345,"NGVD29","U",610,610,null,864.7,null,null,null,null,null,null,null,null,null,null,null,null,null,null,null,null,null,null,null,null,null,null,null,null,null,null,null,null,null,null,null,null,null,null,null,null,null,null,null,null,null,null,null,null,null,null,null,null,null,null,null,null,null,null,null,null,null,null,null,null,null,null,null,null,null,null,null,null,null,null,null,null,null,null,null,null,null,null,null,null,null,null,null,null,1]
["USGS",330338112200201,"C-04-01 23CDB",33.060555555555553,-112.33388888888888,"NAD27","1989-01-24",482.4,null,1345,"NGVD29","U",610,610,null,864.6,null,null,null,null,null,null,null,null,null,null,null,null,null,null,null,null,null,null,null,null,null,null,null,null,null,null,null,null,null,null,null,null,null,null,null,null,null,null,null,null,null,null,null,null,null,null,null,null,null,null,null,null,null,null,null,null,null,null,null,null,null,null,null,null,null,null,null,null,null,null,null,null,null,null,null,null,null,null,null,null,null,null,null,null,1]
["USGS",330338112200201,"C-04-01 23CDB",33.060555555555553,-112.33388888888888,"NAD27","1989-04-17",482.79999999999995,null,1345,"NGVD29","U",610,610,null,864.2,null,null,null,null,null,null,null,null,null,null,null,null,null,null,null,null,null,null,null,null,null,null,null,null,null,null,null,null,null,null,null,null,null,null,null,null,null,null,null,null,null,null,null,null,null,null,null,null,null,null,null,null,null,null,null,null,null,null,null,null,null,null,null,null,null,null,null,null,null,null,null,null,null,null,null,null,null,null,null,null,null,null,null,null,1]
["USGS",330338112200201,"C-04-01 23CDB",33.060555555555553,-112.33388888888888,"NAD27","1989-07-25",482.29999999999995,null,1345,"NGVD29","U",610,610,null,864.7,null,null,null,null,null,null,null,null,null,null,null,null,null,null,null,null,null,null,null,null,null,null,null,null,null,null,null,null,null,null,null,null,null,null,null,null,null,null,null,null,null,null,null,null,null,null,null,null,null,null,null,null,null,null,null,null,null,null,null,null,null,null,null,null,null,null,null,null,null,null,null,null,null,null,null,null,null,null,null,null,null,null,null,null,1]
["ADWR",330338112200201,"C-04-01 23CDB",33.060444444444443,-112.3338611111111,"NAD27","1989-07-25",482.79999999999995,null,1345,null,"U",610,610,null,864.2,null,null,null,null,null,null,null,null,null,null,null,null,null,null,null,null,null,null,null,null,null,null,null,null,null,null,null,null,null,null,null,null,null,null,null,null,null,null,null,null,null,null,null,null,null,null,null,null,null,null,null,null,null,null,null,null,null,null,null,null,null,null,null,null,null,null,null,null,null,null,null,null,null,null,null,null,null,null,null,null,null,null,null,null,1]
["USGS",330338112200201,"C-04-01 23CDB",33.060555555555553,-112.33388888888888,"NAD27","1989-10-30",483.20000000000005,null,1345,"NGVD29","U",610,610,null,863.8,null,null,null,null,null,null,null,null,null,null,null,null,null,null,null,null,null,null,null,null,null,null,null,null,null,null,null,null,null,null,null,null,null,null,null,null,null,null,null,null,null,null,null,null,null,null,null,null,null,null,null,null,null,null,null,null,null,null,null,null,null,null,null,null,null,null,null,null,null,null,null,null,null,null,null,null,null,null,null,null,null,null,null,null,1]
["USGS",330338112200201,"C-04-01 23CDB",33.060555555555553,-112.33388888888888,"NAD27","1990-02-23",483.5,null,1345,"NGVD29","U",610,610,null,863.5,null,null,null,null,null,null,null,null,null,null,null,null,null,null,null,null,null,null,null,null,null,null,null,null,null,null,null,null,null,null,null,null,null,null,null,null,null,null,null,null,null,null,null,null,null,null,null,null,null,null,null,null,null,null,null,null,null,null,null,null,null,null,null,null,null,null,null,null,null,null,null,null,null,null,null,null,null,null,null,null,null,null,null,null,1]
["USGS",330338112200201,"C-04-01 23CDB",33.060555555555553,-112.33388888888888,"NAD27","1990-05-22",483.6,null,1345,"NGVD29","U",610,610,null,863.4,null,null,null,null,null,null,null,null,null,null,null,null,null,null,null,null,null,null,null,null,null,null,null,null,null,null,null,null,null,null,null,null,null,null,null,null,null,null,null,null,null,null,null,null,null,null,null,null,null,null,null,null,null,null,null,null,null,null,null,null,null,null,null,null,null,null,null,null,null,null,null,null,null,null,null,null,null,null,null,null,null,null,null,null,1]
["USGS",330338112200201,"C-04-01 23CDB",33.060555555555553,-112.33388888888888,"NAD27","1990-08-23",483.9,null,1345,"NGVD29","U",610,610,null,863.1,null,null,null,null,null,null,null,null,null,null,null,null,null,null,null,null,null,null,null,null,null,null,null,null,null,null,null,null,null,null,null,null,null,null,null,null,null,null,null,null,null,null,null,null,null,null,null,null,null,null,null,null,null,null,null,null,null,null,null,null,null,null,null,null,null,null,null,null,null,null,null,null,null,null,null,null,null,null,null,null,null,null,null,null,1]
["USGS",330338112200201,"C-04-01 23CDB",33.060555555555553,-112.33388888888888,"NAD27","1990-11-16",483.9,null,1345,"NGVD29","U",610,610,null,863.1,null,null,null,null,null,null,null,null,null,null,null,null,null,null,null,null,null,null,null,null,null,null,null,null,null,null,null,null,null,null,null,null,null,null,null,null,null,null,null,null,null,null,null,null,null,null,null,null,null,null,null,null,null,null,null,null,null,null,null,null,null,null,null,null,null,null,null,null,null,null,null,null,null,null,null,null,null,null,null,null,null,null,null,null,1]
["USGS",330338112200201,"C-04-01 23CDB",33.060555555555553,-112.33388888888888,"NAD27","1991-02-12",483.79999999999995,null,1345,"NGVD29","U",610,610,null,863.2,null,null,null,null,null,null,null,null,null,null,null,null,null,null,null,null,null,null,null,null,null,null,null,null,null,null,null,null,null,null,null,null,null,null,null,null,null,null,null,null,null,null,null,null,null,null,null,null,null,null,null,null,null,null,null,null,null,null,null,null,null,null,null,null,null,null,null,null,null,null,null,null,null,null,null,null,null,null,null,null,null,null,null,null,1]
["USGS",330338112200201,"C-04-01 23CDB",33.060555555555553,-112.33388888888888,"NAD27","1991-05-15",484.29999999999995,null,1345,"NGVD29","U",610,610,null,862.7,null,null,null,null,null,null,null,null,null,null,null,null,null,null,null,null,null,null,null,null,null,null,null,null,null,null,null,null,null,null,null,null,null,null,null,null,null,null,null,null,null,null,null,null,null,null,null,null,null,null,null,null,null,null,null,null,null,null,null,null,null,null,null,null,null,null,null,null,null,null,null,null,null,null,null,null,null,null,null,null,null,null,null,null,1]
["USGS",330338112200201,"C-04-01 23CDB",33.060555555555553,-112.33388888888888,"NAD27","1991-08-14",483.79999999999995,null,1345,"NGVD29","U",610,610,null,863.2,null,null,null,null,null,null,null,null,null,null,null,null,null,null,null,null,null,null,null,null,null,null,null,null,null,null,null,null,null,null,null,null,null,null,null,null,null,null,null,null,null,null,null,null,null,null,null,null,null,null,null,null,null,null,null,null,null,null,null,null,null,null,null,null,null,null,null,null,null,null,null,null,null,null,null,null,null,null,null,null,null,null,null,null,1]
["USGS",330338112200201,"C-04-01 23CDB",33.060555555555553,-112.33388888888888,"NAD27","1991-11-04",484.44000000000005,null,1345,"NGVD29","U",610,610,null,862.56,null,null,null,null,null,null,null,null,null,null,null,null,null,null,null,null,null,null,null,null,null,null,null,null,null,null,null,null,null,null,null,null,null,null,null,null,null,null,null,null,null,null,null,null,null,null,null,null,null,null,null,null,null,null,null,null,null,null,null,null,null,null,null,null,null,null,null,null,null,null,null,null,null,null,null,null,null,null,null,null,null,null,null,null,1]
["USGS",330338112200201,"C-04-01 23CDB",33.060555555555553,-112.33388888888888,"NAD27","1991-11-15",484.29999999999995,null,1345,"NGVD29","U",610,610,null,862.7,null,null,null,null,null,null,null,null,null,null,null,null,null,null,null,null,null,null,null,null,null,null,null,null,null,null,null,null,null,null,null,null,null,null,null,null,null,null,null,null,null,null,null,null,null,null,null,null,null,null,null,null,null,null,null,null,null,null,null,null,null,null,null,null,null,null,null,null,null,null,null,null,null,null,null,null,null,null,null,null,null,null,null,null,1]
["USGS",330338112200201,"C-04-01 23CDB",33.060555555555553,-112.33388888888888,"NAD27","1992-02-18",484.6,null,1345,"NGVD29","U",610,610,null,862.4,null,null,null,null,null,null,null,null,null,null,null,null,null,null,null,null,null,null,null,null,null,null,null,null,null,null,null,null,null,null,null,null,null,null,null,null,null,null,null,null,null,null,null,null,null,null,null,null,null,null,null,null,null,null,null,null,null,null,null,null,null,null,null,null,null,null,null,null,null,null,null,null,null,null,null,null,null,null,null,null,null,null,null,null,1]
["USGS",330338112200201,"C-04-01 23CDB",33.060555555555553,-112.33388888888888,"NAD27","1992-05-14",484.70000000000005,null,1345,"NGVD29","U",610,610,null,862.3,null,null,null,null,null,null,null,null,null,null,null,null,null,null,null,null,null,null,null,null,null,null,null,null,null,null,null,null,null,null,null,null,null,null,null,null,null,null,null,null,null,null,null,null,null,null,null,null,null,null,null,null,null,null,null,null,null,null,null,null,null,null,null,null,null,null,null,null,null,null,null,null,null,null,null,null,null,null,null,null,null,null,null,null,1]
["USGS",330338112200201,"C-04-01 23CDB",33.060555555555553,-112.33388888888888,"NAD27","1992-08-14",484.85,null,1345,"NGVD29","U",610,610,null,862.15,null,null,null,null,null,null,null,null,null,null,null,null,null,null,null,null,null,null,null,null,null,null,null,null,null,null,null,null,null,null,null,null,null,null,null,null,null,null,null,null,null,null,null,null,null,null,null,null,null,null,null,null,null,null,null,null,null,null,null,null,null,null,null,null,null,null,null,null,null,null,null,null,null,null,null,null,null,null,null,null,null,null,null,null,1]
["USGS",330338112200201,"C-04-01 23CDB",33.060555555555553,-112.33388888888888,"NAD27","1992-11-09",484.9,null,1345,"NGVD29","U",610,610,null,862.1,null,null,null,null,null,null,null,null,null,null,null,null,null,null,null,null,null,null,null,null,null,null,null,null,null,null,null,null,null,null,null,null,null,null,null,null,null,null,null,null,null,null,null,null,null,null,null,null,null,null,null,null,null,null,null,null,null,null,null,null,null,null,null,null,null,null,null,null,null,null,null,null,null,null,null,null,null,null,null,null,null,null,null,null,1]
["USGS",330338112200201,"C-04-01 23CDB",33.060555555555553,-112.33388888888888,"NAD27","1993-02-10",485.20000000000005,null,1345,"NGVD29","U",610,610,null,861.8,null,null,null,null,null,null,null,null,null,null,null,null,null,null,null,null,null,null,null,null,null,null,null,null,null,null,null,null,null,null,null,null,null,null,null,null,null,null,null,null,null,null,null,null,null,null,null,null,null,null,null,null,null,null,null,null,null,null,null,null,null,null,null,null,null,null,null,null,null,null,null,null,null,null,null,null,null,null,null,null,null,null,null,null,1]
["USGS",330338112200201,"C-04-01 23CDB",33.060555555555553,-112.33388888888888,"NAD27","1993-05-12",485.4,null,1345,"NGVD29","U",610,610,null,861.6,null,null,null,null,null,null,null,null,null,null,null,null,null,null,null,null,null,null,null,null,null,null,null,null,null,null,null,null,null,null,null,null,null,null,null,null,null,null,null,null,null,null,null,null,null,null,null,null,null,null,null,null,null,null,null,null,null,null,null,null,null,null,null,null,null,null,null,null,null,null,null,null,null,null,null,null,null,null,null,null,null,null,null,null,1]
["USGS",330338112200201,"C-04-01 23CDB",33.060555555555553,-112.33388888888888,"NAD27","1993-05-14",485.20000000000005,null,1345,"NGVD29","U",610,610,null,861.8,null,null,null,null,null,null,null,null,null,null,null,null,null,null,null,null,null,null,null,null,null,null,null,null,null,null,null,null,null,null,null,null,null,null,null,null,null,null,null,null,null,null,null,null,null,null,null,null,null,null,null,null,null,null,null,null,null,null,null,null,null,null,null,null,null,null,null,null,null,null,null,null,null,null,null,null,null,null,null,null,null,null,null,null,1]
["USGS",330338112200201,"C-04-01 23CDB",33.060555555555553,-112.33388888888888,"NAD27","1993-07-23",485.15,null,1345,"NGVD29","U",610,610,null,861.85,null,null,null,null,null,null,null,null,null,null,null,null,null,null,null,null,null,null,null,null,null,null,null,null,null,null,null,null,null,null,null,null,null,null,null,null,null,null,null,null,null,null,null,null,null,null,null,null,null,null,null,null,null,null,null,null,null,null,null,null,null,null,null,null,null,null,null,null,null,null,null,null,null,null,null,null,null,null,null,null,null,null,null,null,1]
["USGS",330338112200201,"C-04-01 23CDB",33.060555555555553,-112.33388888888888,"NAD27","1994-02-17",485.5,null,1345,"NGVD29","U",610,610,null,861.5,null,null,null,null,null,null,null,null,null,null,null,null,null,null,null,null,null,null,null,null,null,null,null,null,null,null,null,null,null,null,null,null,null,null,null,null,null,null,null,null,null,null,null,null,null,null,null,null,null,null,null,null,null,null,null,null,null,null,null,null,null,null,null,null,null,null,null,null,null,null,null,null,null,null,null,null,null,null,null,null,null,null,null,null,1]
["USGS",330338112200201,"C-04-01 23CDB",33.060555555555553,-112.33388888888888,"NAD27","1994-05-16",485.5,null,1345,"NGVD29","U",610,610,null,861.5,null,null,null,null,null,null,null,null,null,null,null,null,null,null,null,null,null,null,null,null,null,null,null,null,null,null,null,null,null,null,null,null,null,null,null,null,null,null,null,null,null,null,null,null,null,null,null,null,null,null,null,null,null,null,null,null,null,null,null,null,null,null,null,null,null,null,null,null,null,null,null,null,null,null,null,null,null,null,null,null,null,null,null,null,1]
["USGS",330338112200201,"C-04-01 23CDB",33.060555555555553,-112.33388888888888,"NAD27","1994-08-16",486.79999999999995,null,1345,"NGVD29","U",610,610,null,860.2,null,null,null,null,null,null,null,null,null,null,null,null,null,null,null,null,null,null,null,null,null,null,null,null,null,null,null,null,null,null,null,null,null,null,null,null,null,null,null,null,null,null,null,null,null,null,null,null,null,null,null,null,null,null,null,null,null,null,null,null,null,null,null,null,null,null,null,null,null,null,null,null,null,null,null,null,null,null,null,null,null,null,null,null,1]
["USGS",330338112200201,"C-04-01 23CDB",33.060555555555553,-112.33388888888888,"NAD27","1994-11-14",485.70000000000005,null,1345,"NGVD29","U",610,610,null,861.3,null,null,null,null,null,null,null,null,null,null,null,null,null,null,null,null,null,null,null,null,null,null,null,null,null,null,null,null,null,null,null,null,null,null,null,null,null,null,null,null,null,null,null,null,null,null,null,null,null,null,null,null,null,null,null,null,null,null,null,null,null,null,null,null,null,null,null,null,null,null,null,null,null,null,null,null,null,null,null,null,null,null,null,null,1]
["USGS",330338112200201,"C-04-01 23CDB",33.060555555555553,-112.33388888888888,"NAD27","1995-02-13",486,null,1345,"NGVD29","U",610,610,null,861,null,null,null,null,null,null,null,null,null,null,null,null,null,null,null,null,null,null,null,null,null,null,null,null,null,null,null,null,null,null,null,null,null,null,null,null,null,null,null,null,null,null,null,null,null,null,null,null,null,null,null,null,null,null,null,null,null,null,null,null,null,null,null,null,null,null,null,null,null,null,null,null,null,null,null,null,null,null,null,null,null,null,null,null,1]
["USGS",330338112200201,"C-04-01 23CDB",33.060555555555553,-112.33388888888888,"NAD27","1995-05-17",486.9,null,1345,"NGVD29","U",610,610,null,860.1,null,null,null,null,null,null,null,null,null,null,null,null,null,null,null,null,null,null,null,null,null,null,null,null,null,null,null,null,null,null,null,null,null,null,null,null,null,null,null,null,null,null,null,null,null,null,null,null,null,null,null,null,null,null,null,null,null,null,null,null,null,null,null,null,null,null,null,null,null,null,null,null,null,null,null,null,null,null,null,null,null,null,null,null,1]
["USGS",330338112200201,"C-04-01 23CDB",33.060555555555553,-112.33388888888888,"NAD27","1995-08-15",486.70000000000005,null,1345,"NGVD29","U",610,610,null,860.3,null,null,null,null,null,null,null,null,null,null,null,null,null,null,null,null,null,null,null,null,null,null,null,null,null,null,null,null,null,null,null,null,null,null,null,null,null,null,null,null,null,null,null,null,null,null,null,null,null,null,null,null,null,null,null,null,null,null,null,null,null,null,null,null,null,null,null,null,null,null,null,null,null,null,null,null,null,null,null,null,null,null,null,null,1]
["USGS",330338112200201,"C-04-01 23CDB",33.060555555555553,-112.33388888888888,"NAD27","1995-11-13",487.1,null,1345,"NGVD29","U",610,610,null,859.9,null,null,null,null,null,null,null,null,null,null,null,null,null,null,null,null,null,null,null,null,null,null,null,null,null,null,null,null,null,null,null,null,null,null,null,null,null,null,null,null,null,null,null,null,null,null,null,null,null,null,null,null,null,null,null,null,null,null,null,null,null,null,null,null,null,null,null,null,null,null,null,null,null,null,null,null,null,null,null,null,null,null,null,null,1]
["USGS",330338112200201,"C-04-01 23CDB",33.060555555555553,-112.33388888888888,"NAD27","1996-02-14",487.5,null,1345,"NGVD29","U",610,610,null,859.5,null,null,null,null,null,null,null,null,null,null,null,null,null,null,null,null,null,null,null,null,null,null,null,null,null,null,null,null,null,null,null,null,null,null,null,null,null,null,null,null,null,null,null,null,null,null,null,null,null,null,null,null,null,null,null,null,null,null,null,null,null,null,null,null,null,null,null,null,null,null,null,null,null,null,null,null,null,null,null,null,null,null,null,null,1]
["USGS",330338112200201,"C-04-01 23CDB",33.060555555555553,-112.33388888888888,"NAD27","1996-08-14",486.5,null,1345,"NGVD29","U",610,610,null,860.5,null,null,null,null,null,null,null,null,null,null,null,null,null,null,null,null,null,null,null,null,null,null,null,null,null,null,null,null,null,null,null,null,null,null,null,null,null,null,null,null,null,null,null,null,null,null,null,null,null,null,null,null,null,null,null,null,null,null,null,null,null,null,null,null,null,null,null,null,null,null,null,null,null,null,null,null,null,null,null,null,null,null,null,null,1]
["USGS",330338112200201,"C-04-01 23CDB",33.060555555555553,-112.33388888888888,"NAD27","1996-11-13",488.29999999999995,null,1345,"NGVD29","U",610,610,null,858.7,null,null,null,null,null,null,null,null,null,null,null,null,null,null,null,null,null,null,null,null,null,null,null,null,null,null,null,null,null,null,null,null,null,null,null,null,null,null,null,null,null,null,null,null,null,null,null,null,null,null,null,null,null,null,null,null,null,null,null,null,null,null,null,null,null,null,null,null,null,null,null,null,null,null,null,null,null,null,null,null,null,null,null,null,1]
["USGS",330338112200201,"C-04-01 23CDB",33.060555555555553,-112.33388888888888,"NAD27","1997-02-10",488.70000000000005,null,1345,"NGVD29","U",610,610,null,858.3,null,null,null,null,null,null,null,null,null,null,null,null,null,null,null,null,null,null,null,null,null,null,null,null,null,null,null,null,null,null,null,null,null,null,null,null,null,null,null,null,null,null,null,null,null,null,null,null,null,null,null,null,null,null,null,null,null,null,null,null,null,null,null,null,null,null,null,null,null,null,null,null,null,null,null,null,null,null,null,null,null,null,null,null,1]
["USGS",330338112200201,"C-04-01 23CDB",33.060555555555553,-112.33388888888888,"NAD27","1997-05-20",488.5,null,1345,"NGVD29","U",610,610,null,858.5,null,null,null,null,null,null,null,null,null,null,null,null,null,null,null,null,null,null,null,null,null,null,null,null,null,null,null,null,null,null,null,null,null,null,null,null,null,null,null,null,null,null,null,null,null,null,null,null,null,null,null,null,null,null,null,null,null,null,null,null,null,null,null,null,null,null,null,null,null,null,null,null,null,null,null,null,null,null,null,null,null,null,null,null,1]
["USGS",330338112200201,"C-04-01 23CDB",33.060555555555553,-112.33388888888888,"NAD27","1997-08-20",489.1,null,1345,"NGVD29","U",610,610,null,{"$f":"1347-H87","v":857.9},null,null,null,null,null,null,null,null,null,null,null,null,null,null,null,null,null,null,null,null,null,null,null,null,null,null,null,null,null,null,null,null,null,null,null,null,null,null,null,null,null,null,null,null,null,null,null,null,null,null,null,null,null,null,null,null,null,null,null,null,null,null,null,null,null,null,null,null,null,null,null,null,null,null,null,null,null,null,null,null,null,null,null,null,1]
["USGS",330338112200201,"C-04-01 23CDB",33.060555555555553,-112.33388888888888,"NAD27","1997-11-17",489.70000000000005,null,1345,"NGVD29","U",610,610,null,857.3,null,null,null,null,null,null,null,null,null,null,null,null,null,null,null,null,null,null,null,null,null,null,null,null,null,null,null,null,null,null,null,null,null,null,null,null,null,null,null,null,null,null,null,null,null,null,null,null,null,null,null,null,null,null,null,null,null,null,null,null,null,null,null,null,null,null,null,null,null,null,null,null,null,null,null,null,null,null,null,null,null,null,null,null,1]
["USGS",330338112200201,"C-04-01 23CDB",33.060555555555553,-112.33388888888888,"NAD27","1998-05-19",490,null,1345,"NGVD29","U",610,610,null,857,null,null,null,null,null,null,null,null,null,null,null,null,null,null,null,null,null,null,null,null,null,null,null,null,null,null,null,null,null,null,null,null,null,null,null,null,null,null,null,null,null,null,null,null,null,null,null,null,null,null,null,null,null,null,null,null,null,null,null,null,null,null,null,null,null,null,null,null,null,null,null,null,null,null,null,null,null,null,null,null,null,null,null,null,1]
["USGS",330338112200201,"C-04-01 23CDB",33.060555555555553,-112.33388888888888,"NAD27","1998-08-17",490.1,null,1345,"NGVD29","U",610,610,null,856.9,null,null,null,null,null,null,null,null,null,null,null,null,null,null,null,null,null,null,null,null,null,null,null,null,null,null,null,null,null,null,null,null,null,null,null,null,null,null,null,null,null,null,null,null,null,null,null,null,null,null,null,null,null,null,null,null,null,null,null,null,null,null,null,null,null,null,null,null,null,null,null,null,null,null,null,null,null,null,null,null,null,null,null,null,1]
["USGS",330338112200201,"C-04-01 23CDB",33.060555555555553,-112.33388888888888,"NAD27","1998-11-17",490.5,null,1345,"NGVD29","U",610,610,null,856.5,null,null,null,null,null,null,null,null,null,null,null,null,null,null,null,null,null,null,null,null,null,null,null,null,null,null,null,null,null,null,null,null,null,null,null,null,null,null,null,null,null,null,null,null,null,null,null,null,null,null,null,null,null,null,null,null,null,null,null,null,null,null,null,null,null,null,null,null,null,null,null,null,null,null,null,null,null,null,null,null,null,null,null,null,1]
["USGS",330338112200201,"C-04-01 23CDB",33.060555555555553,-112.33388888888888,"NAD27","1999-02-17",490.41000000000008,null,1345,"NGVD29","U",610,610,null,856.58999999999992,null,null,null,null,null,null,null,null,null,null,null,null,null,null,null,null,null,null,null,null,null,null,null,null,null,null,null,null,null,null,null,null,null,null,null,null,null,null,null,null,null,null,null,null,null,null,null,null,null,null,null,null,null,null,null,null,null,null,null,null,null,null,null,null,null,null,null,null,null,null,null,null,null,null,null,null,null,null,null,null,null,null,null,null,1]
["USGS",330338112200201,"C-04-01 23CDB",33.060555555555553,-112.33388888888888,"NAD27","1999-05-19",490.65,null,1345,"NGVD29","U",610,610,null,856.35,null,null,null,null,null,null,null,null,null,null,null,null,null,null,null,null,null,null,null,null,null,null,null,null,null,null,null,null,null,null,null,null,null,null,null,null,null,null,null,null,null,null,null,null,null,null,null,null,null,null,null,null,null,null,null,null,null,null,null,null,null,null,null,null,null,null,null,null,null,null,null,null,null,null,null,null,null,null,null,null,null,null,null,null,1]
["USGS",330338112200201,"C-04-01 23CDB",33.060555555555553,-112.33388888888888,"NAD27","1999-08-10",490.45000000000005,null,1345,"NGVD29","U",610,610,null,856.55,null,null,null,null,null,null,null,null,null,null,null,null,null,null,null,null,null,null,null,null,null,null,null,null,null,null,null,null,null,null,null,null,null,null,null,null,null,null,null,null,null,null,null,null,null,null,null,null,null,null,null,null,null,null,null,null,null,null,null,null,null,null,null,null,null,null,null,null,null,null,null,null,null,null,null,null,null,null,null,null,null,null,null,null,1]
["USGS",330338112200201,"C-04-01 23CDB",33.060555555555553,-112.33388888888888,"NAD27","1999-11-16",490.70000000000005,null,1345,"NGVD29","U",610,610,null,856.3,null,null,null,null,null,null,null,null,null,null,null,null,null,null,null,null,null,null,null,null,null,null,null,null,null,null,null,null,null,null,null,null,null,null,null,null,null,null,null,null,null,null,null,null,null,null,null,null,null,null,null,null,null,null,null,null,null,null,null,null,null,null,null,null,null,null,null,null,null,null,null,null,null,null,null,null,null,null,null,null,null,null,null,null,1]
["USGS",330338112200201,"C-04-01 23CDB",33.060555555555553,-112.33388888888888,"NAD27","2000-05-16",491.25,null,1345,"NGVD29","U",610,610,null,855.75,null,null,null,null,null,null,null,null,null,null,null,null,null,null,null,null,null,null,null,null,null,null,null,null,null,null,null,null,null,null,null,null,null,null,null,null,null,null,null,null,null,null,null,null,null,null,null,null,null,null,null,null,null,null,null,null,null,null,null,null,null,null,null,null,null,null,null,null,null,null,null,null,null,null,null,null,null,null,null,null,null,null,null,null,1]
["USGS",330338112200201,"C-04-01 23CDB",33.060555555555553,-112.33388888888888,"NAD27","2000-08-16",491.15,null,1345,"NGVD29","U",610,610,null,855.85,null,null,null,null,null,null,null,null,null,null,null,null,null,null,null,null,null,null,null,null,null,null,null,null,null,null,null,null,null,null,null,null,null,null,null,null,null,null,null,null,null,null,null,null,null,null,null,null,null,null,null,null,null,null,null,null,null,null,null,null,null,null,null,null,null,null,null,null,null,null,null,null,null,null,null,null,null,null,null,null,null,null,null,null,1]
["USGS",330338112200201,"C-04-01 23CDB",33.060555555555553,-112.33388888888888,"NAD27","2000-11-16",491.70000000000005,null,1345,"NGVD29","U",610,610,null,855.3,null,null,null,null,null,null,null,null,null,null,null,null,null,null,null,null,null,null,null,null,null,null,null,null,null,null,null,null,null,null,null,null,null,null,null,null,null,null,null,null,null,null,null,null,null,null,null,null,null,null,null,null,null,null,null,null,null,null,null,null,null,null,null,null,null,null,null,null,null,null,null,null,null,null,null,null,null,null,null,null,null,null,null,null,1]
["USGS",330338112200201,"C-04-01 23CDB",33.060555555555553,-112.33388888888888,"NAD27","2001-02-13",491.79999999999995,null,1345,"NGVD29","U",610,610,null,855.2,null,null,null,null,null,null,null,null,null,null,null,null,null,null,null,null,null,null,null,null,null,null,null,null,null,null,null,null,null,null,null,null,null,null,null,null,null,null,null,null,null,null,null,null,null,null,null,null,null,null,null,null,null,null,null,null,null,null,null,null,null,null,null,null,null,null,null,null,null,null,null,null,null,null,null,null,null,null,null,null,null,null,null,null,1]
["USGS",330338112200201,"C-04-01 23CDB",33.060555555555553,-112.33388888888888,"NAD27","2001-05-11",492.1,null,1345,"NGVD29","U",610,610,null,854.9,null,null,null,null,null,null,null,null,null,null,null,null,null,null,null,null,null,null,null,null,null,null,null,null,null,null,null,null,null,null,null,null,null,null,null,null,null,null,null,null,null,null,null,null,null,null,null,null,null,null,null,null,null,null,null,null,null,null,null,null,null,null,null,null,null,null,null,null,null,null,null,null,null,null,null,null,null,null,null,null,null,null,null,null,1]
["USGS",330338112200201,"C-04-01 23CDB",33.060555555555553,-112.33388888888888,"NAD27","2001-05-16",492.5,null,1345,"NGVD29","U",610,610,null,854.5,null,null,null,null,null,null,null,null,null,null,null,null,null,null,null,null,null,null,null,null,null,null,null,null,null,null,null,null,null,null,null,null,null,null,null,null,null,null,null,null,null,null,null,null,null,null,null,null,null,null,null,null,null,null,null,null,null,null,null,null,null,null,null,null,null,null,null,null,null,null,null,null,null,null,null,null,null,null,null,null,null,null,null,null,1]
["USGS",330338112200201,"C-04-01 23CDB",33.060555555555553,-112.33388888888888,"NAD27","2001-08-14",491,null,1345,"NGVD29","U",610,610,null,856,null,null,null,null,null,null,null,null,null,null,null,null,null,null,null,null,null,null,null,null,null,null,null,null,null,null,null,null,null,null,null,null,null,null,null,null,null,null,null,null,null,null,null,null,null,null,null,null,null,null,null,null,null,null,null,null,null,null,null,null,null,null,null,null,null,null,null,null,null,null,null,null,null,null,null,null,null,null,null,null,null,null,null,null,1]
["USGS",330338112200201,"C-04-01 23CDB",33.060555555555553,-112.33388888888888,"NAD27","2001-11-13",491.6,null,1345,"NGVD29","U",610,610,null,855.4,null,null,null,null,null,null,null,null,null,null,null,null,null,null,null,null,null,null,null,null,null,null,null,null,null,null,null,null,null,null,null,null,null,null,null,null,null,null,null,null,null,null,null,null,null,null,null,null,null,null,null,null,null,null,null,null,null,null,null,null,null,null,null,null,null,null,null,null,null,null,null,null,null,null,null,null,null,null,null,null,null,null,null,null,1]
["USGS",330338112200201,"C-04-01 23CDB",33.060555555555553,-112.33388888888888,"NAD27","2002-02-12",492.4,null,1345,"NGVD29","U",610,610,null,854.6,null,null,null,null,null,null,null,null,null,null,null,null,null,null,null,null,null,null,null,null,null,null,null,null,null,null,null,null,null,null,null,null,null,null,null,null,null,null,null,null,null,null,null,null,null,null,null,null,null,null,null,null,null,null,null,null,null,null,null,null,null,null,null,null,null,null,null,null,null,null,null,null,null,null,null,null,null,null,null,null,null,null,null,null,1]
["USGS",330338112200201,"C-04-01 23CDB",33.060555555555553,-112.33388888888888,"NAD27","2002-05-16",492.5,null,1345,"NGVD29","U",610,610,null,854.5,null,null,null,null,null,null,null,null,null,null,null,null,null,null,null,null,null,null,null,null,null,null,null,null,null,null,null,null,null,null,null,null,null,null,null,null,null,null,null,null,null,null,null,null,null,null,null,null,null,null,null,null,null,null,null,null,null,null,null,null,null,null,null,null,null,null,null,null,null,null,null,null,null,null,null,null,null,null,null,null,null,null,null,null,1]
["USGS",330338112200201,"C-04-01 23CDB",33.060555555555553,-112.33388888888888,"NAD27","2002-08-19",492.79999999999995,null,1345,"NGVD29","U",610,610,null,854.2,null,null,null,null,null,null,null,null,null,null,null,null,null,null,null,null,null,null,null,null,null,null,null,null,null,null,null,null,null,null,null,null,null,null,null,null,null,null,null,null,null,null,null,null,null,null,null,null,null,null,null,null,null,null,null,null,null,null,null,null,null,null,null,null,null,null,null,null,null,null,null,null,null,null,null,null,null,null,null,null,null,null,null,null,1]
["ADWR",330338112200201,"C-04-01 23CDB",33.060444444444443,-112.3338611111111,"NAD27","2002-11-12",492.6,null,1345,null,"U",610,610,null,854.4,null,null,null,null,null,null,null,null,null,null,null,null,null,null,null,null,null,null,null,null,null,null,null,null,null,null,null,null,null,null,null,null,null,null,null,null,null,null,null,null,null,null,null,null,null,null,null,null,null,null,null,null,null,null,null,null,null,null,null,null,null,null,null,null,null,null,null,null,null,null,null,null,null,null,null,null,null,null,null,null,null,null,null,null,1]
["ADWR",330338112200201,"C-04-01 23CDB",33.060444444444443,-112.3338611111111,"NAD27","2003-02-25",492.82999999999993,null,1345,null,"U",610,610,null,854.17000000000007,null,null,null,null,null,null,null,null,null,null,null,null,null,null,null,null,null,null,null,null,null,null,null,null,null,null,null,null,null,null,null,null,null,null,null,null,null,null,null,null,null,null,null,null,null,null,null,null,null,null,null,null,null,null,null,null,null,null,null,null,null,null,null,null,null,null,null,null,null,null,null,null,null,null,null,null,null,null,null,null,null,null,null,null,1]
["ADWR",330338112200201,"C-04-01 23CDB",33.060444444444443,-112.3338611111111,"NAD27","2003-05-14",492.9,null,1345,null,"U",610,610,null,854.1,null,null,null,null,null,null,null,null,null,null,null,null,null,null,null,null,null,null,null,null,null,null,null,null,null,null,null,null,null,null,null,null,null,null,null,null,null,null,null,null,null,null,null,null,null,null,null,null,null,null,null,null,null,null,null,null,null,null,null,null,null,null,null,null,null,null,null,null,null,null,null,null,null,null,null,null,null,null,null,null,null,null,null,null,1]
["ADWR",330338112200201,"C-04-01 23CDB",33.060444444444443,-112.3338611111111,"NAD27","2003-08-14",492.98,null,1345,null,"U",610,610,null,854.02,null,null,null,null,null,null,null,null,null,null,null,null,null,null,null,null,null,null,null,null,null,null,null,null,null,null,null,null,null,null,null,null,null,null,null,null,null,null,null,null,null,null,null,null,null,null,null,null,null,null,null,null,null,null,null,null,null,null,null,null,null,null,null,null,null,null,null,null,null,null,null,null,null,null,null,null,null,null,null,null,null,null,null,null,1]
["ADWR",330338112200201,"C-04-01 23CDB",33.060444444444443,-112.3338611111111,"NAD27","2003-12-09",492.73,null,1345,null,"U",610,610,null,854.27,null,null,null,null,null,null,null,null,null,null,null,null,null,null,null,null,null,null,null,null,null,null,null,null,null,null,null,null,null,null,null,null,null,null,null,null,null,null,null,null,null,null,null,null,null,null,null,null,null,null,null,null,null,null,null,null,null,null,null,null,null,null,null,null,null,null,null,null,null,null,null,null,null,null,null,null,null,null,null,null,null,null,null,null,1]
["ADWR",330338112200201,"C-04-01 23CDB",33.060444444444443,-112.3338611111111,"NAD27","2004-02-12",494.35,null,1345,null,"U",610,610,null,852.65,null,null,null,null,null,null,null,null,null,null,null,null,null,null,null,null,null,null,null,null,null,null,null,null,null,null,null,null,null,null,null,null,null,null,null,null,null,null,null,null,null,null,null,null,null,null,null,null,null,null,null,null,null,null,null,null,null,null,null,null,null,null,null,null,null,null,null,null,null,null,null,null,null,null,null,null,null,null,null,null,null,null,null,null,1]
["ADWR",330338112200201,"C-04-01 23CDB",33.060444444444443,-112.3338611111111,"NAD27","2004-05-17",493.20000000000005,null,1345,null,"U",610,610,null,853.8,null,null,null,null,null,null,null,null,null,null,null,null,null,null,null,null,null,null,null,null,null,null,null,null,null,null,null,null,null,null,null,null,null,null,null,null,null,null,null,null,null,null,null,null,null,null,null,null,null,null,null,null,null,null,null,null,null,null,null,null,null,null,null,null,null,null,null,null,null,null,null,null,null,null,null,null,null,null,null,null,null,null,null,null,1]
["ADWR",330338112200201,"C-04-01 23CDB",33.060444444444443,-112.3338611111111,"NAD27","2004-08-16",493.20000000000005,null,1345,null,"U",610,610,null,853.8,null,null,null,null,null,null,null,null,null,null,null,null,null,null,null,null,null,null,null,null,null,null,null,null,null,null,null,null,null,null,null,null,null,null,null,null,null,null,null,null,null,null,null,null,null,null,null,null,null,null,null,null,null,null,null,null,null,null,null,null,null,null,null,null,null,null,null,null,null,null,null,null,null,null,null,null,null,null,null,null,null,null,null,null,1]
["ADWR",330338112200201,"C-04-01 23CDB",33.060444444444443,-112.3338611111111,"NAD27","2004-11-23",493.5,null,1345,null,"U",610,610,null,853.5,null,null,null,null,null,null,null,null,null,null,null,null,null,null,null,null,null,null,null,null,null,null,null,null,null,null,null,null,null,null,null,null,null,null,null,null,null,null,null,null,null,null,null,null,null,null,null,null,null,null,null,null,null,null,null,null,null,null,null,null,null,null,null,null,null,null,null,null,null,null,null,null,null,null,null,null,null,null,null,null,null,null,null,null,1]
["ADWR",330338112200201,"C-04-01 23CDB",33.060444444444443,-112.3338611111111,"NAD27","2005-05-17",493.4,null,1345,null,"U",610,610,null,853.6,null,null,null,null,null,null,null,null,null,null,null,null,null,null,null,null,null,null,null,null,null,null,null,null,null,null,null,null,null,null,null,null,null,null,null,null,null,null,null,null,null,null,null,null,null,null,null,null,null,null,null,null,null,null,null,null,null,null,null,null,null,null,null,null,null,null,null,null,null,null,null,null,null,null,null,null,null,null,null,null,null,null,null,null,1]
["ADWR",330338112200201,"C-04-01 23CDB",33.060444444444443,-112.3338611111111,"NAD27","2005-08-24",493.1,null,1345,null,"U",610,610,null,853.9,null,null,null,null,null,null,null,null,null,null,null,null,null,null,null,null,null,null,null,null,null,null,null,null,null,null,null,null,null,null,null,null,null,null,null,null,null,null,null,null,null,null,null,null,null,null,null,null,null,null,null,null,null,null,null,null,null,null,null,null,null,null,null,null,null,null,null,null,null,null,null,null,null,null,null,null,null,null,null,null,null,null,null,null,1]
["ADWR",330338112200201,"C-04-01 23CDB",33.060444444444443,-112.3338611111111,"NAD27","2005-11-17",494.1,null,1345,null,"U",610,610,null,852.9,null,null,null,null,null,null,null,null,null,null,null,null,null,null,null,null,null,null,null,null,null,null,null,null,null,null,null,null,null,null,null,null,null,null,null,null,null,null,null,null,null,null,null,null,null,null,null,null,null,null,null,null,null,null,null,null,null,null,null,null,null,null,null,null,null,null,null,null,null,null,null,null,null,null,null,null,null,null,null,null,null,null,null,null,1]
["ADWR",330338112200201,"C-04-01 23CDB",33.060444444444443,-112.3338611111111,"NAD27","2006-02-16",492.20000000000005,null,1345,null,"U",610,610,null,854.8,null,null,null,null,null,null,null,null,null,null,null,null,null,null,null,null,null,null,null,null,null,null,null,null,null,null,null,null,null,null,null,null,null,null,null,null,null,null,null,null,null,null,null,null,null,null,null,null,null,null,null,null,null,null,null,null,null,null,null,null,null,null,null,null,null,null,null,null,null,null,null,null,null,null,null,null,null,null,null,null,null,null,null,null,1]
[]
["USGS",311739111132601,"D-13-11 16DCA2",32.294166666666662,-111.22388888888889,"NAD27","1961-12-28",404.18,null,2290.09,"NGVD29",null,-9999,-9999,null,null,null,null,null,null,null,null,null,null,null,null,null,null,null,null,null,null,null,null,null,null,null,null,null,null,null,null,null,null,null,null,null,null,null,null,null,null,null,null,null,null,null,null,null,null,null,null,null,null,null,null,null,null,null,null,null,null,null,null,null,null,null,null,null,null,null,null,null,null,null,null,null,null,null,null,null,null,null,null,null,null,null,null,null,null,19611228]
["USGS",311739111132601,"D-13-11 16DCA2",32.294166666666662,-111.22388888888889,"NAD27","1962-12-24",409.3,null,2290.09,"NGVD29",null,-9999,-9999,null,null,null,null,null,null,null,null,null,null,null,null,null,null,null,null,null,null,null,null,null,null,null,null,null,null,null,null,null,null,null,null,null,null,null,null,null,null,null,null,null,null,null,null,null,null,null,null,null,null,null,null,null,null,null,null,null,null,null,null,null,null,null,null,null,null,null,null,null,null,null,null,null,null,null,null,null,null,null,null,null,null,null,null,null,null,19621224]
["USGS",311739111132601,"D-13-11 16DCA2",32.294166666666662,-111.22388888888889,"NAD27","1963-12-20",413.17,null,2290.09,"NGVD29",null,-9999,-9999,null,null,null,null,null,null,null,null,null,null,null,null,null,null,null,null,null,null,null,null,null,null,null,null,null,null,null,null,null,null,null,null,null,null,null,null,null,null,null,null,null,null,null,null,null,null,null,null,null,null,null,null,null,null,null,null,null,null,null,null,null,null,null,null,null,null,null,null,null,null,null,null,null,null,null,null,null,null,null,null,null,null,null,null,null,null,19631220]
["USGS",311739111132601,"D-13-11 16DCA2",32.294166666666662,-111.22388888888889,"NAD27","1964-12-23",417.33,null,2290.09,"NGVD29",null,-9999,-9999,null,null,null,null,null,null,null,null,null,null,null,null,null,null,null,null,null,null,null,null,null,null,null,null,null,null,null,null,null,null,null,null,null,null,null,null,null,null,null,null,null,null,null,null,null,null,null,null,null,null,null,null,null,null,null,null,null,null,null,null,null,null,null,null,null,null,null,null,null,null,null,null,null,null,null,null,null,null,null,null,null,null,null,null,null,null,19641223]
["USGS",311739111132601,"D-13-11 16DCA2",32.294166666666662,-111.22388888888889,"NAD27","1966-12-23",425.9,null,2290.09,"NGVD29",null,-9999,-9999,null,null,null,null,null,null,null,null,null,null,null,null,null,null,null,null,null,null,null,null,null,null,null,null,null,null,null,null,null,null,null,null,null,null,null,null,null,null,null,null,null,null,null,null,null,null,null,null,null,null,null,null,null,null,null,null,null,null,null,null,null,null,null,null,null,null,null,null,null,null,null,null,null,null,null,null,null,null,null,null,null,null,null,null,null,null,19661223]
["USGS",311739111132601,"D-13-11 16DCA2",32.294166666666662,-111.22388888888889,"NAD27","1967-12-27",427.98,null,2290.09,"NGVD29",null,-9999,-9999,null,null,null,null,null,null,null,null,null,null,null,null,null,null,null,null,null,null,null,null,null,null,null,null,null,null,null,null,null,null,null,null,null,null,null,null,null,null,null,null,null,null,null,null,null,null,null,null,null,null,null,null,null,null,null,null,null,null,null,null,null,null,null,null,null,null,null,null,null,null,null,null,null,null,null,null,null,null,null,null,null,null,null,null,null,null,19671227]
["USGS",311739111132601,"D-13-11 16DCA2",32.294166666666662,-111.22388888888889,"NAD27","1969-12-28",434.2,null,2290.09,"NGVD29",null,-9999,-9999,null,null,null,null,null,null,null,null,null,null,null,null,null,null,null,null,null,null,null,null,null,null,null,null,null,null,null,null,null,null,null,null,null,null,null,null,null,null,null,null,null,null,null,null,null,null,null,null,null,null,null,null,null,null,null,null,null,null,null,null,null,null,null,null,null,null,null,null,null,null,null,null,null,null,null,null,null,null,null,null,null,null,null,null,null,null,19691228]
["USGS",311739111132601,"D-13-11 16DCA2",32.294166666666662,-111.22388888888889,"NAD27","1970-01-15",440.8,null,2290.09,"NGVD29",null,-9999,-9999,null,null,null,null,null,null,null,null,null,null,null,null,null,null,null,null,null,null,null,null,null,null,null,null,null,null,null,null,null,null,null,null,null,null,null,null,null,null,null,null,null,null,null,null,null,null,null,null,null,null,null,null,null,null,null,null,null,null,null,null,null,null,null,null,null,null,null,null,null,null,null,null,null,null,null,null,null,null,null,null,null,null,null,null,null,null,197001]
["USGS",311739111132601,"D-13-11 16DCA2",32.294166666666662,-111.22388888888889,"NAD27","1971-03-26",443.1,null,2290.09,"NGVD29",null,-9999,-9999,null,null,null,null,null,null,null,null,null,null,null,null,null,null,null,null,null,null,null,null,null,null,null,null,null,null,null,null,null,null,null,null,null,null,null,null,null,null,null,null,null,null,null,null,null,null,null,null,null,null,null,null,null,null,null,null,null,null,null,null,null,null,null,null,null,null,null,null,null,null,null,null,null,null,null,null,null,null,null,null,null,null,null,null,null,null,19710326]
["USGS",312006110505101,"D-24-15 18DC   UNSURV",31.334999999999997,-110.8475,"NAD27","1981-10-21",6.9,null,3725,"NGVD29","H",93,93,null,null,null,null,null,null,null,null,null,null,null,null,null,null,null,null,null,null,null,null,null,null,null,null,null,null,null,null,null,null,null,null,null,null,null,null,null,null,null,null,null,null,null,null,null,null,null,null,null,null,null,null,null,null,null,null,null,null,null,null,null,null,null,null,null,null,null,null,null,null,null,null,null,null,null,null,null,null,null,null,null,null,null,null,null,null,19811021]
["USGS",312006110505101,"D-24-15 18DC   UNSURV",31.334999999999997,-110.8475,"NAD27","1982-02-23",6.91,null,3725,"NGVD29","H",93,93,null,null,null,null,null,null,null,null,null,null,null,null,null,null,null,null,null,null,null,null,null,null,null,null,null,null,null,null,null,null,null,null,null,null,null,null,null,null,null,null,null,null,null,null,null,null,null,null,null,null,null,null,null,null,null,null,null,null,null,null,null,null,null,null,null,null,null,null,null,null,null,null,null,null,null,null,null,null,null,null,null,null,null,null,null,null,19820223]
["USGS",312006110505101,"D-24-15 18DC   UNSURV",31.334999999999997,-110.8475,"NAD27","1987-12-10",7.2,null,3725,"NGVD29","H",93,93,null,null,null,null,null,null,null,null,null,null,null,null,null,null,null,null,null,null,null,null,null,null,null,null,null,null,null,null,null,null,null,null,null,null,null,null,null,null,null,null,null,null,null,null,null,null,null,null,null,null,null,null,null,null,null,null,null,null,null,null,null,null,null,null,null,null,null,null,null,null,null,null,null,null,null,null,null,null,null,null,null,null,null,null,null,null,19871210]
["ADWR",312006110505101,"D-24-15 18DCB UNSURV",31.335083333333333,-110.84783333333333,"NAD27","1995-01-10",6.6,null,3725,null,"H",93,93,null,null,null,null,null,null,null,null,null,null,null,null,null,null,null,null,null,null,null,null,null,null,null,null,null,null,null,null,null,null,null,null,null,null,null,null,null,null,null,null,null,null,null,null,null,null,null,null,null,null,null,null,null,null,null,null,null,null,null,null,null,null,null,null,null,null,null,null,null,null,null,null,null,null,null,null,null,null,null,null,null,null,null,null,null,null,1]
["ADWR",312006110505101,"D-24-15 18DCB UNSURV",31.335083333333333,-110.84783333333333,"NAD27","1996-12-03",8.3000000000000007,null,3725,null,"H",93,93,null,null,null,null,null,null,null,null,null,null,null,null,null,null,null,null,null,null,null,null,null,null,null,null,null,null,null,null,null,null,null,null,null,null,null,null,null,null,null,null,null,null,null,null,null,null,null,null,null,null,null,null,null,null,null,null,null,null,null,null,null,null,null,null,null,null,null,null,null,null,null,null,null,null,null,null,null,null,null,null,null,null,null,null,null,null,1]
["ADWR",312006110505101,"D-24-15 18DCB UNSURV",31.335083333333333,-110.84783333333333,"NAD27","1997-10-07",9.5,null,3725,null,"H",93,93,null,null,null,null,null,null,null,null,null,null,null,null,null,null,null,null,null,null,null,null,null,null,null,null,null,null,null,null,null,null,null,null,null,null,null,null,null,null,null,null,null,null,null,null,null,null,null,null,null,null,null,null,null,null,null,null,null,null,null,null,null,null,null,null,null,null,null,null,null,null,null,null,null,null,null,null,null,null,null,null,null,null,null,null,null,null,1]
["USGS",312006110505101,"D-24-15 18DC   UNSURV",31.334999999999997,-110.8475,"NAD27","1997-11-05",9.9,null,3725,"NGVD29","H",93,93,null,null,null,null,null,null,null,null,null,null,null,null,null,null,null,null,null,null,null,null,null,null,null,null,null,null,null,null,null,null,null,null,null,null,null,null,null,null,null,null,null,null,null,null,null,null,null,null,null,null,null,null,null,null,null,null,null,null,null,null,null,null,null,null,null,null,null,null,null,null,null,null,null,null,null,null,null,null,null,null,null,null,null,null,null,null,19971105]
["USGS",312006110505101,"D-24-15 18DC   UNSURV",31.334999999999997,-110.8475,"NAD27","1997-11-20",10.3,null,3725,"NGVD29","H",93,93,null,null,null,null,null,null,null,null,null,null,null,null,null,null,null,null,null,null,null,null,null,null,null,null,null,null,null,null,null,null,null,null,null,null,null,null,null,null,null,null,null,null,null,null,null,null,null,null,null,null,null,null,null,null,null,null,null,null,null,null,null,null,null,null,null,null,null,null,null,null,null,null,null,null,null,null,null,null,null,null,null,null,null,null,null,null,19971120]
["USGS",312006110505101,"D-24-15 18DC   UNSURV",31.334999999999997,-110.8475,"NAD27","1997-12-11",10.199999999999999,null,3725,"NGVD29","H",93,93,null,null,null,null,null,null,null,null,null,null,null,null,null,null,null,null,null,null,null,null,null,null,null,null,null,null,null,null,null,null,null,null,null,null,null,null,null,null,null,null,null,null,null,null,null,null,null,null,null,null,null,null,null,null,null,null,null,null,null,null,null,null,null,null,null,null,null,null,null,null,null,null,null,null,null,null,null,null,null,null,null,null,null,null,null,null,19971211]
["USGS",312006110505101,"D-24-15 18DC   UNSURV",31.334999999999997,-110.8475,"NAD27","1998-01-05",11,null,3725,"NGVD29","H",93,93,null,null,null,null,null,null,null,null,null,null,null,null,null,null,null,null,null,null,null,null,null,null,null,null,null,null,null,null,null,null,null,null,null,null,null,null,null,null,null,null,null,null,null,null,null,null,null,null,null,null,null,null,null,null,null,null,null,null,null,null,null,null,null,null,null,null,null,null,null,null,null,null,null,null,null,null,null,null,null,null,null,null,null,null,null,null,19980105]
["USGS",312006110505101,"D-24-15 18DC   UNSURV",31.334999999999997,-110.8475,"NAD27","1998-02-12",7.6,null,3725,"NGVD29","H",93,93,null,null,null,null,null,null,null,null,null,null,null,null,null,null,null,null,null,null,null,null,null,null,null,null,null,null,null,null,null,null,null,null,null,null,null,null,null,null,null,null,null,null,null,null,null,null,null,null,null,null,null,null,null,null,null,null,null,null,null,null,null,null,null,null,null,null,null,null,null,null,null,null,null,null,null,null,null,null,null,null,null,null,null,null,null,null,19980212]
["USGS",312006110505101,"D-24-15 18DC   UNSURV",31.334999999999997,-110.8475,"NAD27","1998-02-13",7.7,null,3725,"NGVD29","H",93,93,null,null,null,null,null,null,null,null,null,null,null,null,null,null,null,null,null,null,null,null,null,null,null,null,null,null,null,null,null,null,null,null,null,null,null,null,null,null,null,null,null,null,null,null,null,null,null,null,null,null,null,null,null,null,null,null,null,null,null,null,null,null,null,null,null,null,null,null,null,null,null,null,null,null,null,null,null,null,null,null,null,null,null,null,null,null,19980213]
["USGS",312006110505101,"D-24-15 18DC   UNSURV",31.334999999999997,-110.8475,"NAD27","1998-03-04",7.6,null,3725,"NGVD29","H",93,93,null,null,null,null,null,null,null,null,null,null,null,null,null,null,null,null,null,null,null,null,null,null,null,null,null,null,null,null,null,null,null,null,null,null,null,null,null,null,null,null,null,null,null,null,null,null,null,null,null,null,null,null,null,null,null,null,null,null,null,null,null,null,null,null,null,null,null,null,null,null,null,null,null,null,null,null,null,null,null,null,null,null,null,null,null,null,19980304]
["ADWR",312006110505101,"D-24-15 18DCB UNSURV",31.335083333333333,-110.84783333333333,"NAD27","1998-11-17",8.8000000000000007,null,3725,null,"H",93,93,null,null,null,null,null,null,null,null,null,null,null,null,null,null,null,null,null,null,null,null,null,null,null,null,null,null,null,null,null,null,null,null,null,null,null,null,null,null,null,null,null,null,null,null,null,null,null,null,null,null,null,null,null,null,null,null,null,null,null,null,null,null,null,null,null,null,null,null,null,null,null,null,null,null,null,null,null,null,null,null,null,null,null,null,null,null,1]
["ADWR",312006110505101,"D-24-15 18DCB UNSURV",31.335083333333333,-110.84783333333333,"NAD27","1999-11-16",10.8,null,3725,null,"H",93,93,null,null,null,null,null,null,null,null,null,null,null,null,null,null,null,null,null,null,null,null,null,null,null,null,null,null,null,null,null,null,null,null,null,null,null,null,null,null,null,null,null,null,null,null,null,null,null,null,null,null,null,null,null,null,null,null,null,null,null,null,null,null,null,null,null,null,null,null,null,null,null,null,null,null,null,null,null,null,null,null,null,null,null,null,null,null,1]
["ADWR",312006110505101,"D-24-15 18DCB UNSURV",31.335083333333333,-110.84783333333333,"NAD27","2005-02-16",14.7,null,3725,null,"H",93,93,null,null,null,null,null,null,null,null,null,null,null,null,null,null,null,null,null,null,null,null,null,null,null,null,null,null,null,null,null,null,null,null,null,null,null,null,null,null,null,null,null,null,null,null,null,null,null,null,null,null,null,null,null,null,null,null,null,null,null,null,null,null,null,null,null,null,null,null,null,null,null,null,null,null,null,null,null,null,null,null,null,null,null,null,null,null,1]
["ADWR",312006110505101,"D-24-15 18DCB UNSURV",31.335083333333333,-110.84783333333333,"NAD27","2007-03-28",10.199999999999999,null,3725,null,"H",93,93,null,null,null,null,null,null,null,null,null,null,null,null,null,null,null,null,null,null,null,null,null,null,null,null,null,null,null,null,null,null,null,null,null,null,null,null,null,null,null,null,null,null,null,null,null,null,null,null,null,null,null,null,null,null,null,null,null,null,null,null,null,null,null,null,null,null,null,null,null,null,null,null,null,null,null,null,null,null,null,null,null,null,null,null,null,null,1]
[]
["USGS",312017110573001,"D-24-14 18CBC",31.338888888888889,-110.95722222222223,"NAD27","1982-02-18",233.8,null,3960,"NGVD29","P",500,500,null,null,null,null,null,null,null,null,null,null,null,null,null,null,null,null,null,null,null,null,null,null,null,null,null,null,null,null,null,null,null,null,null,null,null,null,null,null,null,null,null,null,null,null,null,null,null,null,null,null,null,null,null,null,null,null,null,null,null,null,null,null,null,null,null,null,null,null,null,null,null,null,null,null,null,null,null,null,null,null,null,null,null,null,null,null,19820218]
["USGS",312017110573001,"D-24-14 18CBC",31.338888888888889,-110.95722222222223,"NAD27","1983-12-21",245.9,null,3960,"NGVD29","P",500,500,null,null,null,null,null,null,null,null,null,null,null,null,null,null,null,null,null,null,null,null,null,null,null,null,null,null,null,null,null,null,null,null,null,null,null,null,null,null,null,null,null,null,null,null,null,null,null,null,null,null,null,null,null,null,null,null,null,null,null,null,null,null,null,null,null,null,null,null,null,null,null,null,null,null,null,null,null,null,null,null,null,null,null,null,null,null,19831221]
["USGS",312017110573001,"D-24-14 18CBC",31.338888888888889,-110.95722222222223,"NAD27","1984-12-11",221.6,null,3960,"NGVD29","P",500,500,null,null,null,null,null,null,null,null,null,null,null,null,null,null,null,null,null,null,null,null,null,null,null,null,null,null,null,null,null,null,null,null,null,null,null,null,null,null,null,null,null,null,null,null,null,null,null,null,null,null,null,null,null,null,null,null,null,null,null,null,null,null,null,null,null,null,null,null,null,null,null,null,null,null,null,null,null,null,null,null,null,null,null,null,null,null,19841211]
["USGS",312017110573001,"D-24-14 18CBC",31.338888888888889,-110.95722222222223,"NAD27","1985-06-19",217.6,null,3960,"NGVD29","P",500,500,null,null,null,null,null,null,null,null,null,null,null,null,null,null,null,null,null,null,null,null,null,null,null,null,null,null,null,null,null,null,null,null,null,null,null,null,null,null,null,null,null,null,null,null,null,null,null,null,null,null,null,null,null,null,null,null,null,null,null,null,null,null,null,null,null,null,null,null,null,null,null,null,null,null,null,null,null,null,null,null,null,null,null,null,null,null,19850619]
["USGS",312017110573001,"D-24-14 18CBC",31.338888888888889,-110.95722222222223,"NAD27","1985-12-02",216.1,null,3960,"NGVD29","P",500,500,null,null,null,null,null,null,null,null,null,null,null,null,null,null,null,null,null,null,null,null,null,null,null,null,null,null,null,null,null,null,null,null,null,null,null,null,null,null,null,null,null,null,null,null,null,null,null,null,null,null,null,null,null,null,null,null,null,null,null,null,null,null,null,null,null,null,null,null,null,null,null,null,null,null,null,null,null,null,null,null,null,null,null,null,null,null,19851202]
["USGS",312017110573001,"D-24-14 18CBC",31.338888888888889,-110.95722222222223,"NAD27","1986-05-28",214.3,null,3960,"NGVD29","P",500,500,null,null,null,null,null,null,null,null,null,null,null,null,null,null,null,null,null,null,null,null,null,null,null,null,null,null,null,null,null,null,null,null,null,null,null,null,null,null,null,null,null,null,null,null,null,null,null,null,null,null,null,null,null,null,null,null,null,null,null,null,null,null,null,null,null,null,null,null,null,null,null,null,null,null,null,null,null,null,null,null,null,null,null,null,null,null,19860528]
["USGS",312017110573001,"D-24-14 18CBC",31.338888888888889,-110.95722222222223,"NAD27","1986-12-09",210.7,null,3960,"NGVD29","P",500,500,null,null,null,null,null,null,null,null,null,null,null,null,null,null,null,null,null,null,null,null,null,null,null,null,null,null,null,null,null,null,null,null,null,null,null,null,null,null,null,null,null,null,null,null,null,null,null,null,null,null,null,null,null,null,null,null,null,null,null,null,null,null,null,null,null,null,null,null,null,null,null,null,null,null,null,null,null,null,null,null,null,null,null,null,null,null,19861209]
["USGS",312017110573001,"D-24-14 18CBC",31.338888888888889,-110.95722222222223,"NAD27","1987-06-09",209.4,null,3960,"NGVD29","P",500,500,null,null,null,null,null,null,null,null,null,null,null,null,null,null,null,null,null,null,null,null,null,null,null,null,null,null,null,null,null,null,null,null,null,null,null,null,null,null,null,null,null,null,null,null,null,null,null,null,null,null,null,null,null,null,null,null,null,null,null,null,null,null,null,null,null,null,null,null,null,null,null,null,null,null,null,null,null,null,null,null,null,null,null,null,null,null,19870609]
["USGS",312017110573001,"D-24-14 18CBC",31.338888888888889,-110.95722222222223,"NAD27","1987-12-10",209.6,null,3960,"NGVD29","P",500,500,null,null,null,null,null,null,null,null,null,null,null,null,null,null,null,null,null,null,null,null,null,null,null,null,null,null,null,null,null,null,null,null,null,null,null,null,null,null,null,null,null,null,null,null,null,null,null,null,null,null,null,null,null,null,null,null,null,null,null,null,null,null,null,null,null,null,null,null,null,null,null,null,null,null,null,null,null,null,null,null,null,null,null,null,null,null,19871210]
["USGS",312017110573001,"D-24-14 18CBC",31.338888888888889,-110.95722222222223,"NAD27","1988-06-06",210.4,null,3960,"NGVD29","P",500,500,null,null,null,null,null,null,null,null,null,null,null,null,null,null,null,null,null,null,null,null,null,null,null,null,null,null,null,null,null,null,null,null,null,null,null,null,null,null,null,null,null,null,null,null,null,null,null,null,null,null,null,null,null,null,null,null,null,null,null,null,null,null,null,null,null,null,null,null,null,null,null,null,null,null,null,null,null,null,null,null,null,null,null,null,null,null,19880606]
["USGS",312017110573001,"D-24-14 18CBC",31.338888888888889,-110.95722222222223,"NAD27","1988-12-08",207.6,null,3960,"NGVD29","P",500,500,null,null,null,null,null,null,null,null,null,null,null,null,null,null,null,null,null,null,null,null,null,null,null,null,null,null,null,null,null,null,null,null,null,null,null,null,null,null,null,null,null,null,null,null,null,null,null,null,null,null,null,null,null,null,null,null,null,null,null,null,null,null,null,null,null,null,null,null,null,null,null,null,null,null,null,null,null,null,null,null,null,null,null,null,null,null,19881208]
["USGS",312017110573001,"D-24-14 18CBC",31.338888888888889,-110.95722222222223,"NAD27","1989-11-27",210,null,3960,"NGVD29","P",500,500,null,null,null,null,null,null,null,null,null,null,null,null,null,null,null,null,null,null,null,null,null,null,null,null,null,null,null,null,null,null,null,null,null,null,null,null,null,null,null,null,null,null,null,null,null,null,null,null,null,null,null,null,null,null,null,null,null,null,null,null,null,null,null,null,null,null,null,null,null,null,null,null,null,null,null,null,null,null,null,null,null,null,null,null,null,null,19891127]
["USGS",312017110573001,"D-24-14 18CBC",31.338888888888889,-110.95722222222223,"NAD27","1990-12-12",205.8,null,3960,"NGVD29","P",500,500,null,null,null,null,null,null,null,null,null,null,null,null,null,null,null,null,null,null,null,null,null,null,null,null,null,null,null,null,null,null,null,null,null,null,null,null,null,null,null,null,null,null,null,null,null,null,null,null,null,null,null,null,null,null,null,null,null,null,null,null,null,null,null,null,null,null,null,null,null,null,null,null,null,null,null,null,null,null,null,null,null,null,null,null,null,null,19901212]
["USGS",312017110573001,"D-24-14 18CBC",31.338888888888889,-110.95722222222223,"NAD27","1991-12-10",204.5,null,3960,"NGVD29","P",500,500,null,null,null,null,null,null,null,null,null,null,null,null,null,null,null,null,null,null,null,null,null,null,null,null,null,null,null,null,null,null,null,null,null,null,null,null,null,null,null,null,null,null,null,null,null,null,null,null,null,null,null,null,null,null,null,null,null,null,null,null,null,null,null,null,null,null,null,null,null,null,null,null,null,null,null,null,null,null,null,null,null,null,null,null,null,null,19911210]
["USGS",312017110573001,"D-24-14 18CBC",31.338888888888889,-110.95722222222223,"NAD27","1992-12-02",203.4,null,3960,"NGVD29","P",500,500,null,null,null,null,null,null,null,null,null,null,null,null,null,null,null,null,null,null,null,null,null,null,null,null,null,null,null,null,null,null,null,null,null,null,null,null,null,null,null,null,null,null,null,null,null,null,null,null,null,null,null,null,null,null,null,null,null,null,null,null,null,null,null,null,null,null,null,null,null,null,null,null,null,null,null,null,null,null,null,null,null,null,null,null,null,null,19921202]
["USGS",312017110573001,"D-24-14 18CBC",31.338888888888889,-110.95722222222223,"NAD27","1993-12-08",201.4,null,3960,"NGVD29","P",500,500,null,null,null,null,null,null,null,null,null,null,null,null,null,null,null,null,null,null,null,null,null,null,null,null,null,null,null,null,null,null,null,null,null,null,null,null,null,null,null,null,null,null,null,null,null,null,null,null,null,null,null,null,null,null,null,null,null,null,null,null,null,null,null,null,null,null,null,null,null,null,null,null,null,null,null,null,null,null,null,null,null,null,null,null,null,null,19931208]
["USGS",312017110573001,"D-24-14 18CBC",31.338888888888889,-110.95722222222223,"NAD27","1995-01-09",200.3,null,3960,"NGVD29","P",500,500,null,null,null,null,null,null,null,null,null,null,null,null,null,null,null,null,null,null,null,null,null,null,null,null,null,null,null,null,null,null,null,null,null,null,null,null,null,null,null,null,null,null,null,null,null,null,null,null,null,null,null,null,null,null,null,null,null,null,null,null,null,null,null,null,null,null,null,null,null,null,null,null,null,null,null,null,null,null,null,null,null,null,null,null,null,null,19950109]
["USGS",312017110573001,"D-24-14 18CBC",31.338888888888889,-110.95722222222223,"NAD27","1995-11-29",199.5,null,3960,"NGVD29","P",500,500,null,null,null,null,null,null,null,null,null,null,null,null,null,null,null,null,null,null,null,null,null,null,null,null,null,null,null,null,null,null,null,null,null,null,null,null,null,null,null,null,null,null,null,null,null,null,null,null,null,null,null,null,null,null,null,null,null,null,null,null,null,null,null,null,null,null,null,null,null,null,null,null,null,null,null,null,null,null,null,null,null,null,null,null,null,null,19951129]
["USGS",312017110573001,"D-24-14 18CBC",31.338888888888889,-110.95722222222223,"NAD27","1996-12-03",198.9,null,3960,"NGVD29","P",500,500,null,null,null,null,null,null,null,null,null,null,null,null,null,null,null,null,null,null,null,null,null,null,null,null,null,null,null,null,null,null,null,null,null,null,null,null,null,null,null,null,null,null,null,null,null,null,null,null,null,null,null,null,null,null,null,null,null,null,null,null,null,null,null,null,null,null,null,null,null,null,null,null,null,null,null,null,null,null,null,null,null,null,null,null,null,null,19961203]
["USGS",312017110573001,"D-24-14 18CBC",31.338888888888889,-110.95722222222223,"NAD27","1997-11-05",198.8,null,3960,"NGVD29","P",500,500,null,null,null,null,null,null,null,null,null,null,null,null,null,null,null,null,null,null,null,null,null,null,null,null,null,null,null,null,null,null,null,null,null,null,null,null,null,null,null,null,null,null,null,null,null,null,null,null,null,null,null,null,null,null,null,null,null,null,null,null,null,null,null,null,null,null,null,null,null,null,null,null,null,null,null,null,null,null,null,null,null,null,null,null,null,null,19971105]
["USGS",312017110573001,"D-24-14 18CBC",31.338888888888889,-110.95722222222223,"NAD27","1998-10-22",199.6,null,3960,"NGVD29","P",500,500,null,null,null,null,null,null,null,null,null,null,null,null,null,null,null,null,null,null,null,null,null,null,null,null,null,null,null,null,null,null,null,null,null,null,null,null,null,null,null,null,null,null,null,null,null,null,null,null,null,null,null,null,null,null,null,null,null,null,null,null,null,null,null,null,null,null,null,null,null,null,null,null,null,null,null,null,null,null,null,null,null,null,null,null,null,null,19981022]
["USGS",312017110573001,"D-24-14 18CBC",31.338888888888889,-110.95722222222223,"NAD27","1999-11-17",198.1,null,3960,"NGVD29","P",500,500,null,null,null,null,null,null,null,null,null,null,null,null,null,null,null,null,null,null,null,null,null,null,null,null,null,null,null,null,null,null,null,null,null,null,null,null,null,null,null,null,null,null,null,null,null,null,null,null,null,null,null,null,null,null,null,null,null,null,null,null,null,null,null,null,null,null,null,null,null,null,null,null,null,null,null,null,null,null,null,null,null,null,null,null,null,null,19991117]
["USGS",312017110573001,"D-24-14 18CBC",31.338888888888889,-110.95722222222223,"NAD27","2001-02-14",197.9,null,3960,"NGVD29","P",500,500,null,null,null,null,null,null,null,null,null,null,null,null,null,null,null,null,null,null,null,null,null,null,null,null,null,null,null,null,null,null,null,null,null,null,null,null,null,null,null,null,null,null,null,null,null,null,null,null,null,null,null,null,null,null,null,null,null,null,null,null,null,null,null,null,null,null,null,null,null,null,null,null,null,null,null,null,null,null,null,null,null,null,null,null,null,null,20010214]
["USGS",312017110573001,"D-24-14 18CBC",31.338888888888889,-110.95722222222223,"NAD27","2001-10-25",198,null,3960,"NGVD29","P",500,500,null,null,null,null,null,null,null,null,null,null,null,null,null,null,null,null,null,null,null,null,null,null,null,null,null,null,null,null,null,null,null,null,null,null,null,null,null,null,null,null,null,null,null,null,null,null,null,null,null,null,null,null,null,null,null,null,null,null,null,null,null,null,null,null,null,null,null,null,null,null,null,null,null,null,null,null,null,null,null,null,null,null,null,null,null,null,20011025]
["USGS",312017110573001,"D-24-14 18CBC",31.338888888888889,-110.95722222222223,"NAD27","2003-01-17",197.89,null,3960,"NGVD29","P",500,500,null,null,null,null,null,null,null,null,null,null,null,null,null,null,null,null,null,null,null,null,null,null,null,null,null,null,null,null,null,null,null,null,null,null,null,null,null,null,null,null,null,null,null,null,null,null,null,null,null,null,null,null,null,null,null,null,null,null,null,null,null,null,null,null,null,null,null,null,null,null,null,null,null,null,null,null,null,null,null,null,null,null,null,null,null,null,20030117]
["USGS",312017110573001,"D-24-14 18CBC",31.338888888888889,-110.95722222222223,"NAD27","2003-10-22",198.5,null,3960,"NGVD29","P",500,500,null,null,null,null,null,null,null,null,null,null,null,null,null,null,null,null,null,null,null,null,null,null,null,null,null,null,null,null,null,null,null,null,null,null,null,null,null,null,null,null,null,null,null,null,null,null,null,null,null,null,null,null,null,null,null,null,null,null,null,null,null,null,null,null,null,null,null,null,null,null,null,null,null,null,null,null,null,null,null,null,null,null,null,null,null,null,20031022]
["USGS",312017110573001,"D-24-14 18CBC",31.338888888888889,-110.95722222222223,"NAD27","2004-10-21",200.1,null,3960,"NGVD29","P",500,500,null,null,null,null,null,null,null,null,null,null,null,null,null,null,null,null,null,null,null,null,null,null,null,null,null,null,null,null,null,null,null,null,null,null,null,null,null,null,null,null,null,null,null,null,null,null,null,null,null,null,null,null,null,null,null,null,null,null,null,null,null,null,null,null,null,null,null,null,null,null,null,null,null,null,null,null,null,null,null,null,null,null,null,null,null,null,20041021]
["USGS",312017110573001,"D-24-14 18CBC",31.338888888888889,-110.95722222222223,"NAD27","2005-02-17",200.5,null,3960,"NGVD29","P",500,500,null,null,null,null,null,null,null,null,null,null,null,null,null,null,null,null,null,null,null,null,null,null,null,null,null,null,null,null,null,null,null,null,null,null,null,null,null,null,null,null,null,null,null,null,null,null,null,null,null,null,null,null,null,null,null,null,null,null,null,null,null,null,null,null,null,null,null,null,null,null,null,null,null,null,null,null,null,null,null,null,null,null,null,null,null,null,20050217]
["USGS",312017110573001,"D-24-14 18CBC",31.338888888888889,-110.95722222222223,"NAD27","2005-10-26",199.9,null,3960,"NGVD29","P",500,500,null,null,null,null,null,null,null,null,null,null,null,null,null,null,null,null,null,null,null,null,null,null,null,null,null,null,null,null,null,null,null,null,null,null,null,null,null,null,null,null,null,null,null,null,null,null,null,null,null,null,null,null,null,null,null,null,null,null,null,null,null,null,null,null,null,null,null,null,null,null,null,null,null,null,null,null,null,null,null,null,null,null,null,null,null,null,20051026]
["USGS",312017110573001,"D-24-14 18CBC",31.338888888888889,-110.95722222222223,"NAD27","2007-01-18",200.9,null,3960,"NGVD29","P",500,500,null,null,null,null,null,null,null,null,null,null,null,null,null,null,null,null,null,null,null,null,null,null,null,null,null,null,null,null,null,null,null,null,null,null,null,null,null,null,null,null,null,null,null,null,null,null,null,null,null,null,null,null,null,null,null,null,null,null,null,null,null,null,null,null,null,null,null,null,null,null,null,null,null,null,null,null,null,null,null,null,null,null,null,null,null,null,20070118]
["ADWR",312017110573001,"D-24-14 18CBC",31.338805555555556,-110.95744444444445,"NAD27","2008-01-09",202,null,3960,null,"P",500,500,null,null,null,null,null,null,null,null,null,null,null,null,null,null,null,null,null,null,null,null,null,null,null,null,null,null,null,null,null,null,null,null,null,null,null,null,null,null,null,null,null,null,null,null,null,null,null,null,null,null,null,null,null,null,null,null,null,null,null,null,null,null,null,null,null,null,null,null,null,null,null,null,null,null,null,null,null,null,null,null,null,null,null,null,null,null,1]
["USGS",312027110485501,"D-24-15 16DB   UNSURV",31.340833333333332,-110.81527777777778,"NAD27","1981-10-21",76.25,null,3875,"NGVD29","S",703,703,null,null,null,null,null,null,null,null,null,null,null,null,null,null,null,null,null,null,null,null,null,null,null,null,null,null,null,null,null,null,null,null,null,null,null,null,null,null,null,null,null,null,null,null,null,null,null,null,null,null,null,null,null,null,null,null,null,null,null,null,null,null,null,null,null,null,null,null,null,null,null,null,null,null,null,null,null,null,null,null,null,null,null,null,null,null,19811021]
["USGS",312027110485501,"D-24-15 16DB   UNSURV",31.340833333333332,-110.81527777777778,"NAD27","1982-02-23",75.099999999999994,null,3875,"NGVD29","S",703,703,null,null,null,null,null,null,null,null,null,null,null,null,null,null,null,null,null,null,null,null,null,null,null,null,null,null,null,null,null,null,null,null,null,null,null,null,null,null,null,null,null,null,null,null,null,null,null,null,null,null,null,null,null,null,null,null,null,null,null,null,null,null,null,null,null,null,null,null,null,null,null,null,null,null,null,null,null,null,null,null,null,null,null,null,null,null,19820223]
["USGS",312027110485501,"D-24-15 16DB   UNSURV",31.340833333333332,-110.81527777777778,"NAD27","1987-12-10",68.8,null,3875,"NGVD29","S",703,703,null,null,null,null,null,null,null,null,null,null,null,null,null,null,null,null,null,null,null,null,null,null,null,null,null,null,null,null,null,null,null,null,null,null,null,null,null,null,null,null,null,null,null,null,null,null,null,null,null,null,null,null,null,null,null,null,null,null,null,null,null,null,null,null,null,null,null,null,null,null,null,null,null,null,null,null,null,null,null,null,null,null,null,null,null,null,19871210]
["ADWR",312027110485501,"D-24-15 16DBB UNSURV",31.340916666666665,-110.81588888888889,"NAD27","1995-01-10",72.099999999999994,null,3875,null,"S",703,703,null,null,null,null,null,null,null,null,null,null,null,null,null,null,null,null,null,null,null,null,null,null,null,null,null,null,null,null,null,null,null,null,null,null,null,null,null,null,null,null,null,null,null,null,null,null,null,null,null,null,null,null,null,null,null,null,null,null,null,null,null,null,null,null,null,null,null,null,null,null,null,null,null,null,null,null,null,null,null,null,null,null,null,null,null,null,1]
["ADWR",312027110485501,"D-24-15 16DBB UNSURV",31.340916666666665,-110.81588888888889,"NAD27","2000-03-01",76.7,"P",3875,null,"S",703,703,null,null,null,null,null,null,null,null,null,null,null,null,null,null,null,null,null,null,null,null,null,null,null,null,null,null,null,null,null,null,null,null,null,null,null,null,null,null,null,null,null,null,null,null,null,null,null,null,null,null,null,null,null,null,null,null,null,null,null,null,null,null,null,null,null,null,null,null,null,null,null,null,null,null,null,null,null,null,null,null,null,null,null,null,null,null,1]
["ADWR",312027110485501,"D-24-15 16DBB UNSURV",31.340916666666665,-110.81588888888889,"NAD27","2005-02-16",76.900000000000006,null,3875,null,"S",703,703,null,null,null,null,null,null,null,null,null,null,null,null,null,null,null,null,null,null,null,null,null,null,null,null,null,null,null,null,null,null,null,null,null,null,null,null,null,null,null,null,null,null,null,null,null,null,null,null,null,null,null,null,null,null,null,null,null,null,null,null,null,null,null,null,null,null,null,null,null,null,null,null,null,null,null,null,null,null,null,null,null,null,null,null,null,null,1]
["USGS",312037110510101,"D-24-15 18BDA2 UNSURV",31.343611111111109,-110.85027777777778,"NAD27","1948-06-11",8.9,null,3713,"NGVD29","U",47,47,null,null,null,null,null,null,null,null,null,null,null,null,null,null,null,null,null,null,null,null,null,null,null,null,null,null,null,null,null,null,null,null,null,null,null,null,null,null,null,null,null,null,null,null,null,null,null,null,null,null,null,null,null,null,null,null,null,null,null,null,null,null,null,null,null,null,null,null,null,null,null,null,null,null,null,null,null,null,null,null,null,null,null,null,null,null,19480611]
["USGS",312037110510101,"D-24-15 18BDA2 UNSURV",31.343611111111109,-110.85027777777778,"NAD27","1948-08-24",7.1,null,3713,"NGVD29","U",47,47,null,null,null,null,null,null,null,null,null,null,null,null,null,null,null,null,null,null,null,null,null,null,null,null,null,null,null,null,null,null,null,null,null,null,null,null,null,null,null,null,null,null,null,null,null,null,null,null,null,null,null,null,null,null,null,null,null,null,null,null,null,null,null,null,null,null,null,null,null,null,null,null,null,null,null,null,null,null,null,null,null,null,null,null,null,null,19480824]
["USGS",312037110510101,"D-24-15 18BDA2 UNSURV",31.343611111111109,-110.85027777777778,"NAD27","1948-10-26",7.35,null,3713,"NGVD29","U",47,47,null,null,null,null,null,null,null,null,null,null,null,null,null,null,null,null,null,null,null,null,null,null,null,null,null,null,null,null,null,null,null,null,null,null,null,null,null,null,null,null,null,null,null,null,null,null,null,null,null,null,null,null,null,null,null,null,null,null,null,null,null,null,null,null,null,null,null,null,null,null,null,null,null,null,null,null,null,null,null,null,null,null,null,null,null,null,19481026]
["USGS",312037110510101,"D-24-15 18BDA2 UNSURV",31.343611111111109,-110.85027777777778,"NAD27","1948-11-24",7.2,null,3713,"NGVD29","U",47,47,null,null,null,null,null,null,null,null,null,null,null,null,null,null,null,null,null,null,null,null,null,null,null,null,null,null,null,null,null,null,null,null,null,null,null,null,null,null,null,null,null,null,null,null,null,null,null,null,null,null,null,null,null,null,null,null,null,null,null,null,null,null,null,null,null,null,null,null,null,null,null,null,null,null,null,null,null,null,null,null,null,null,null,null,null,null,19481124]
["USGS",312037110510101,"D-24-15 18BDA2 UNSURV",31.343611111111109,-110.85027777777778,"NAD27","1949-01-18",6.88,null,3713,"NGVD29","U",47,47,null,null,null,null,null,null,null,null,null,null,null,null,null,null,null,null,null,null,null,null,null,null,null,null,null,null,null,null,null,null,null,null,null,null,null,null,null,null,null,null,null,null,null,null,null,null,null,null,null,null,null,null,null,null,null,null,null,null,null,null,null,null,null,null,null,null,null,null,null,null,null,null,null,null,null,null,null,null,null,null,null,null,null,null,null,null,19490118]
["USGS",312037110510101,"D-24-15 18BDA2 UNSURV",31.343611111111109,-110.85027777777778,"NAD27","1949-03-30",6.76,null,3713,"NGVD29","U",47,47,null,null,null,null,null,null,null,null,null,null,null,null,null,null,null,null,null,null,null,null,null,null,null,null,null,null,null,null,null,null,null,null,null,null,null,null,null,null,null,null,null,null,null,null,null,null,null,null,null,null,null,null,null,null,null,null,null,null,null,null,null,null,null,null,null,null,null,null,null,null,null,null,null,null,null,null,null,null,null,null,null,null,null,null,null,null,19490330]
["USGS",312037110510101,"D-24-15 18BDA2 UNSURV",31.343611111111109,-110.85027777777778,"NAD27","1949-07-27",7.06,null,3713,"NGVD29","U",47,47,null,null,null,null,null,null,null,null,null,null,null,null,null,null,null,null,null,null,null,null,null,null,null,null,null,null,null,null,null,null,null,null,null,null,null,null,null,null,null,null,null,null,null,null,null,null,null,null,null,null,null,null,null,null,null,null,null,null,null,null,null,null,null,null,null,null,null,null,null,null,null,null,null,null,null,null,null,null,null,null,null,null,null,null,null,null,19490727]
["USGS",312037110510101,"D-24-15 18BDA2 UNSURV",31.343611111111109,-110.85027777777778,"NAD27","1949-09-27",7.78,null,3713,"NGVD29","U",47,47,null,null,null,null,null,null,null,null,null,null,null,null,null,null,null,null,null,null,null,null,null,null,null,null,null,null,null,null,null,null,null,null,null,null,null,null,null,null,null,null,null,null,null,null,null,null,null,null,null,null,null,null,null,null,null,null,null,null,null,null,null,null,null,null,null,null,null,null,null,null,null,null,null,null,null,null,null,null,null,null,null,null,null,null,null,null,19490927]
["USGS",312037110510101,"D-24-15 18BDA2 UNSURV",31.343611111111109,-110.85027777777778,"NAD27","1949-12-15",7.74,null,3713,"NGVD29","U",47,47,null,null,null,null,null,null,null,null,null,null,null,null,null,null,null,null,null,null,null,null,null,null,null,null,null,null,null,null,null,null,null,null,null,null,null,null,null,null,null,null,null,null,null,null,null,null,null,null,null,null,null,null,null,null,null,null,null,null,null,null,null,null,null,null,null,null,null,null,null,null,null,null,null,null,null,null,null,null,null,null,null,null,null,null,null,null,19491215]
["USGS",312037110510101,"D-24-15 18BDA2 UNSURV",31.343611111111109,-110.85027777777778,"NAD27","1950-01-09",7.81,null,3713,"NGVD29","U",47,47,null,null,null,null,null,null,null,null,null,null,null,null,null,null,null,null,null,null,null,null,null,null,null,null,null,null,null,null,null,null,null,null,null,null,null,null,null,null,null,null,null,null,null,null,null,null,null,null,null,null,null,null,null,null,null,null,null,null,null,null,null,null,null,null,null,null,null,null,null,null,null,null,null,null,null,null,null,null,null,null,null,null,null,null,null,null,19500109]
["USGS",312037110510101,"D-24-15 18BDA2 UNSURV",31.343611111111109,-110.85027777777778,"NAD27","1950-05-25",8.01,null,3713,"NGVD29","U",47,47,null,null,null,null,null,null,null,null,null,null,null,null,null,null,null,null,null,null,null,null,null,null,null,null,null,null,null,null,null,null,null,null,null,null,null,null,null,null,null,null,null,null,null,null,null,null,null,null,null,null,null,null,null,null,null,null,null,null,null,null,null,null,null,null,null,null,null,null,null,null,null,null,null,null,null,null,null,null,null,null,null,null,null,null,null,null,19500525]
["USGS",312037110510101,"D-24-15 18BDA2 UNSURV",31.343611111111109,-110.85027777777778,"NAD27","1950-07-12",6.8,null,3713,"NGVD29","U",47,47,null,null,null,null,null,null,null,null,null,null,null,null,null,null,null,null,null,null,null,null,null,null,null,null,null,null,null,null,null,null,null,null,null,null,null,null,null,null,null,null,null,null,null,null,null,null,null,null,null,null,null,null,null,null,null,null,null,null,null,null,null,null,null,null,null,null,null,null,null,null,null,null,null,null,null,null,null,null,null,null,null,null,null,null,null,null,19500712]
["USGS",312037110510101,"D-24-15 18BDA2 UNSURV",31.343611111111109,-110.85027777777778,"NAD27","1950-08-28",6.95,null,3713,"NGVD29","U",47,47,null,null,null,null,null,null,null,null,null,null,null,null,null,null,null,null,null,null,null,null,null,null,null,null,null,null,null,null,null,null,null,null,null,null,null,null,null,null,null,null,null,null,null,null,null,null,null,null,null,null,null,null,null,null,null,null,null,null,null,null,null,null,null,null,null,null,null,null,null,null,null,null,null,null,null,null,null,null,null,null,null,null,null,null,null,null,19500828]
["USGS",312037110510101,"D-24-15 18BDA2 UNSURV",31.343611111111109,-110.85027777777778,"NAD27","1950-09-25",7.06,null,3713,"NGVD29","U",47,47,null,null,null,null,null,null,null,null,null,null,null,null,null,null,null,null,null,null,null,null,null,null,null,null,null,null,null,null,null,null,null,null,null,null,null,null,null,null,null,null,null,null,null,null,null,null,null,null,null,null,null,null,null,null,null,null,null,null,null,null,null,null,null,null,null,null,null,null,null,null,null,null,null,null,null,null,null,null,null,null,null,null,null,null,null,null,19500925]
["USGS",312037110510101,"D-24-15 18BDA2 UNSURV",31.343611111111109,-110.85027777777778,"NAD27","1950-11-30",6.89,null,3713,"NGVD29","U",47,47,null,null,null,null,null,null,null,null,null,null,null,null,null,null,null,null,null,null,null,null,null,null,null,null,null,null,null,null,null,null,null,null,null,null,null,null,null,null,null,null,null,null,null,null,null,null,null,null,null,null,null,null,null,null,null,null,null,null,null,null,null,null,null,null,null,null,null,null,null,null,null,null,null,null,null,null,null,null,null,null,null,null,null,null,null,null,19501130]
["USGS",312037110510101,"D-24-15 18BDA2 UNSURV",31.343611111111109,-110.85027777777778,"NAD27","1951-01-18",6.79,null,3713,"NGVD29","U",47,47,null,null,null,null,null,null,null,null,null,null,null,null,null,null,null,null,null,null,null,null,null,null,null,null,null,null,null,null,null,null,null,null,null,null,null,null,null,null,null,null,null,null,null,null,null,null,null,null,null,null,null,null,null,null,null,null,null,null,null,null,null,null,null,null,null,null,null,null,null,null,null,null,null,null,null,null,null,null,null,null,null,null,null,null,null,null,19510118]
["USGS",312037110510101,"D-24-15 18BDA2 UNSURV",31.343611111111109,-110.85027777777778,"NAD27","1951-03-01",6.83,null,3713,"NGVD29","U",47,47,null,null,null,null,null,null,null,null,null,null,null,null,null,null,null,null,null,null,null,null,null,null,null,null,null,null,null,null,null,null,null,null,null,null,null,null,null,null,null,null,null,null,null,null,null,null,null,null,null,null,null,null,null,null,null,null,null,null,null,null,null,null,null,null,null,null,null,null,null,null,null,null,null,null,null,null,null,null,null,null,null,null,null,null,null,null,19510301]
["USGS",312037110510101,"D-24-15 18BDA2 UNSURV",31.343611111111109,-110.85027777777778,"NAD27","1951-04-25",7,null,3713,"NGVD29","U",47,47,null,null,null,null,null,null,null,null,null,null,null,null,null,null,null,null,null,null,null,null,null,null,null,null,null,null,null,null,null,null,null,null,null,null,null,null,null,null,null,null,null,null,null,null,null,null,null,null,null,null,null,null,null,null,null,null,null,null,null,null,null,null,null,null,null,null,null,null,null,null,null,null,null,null,null,null,null,null,null,null,null,null,null,null,null,null,19510425]
["USGS",312037110510101,"D-24-15 18BDA2 UNSURV",31.343611111111109,-110.85027777777778,"NAD27","1951-05-24",7.1,null,3713,"NGVD29","U",47,47,null,null,null,null,null,null,null,null,null,null,null,null,null,null,null,null,null,null,null,null,null,null,null,null,null,null,null,null,null,null,null,null,null,null,null,null,null,null,null,null,null,null,null,null,null,null,null,null,null,null,null,null,null,null,null,null,null,null,null,null,null,null,null,null,null,null,null,null,null,null,null,null,null,null,null,null,null,null,null,null,null,null,null,null,null,null,19510524]
["USGS",312037110510101,"D-24-15 18BDA2 UNSURV",31.343611111111109,-110.85027777777778,"NAD27","1951-09-05",7,null,3713,"NGVD29","U",47,47,null,null,null,null,null,null,null,null,null,null,null,null,null,null,null,null,null,null,null,null,null,null,null,null,null,null,null,null,null,null,null,null,null,null,null,null,null,null,null,null,null,null,null,null,null,null,null,null,null,null,null,null,null,null,null,null,null,null,null,null,null,null,null,null,null,null,null,null,null,null,null,null,null,null,null,null,null,null,null,null,null,null,null,null,null,null,19510905]
["USGS",312037110510101,"D-24-15 18BDA2 UNSURV",31.343611111111109,-110.85027777777778,"NAD27","1951-12-01",7,null,3713,"NGVD29","U",47,47,null,null,null,null,null,null,null,null,null,null,null,null,null,null,null,null,null,null,null,null,null,null,null,null,null,null,null,null,null,null,null,null,null,null,null,null,null,null,null,null,null,null,null,null,null,null,null,null,null,null,null,null,null,null,null,null,null,null,null,null,null,null,null,null,null,null,null,null,null,null,null,null,null,null,null,null,null,null,null,null,null,null,null,null,null,null,19511201]
["USGS",312037110510101,"D-24-15 18BDA2 UNSURV",31.343611111111109,-110.85027777777778,"NAD27","1951-12-20",6.84,null,3713,"NGVD29","U",47,47,null,null,null,null,null,null,null,null,null,null,null,null,null,null,null,null,null,null,null,null,null,null,null,null,null,null,null,null,null,null,null,null,null,null,null,null,null,null,null,null,null,null,null,null,null,null,null,null,null,null,null,null,null,null,null,null,null,null,null,null,null,null,null,null,null,null,null,null,null,null,null,null,null,null,null,null,null,null,null,null,null,null,null,null,null,null,19511220]
["USGS",312037110510101,"D-24-15 18BDA2 UNSURV",31.343611111111109,-110.85027777777778,"NAD27","1952-01-20",6.74,null,3713,"NGVD29","U",47,47,null,null,null,null,null,null,null,null,null,null,null,null,null,null,null,null,null,null,null,null,null,null,null,null,null,null,null,null,null,null,null,null,null,null,null,null,null,null,null,null,null,null,null,null,null,null,null,null,null,null,null,null,null,null,null,null,null,null,null,null,null,null,null,null,null,null,null,null,null,null,null,null,null,null,null,null,null,null,null,null,null,null,null,null,null,null,19520120]
["USGS",312037110510101,"D-24-15 18BDA2 UNSURV",31.343611111111109,-110.85027777777778,"NAD27","1952-02-20",6.82,null,3713,"NGVD29","U",47,47,null,null,null,null,null,null,null,null,null,null,null,null,null,null,null,null,null,null,null,null,null,null,null,null,null,null,null,null,null,null,null,null,null,null,null,null,null,null,null,null,null,null,null,null,null,null,null,null,null,null,null,null,null,null,null,null,null,null,null,null,null,null,null,null,null,null,null,null,null,null,null,null,null,null,null,null,null,null,null,null,null,null,null,null,null,null,19520220]
["USGS",312037110510101,"D-24-15 18BDA2 UNSURV",31.343611111111109,-110.85027777777778,"NAD27","1952-03-18",6.37,null,3713,"NGVD29","U",47,47,null,null,null,null,null,null,null,null,null,null,null,null,null,null,null,null,null,null,null,null,null,null,null,null,null,null,null,null,null,null,null,null,null,null,null,null,null,null,null,null,null,null,null,null,null,null,null,null,null,null,null,null,null,null,null,null,null,null,null,null,null,null,null,null,null,null,null,null,null,null,null,null,null,null,null,null,null,null,null,null,null,null,null,null,null,null,19520318]
["USGS",312037110510101,"D-24-15 18BDA2 UNSURV",31.343611111111109,-110.85027777777778,"NAD27","1952-04-20",6.73,null,3713,"NGVD29","U",47,47,null,null,null,null,null,null,null,null,null,null,null,null,null,null,null,null,null,null,null,null,null,null,null,null,null,null,null,null,null,null,null,null,null,null,null,null,null,null,null,null,null,null,null,null,null,null,null,null,null,null,null,null,null,null,null,null,null,null,null,null,null,null,null,null,null,null,null,null,null,null,null,null,null,null,null,null,null,null,null,null,null,null,null,null,null,null,19520420]
["USGS",312037110510101,"D-24-15 18BDA2 UNSURV",31.343611111111109,-110.85027777777778,"NAD27","1952-05-20",6.87,null,3713,"NGVD29","U",47,47,null,null,null,null,null,null,null,null,null,null,null,null,null,null,null,null,null,null,null,null,null,null,null,null,null,null,null,null,null,null,null,null,null,null,null,null,null,null,null,null,null,null,null,null,null,null,null,null,null,null,null,null,null,null,null,null,null,null,null,null,null,null,null,null,null,null,null,null,null,null,null,null,null,null,null,null,null,null,null,null,null,null,null,null,null,null,19520520]
["USGS",312037110510101,"D-24-15 18BDA2 UNSURV",31.343611111111109,-110.85027777777778,"NAD27","1952-06-20",6.87,null,3713,"NGVD29","U",47,47,null,null,null,null,null,null,null,null,null,null,null,null,null,null,null,null,null,null,null,null,null,null,null,null,null,null,null,null,null,null,null,null,null,null,null,null,null,null,null,null,null,null,null,null,null,null,null,null,null,null,null,null,null,null,null,null,null,null,null,null,null,null,null,null,null,null,null,null,null,null,null,null,null,null,null,null,null,null,null,null,null,null,null,null,null,null,19520620]
["USGS",312037110510101,"D-24-15 18BDA2 UNSURV",31.343611111111109,-110.85027777777778,"NAD27","1952-07-02",6.84,null,3713,"NGVD29","U",47,47,null,null,null,null,null,null,null,null,null,null,null,null,null,null,null,null,null,null,null,null,null,null,null,null,null,null,null,null,null,null,null,null,null,null,null,null,null,null,null,null,null,null,null,null,null,null,null,null,null,null,null,null,null,null,null,null,null,null,null,null,null,null,null,null,null,null,null,null,null,null,null,null,null,null,null,null,null,null,null,null,null,null,null,null,null,null,19520702]
["USGS",312037110510101,"D-24-15 18BDA2 UNSURV",31.343611111111109,-110.85027777777778,"NAD27","1952-08-20",5.91,null,3713,"NGVD29","U",47,47,null,null,null,null,null,null,null,null,null,null,null,null,null,null,null,null,null,null,null,null,null,null,null,null,null,null,null,null,null,null,null,null,null,null,null,null,null,null,null,null,null,null,null,null,null,null,null,null,null,null,null,null,null,null,null,null,null,null,null,null,null,null,null,null,null,null,null,null,null,null,null,null,null,null,null,null,null,null,null,null,null,null,null,null,null,null,19520820]
["USGS",312037110510101,"D-24-15 18BDA2 UNSURV",31.343611111111109,-110.85027777777778,"NAD27","1952-09-20",6.67,null,3713,"NGVD29","U",47,47,null,null,null,null,null,null,null,null,null,null,null,null,null,null,null,null,null,null,null,null,null,null,null,null,null,null,null,null,null,null,null,null,null,null,null,null,null,null,null,null,null,null,null,null,null,null,null,null,null,null,null,null,null,null,null,null,null,null,null,null,null,null,null,null,null,null,null,null,null,null,null,null,null,null,null,null,null,null,null,null,null,null,null,null,null,null,19520920]
["USGS",312037110510101,"D-24-15 18BDA2 UNSURV",31.343611111111109,-110.85027777777778,"NAD27","1952-10-20",6.72,null,3713,"NGVD29","U",47,47,null,null,null,null,null,null,null,null,null,null,null,null,null,null,null,null,null,null,null,null,null,null,null,null,null,null,null,null,null,null,null,null,null,null,null,null,null,null,null,null,null,null,null,null,null,null,null,null,null,null,null,null,null,null,null,null,null,null,null,null,null,null,null,null,null,null,null,null,null,null,null,null,null,null,null,null,null,null,null,null,null,null,null,null,null,null,19521020]
["USGS",312037110510101,"D-24-15 18BDA2 UNSURV",31.343611111111109,-110.85027777777778,"NAD27","1952-11-20",6.61,null,3713,"NGVD29","U",47,47,null,null,null,null,null,null,null,null,null,null,null,null,null,null,null,null,null,null,null,null,null,null,null,null,null,null,null,null,null,null,null,null,null,null,null,null,null,null,null,null,null,null,null,null,null,null,null,null,null,null,null,null,null,null,null,null,null,null,null,null,null,null,null,null,null,null,null,null,null,null,null,null,null,null,null,null,null,null,null,null,null,null,null,null,null,null,19521120]
["USGS",312037110510101,"D-24-15 18BDA2 UNSURV",31.343611111111109,-110.85027777777778,"NAD27","1952-12-20",6.55,null,3713,"NGVD29","U",47,47,null,null,null,null,null,null,null,null,null,null,null,null,null,null,null,null,null,null,null,null,null,null,null,null,null,null,null,null,null,null,null,null,null,null,null,null,null,null,null,null,null,null,null,null,null,null,null,null,null,null,null,null,null,null,null,null,null,null,null,null,null,null,null,null,null,null,null,null,null,null,null,null,null,null,null,null,null,null,null,null,null,null,null,null,null,null,19521220]
["USGS",312037110510101,"D-24-15 18BDA2 UNSURV",31.343611111111109,-110.85027777777778,"NAD27","1953-01-20",6.58,null,3713,"NGVD29","U",47,47,null,null,null,null,null,null,null,null,null,null,null,null,null,null,null,null,null,null,null,null,null,null,null,null,null,null,null,null,null,null,null,null,null,null,null,null,null,null,null,null,null,null,null,null,null,null,null,null,null,null,null,null,null,null,null,null,null,null,null,null,null,null,null,null,null,null,null,null,null,null,null,null,null,null,null,null,null,null,null,null,null,null,null,null,null,null,19530120]
["USGS",312037110510101,"D-24-15 18BDA2 UNSURV",31.343611111111109,-110.85027777777778,"NAD27","1953-02-20",6.63,null,3713,"NGVD29","U",47,47,null,null,null,null,null,null,null,null,null,null,null,null,null,null,null,null,null,null,null,null,null,null,null,null,null,null,null,null,null,null,null,null,null,null,null,null,null,null,null,null,null,null,null,null,null,null,null,null,null,null,null,null,null,null,null,null,null,null,null,null,null,null,null,null,null,null,null,null,null,null,null,null,null,null,null,null,null,null,null,null,null,null,null,null,null,null,19530220]
["USGS",312037110510101,"D-24-15 18BDA2 UNSURV",31.343611111111109,-110.85027777777778,"NAD27","1953-03-20",6.57,null,3713,"NGVD29","U",47,47,null,null,null,null,null,null,null,null,null,null,null,null,null,null,null,null,null,null,null,null,null,null,null,null,null,null,null,null,null,null,null,null,null,null,null,null,null,null,null,null,null,null,null,null,null,null,null,null,null,null,null,null,null,null,null,null,null,null,null,null,null,null,null,null,null,null,null,null,null,null,null,null,null,null,null,null,null,null,null,null,null,null,null,null,null,null,19530320]
["USGS",312037110510101,"D-24-15 18BDA2 UNSURV",31.343611111111109,-110.85027777777778,"NAD27","1953-04-20",6.64,null,3713,"NGVD29","U",47,47,null,null,null,null,null,null,null,null,null,null,null,null,null,null,null,null,null,null,null,null,null,null,null,null,null,null,null,null,null,null,null,null,null,null,null,null,null,null,null,null,null,null,null,null,null,null,null,null,null,null,null,null,null,null,null,null,null,null,null,null,null,null,null,null,null,null,null,null,null,null,null,null,null,null,null,null,null,null,null,null,null,null,null,null,null,null,19530420]
["USGS",312037110510101,"D-24-15 18BDA2 UNSURV",31.343611111111109,-110.85027777777778,"NAD27","1953-05-20",6.75,null,3713,"NGVD29","U",47,47,null,null,null,null,null,null,null,null,null,null,null,null,null,null,null,null,null,null,null,null,null,null,null,null,null,null,null,null,null,null,null,null,null,null,null,null,null,null,null,null,null,null,null,null,null,null,null,null,null,null,null,null,null,null,null,null,null,null,null,null,null,null,null,null,null,null,null,null,null,null,null,null,null,null,null,null,null,null,null,null,null,null,null,null,null,null,19530520]
["USGS",312037110510101,"D-24-15 18BDA2 UNSURV",31.343611111111109,-110.85027777777778,"NAD27","1953-06-20",6.88,null,3713,"NGVD29","U",47,47,null,null,null,null,null,null,null,null,null,null,null,null,null,null,null,null,null,null,null,null,null,null,null,null,null,null,null,null,null,null,null,null,null,null,null,null,null,null,null,null,null,null,null,null,null,null,null,null,null,null,null,null,null,null,null,null,null,null,null,null,null,null,null,null,null,null,null,null,null,null,null,null,null,null,null,null,null,null,null,null,null,null,null,null,null,null,19530620]
["USGS",312037110510101,"D-24-15 18BDA2 UNSURV",31.343611111111109,-110.85027777777778,"NAD27","1953-07-20",6.29,null,3713,"NGVD29","U",47,47,null,null,null,null,null,null,null,null,null,null,null,null,null,null,null,null,null,null,null,null,null,null,null,null,null,null,null,null,null,null,null,null,null,null,null,null,null,null,null,null,null,null,null,null,null,null,null,null,null,null,null,null,null,null,null,null,null,null,null,null,null,null,null,null,null,null,null,null,null,null,null,null,null,null,null,null,null,null,null,null,null,null,null,null,null,null,19530720]
["USGS",312037110510101,"D-24-15 18BDA2 UNSURV",31.343611111111109,-110.85027777777778,"NAD27","1953-08-20",6.63,null,3713,"NGVD29","U",47,47,null,null,null,null,null,null,null,null,null,null,null,null,null,null,null,null,null,null,null,null,null,null,null,null,null,null,null,null,null,null,null,null,null,null,null,null,null,null,null,null,null,null,null,null,null,null,null,null,null,null,null,null,null,null,null,null,null,null,null,null,null,null,null,null,null,null,null,null,null,null,null,null,null,null,null,null,null,null,null,null,null,null,null,null,null,null,19530820]
["USGS",312037110510101,"D-24-15 18BDA2 UNSURV",31.343611111111109,-110.85027777777778,"NAD27","1953-09-20",6.67,null,3713,"NGVD29","U",47,47,null,null,null,null,null,null,null,null,null,null,null,null,null,null,null,null,null,null,null,null,null,null,null,null,null,null,null,null,null,null,null,null,null,null,null,null,null,null,null,null,null,null,null,null,null,null,null,null,null,null,null,null,null,null,null,null,null,null,null,null,null,null,null,null,null,null,null,null,null,null,null,null,null,null,null,null,null,null,null,null,null,null,null,null,null,null,19530920]
["USGS",312037110510101,"D-24-15 18BDA2 UNSURV",31.343611111111109,-110.85027777777778,"NAD27","1953-10-20",6.7,null,3713,"NGVD29","U",47,47,null,null,null,null,null,null,null,null,null,null,null,null,null,null,null,null,null,null,null,null,null,null,null,null,null,null,null,null,null,null,null,null,null,null,null,null,null,null,null,null,null,null,null,null,null,null,null,null,null,null,null,null,null,null,null,null,null,null,null,null,null,null,null,null,null,null,null,null,null,null,null,null,null,null,null,null,null,null,null,null,null,null,null,null,null,null,19531020]
["USGS",312037110510101,"D-24-15 18BDA2 UNSURV",31.343611111111109,-110.85027777777778,"NAD27","1953-11-20",6.5,null,3713,"NGVD29","U",47,47,null,null,null,null,null,null,null,null,null,null,null,null,null,null,null,null,null,null,null,null,null,null,null,null,null,null,null,null,null,null,null,null,null,null,null,null,null,null,null,null,null,null,null,null,null,null,null,null,null,null,null,null,null,null,null,null,null,null,null,null,null,null,null,null,null,null,null,null,null,null,null,null,null,null,null,null,null,null,null,null,null,null,null,null,null,null,19531120]
["USGS",312037110510101,"D-24-15 18BDA2 UNSURV",31.343611111111109,-110.85027777777778,"NAD27","1953-12-20",6.45,null,3713,"NGVD29","U",47,47,null,null,null,null,null,null,null,null,null,null,null,null,null,null,null,null,null,null,null,null,null,null,null,null,null,null,null,null,null,null,null,null,null,null,null,null,null,null,null,null,null,null,null,null,null,null,null,null,null,null,null,null,null,null,null,null,null,null,null,null,null,null,null,null,null,null,null,null,null,null,null,null,null,null,null,null,null,null,null,null,null,null,null,null,null,null,19531220]
["USGS",312037110510101,"D-24-15 18BDA2 UNSURV",31.343611111111109,-110.85027777777778,"NAD27","1954-01-20",6.45,null,3713,"NGVD29","U",47,47,null,null,null,null,null,null,null,null,null,null,null,null,null,null,null,null,null,null,null,null,null,null,null,null,null,null,null,null,null,null,null,null,null,null,null,null,null,null,null,null,null,null,null,null,null,null,null,null,null,null,null,null,null,null,null,null,null,null,null,null,null,null,null,null,null,null,null,null,null,null,null,null,null,null,null,null,null,null,null,null,null,null,null,null,null,null,19540120]
["USGS",312037110510101,"D-24-15 18BDA2 UNSURV",31.343611111111109,-110.85027777777778,"NAD27","1954-02-20",6.5,null,3713,"NGVD29","U",47,47,null,null,null,null,null,null,null,null,null,null,null,null,null,null,null,null,null,null,null,null,null,null,null,null,null,null,null,null,null,null,null,null,null,null,null,null,null,null,null,null,null,null,null,null,null,null,null,null,null,null,null,null,null,null,null,null,null,null,null,null,null,null,null,null,null,null,null,null,null,null,null,null,null,null,null,null,null,null,null,null,null,null,null,null,null,null,19540220]
["USGS",312037110510101,"D-24-15 18BDA2 UNSURV",31.343611111111109,-110.85027777777778,"NAD27","1954-03-20",6.47,null,3713,"NGVD29","U",47,47,null,null,null,null,null,null,null,null,null,null,null,null,null,null,null,null,null,null,null,null,null,null,null,null,null,null,null,null,null,null,null,null,null,null,null,null,null,null,null,null,null,null,null,null,null,null,null,null,null,null,null,null,null,null,null,null,null,null,null,null,null,null,null,null,null,null,null,null,null,null,null,null,null,null,null,null,null,null,null,null,null,null,null,null,null,null,19540320]
["USGS",312037110510101,"D-24-15 18BDA2 UNSURV",31.343611111111109,-110.85027777777778,"NAD27","1954-04-20",6.63,null,3713,"NGVD29","U",47,47,null,null,null,null,null,null,null,null,null,null,null,null,null,null,null,null,null,null,null,null,null,null,null,null,null,null,null,null,null,null,null,null,null,null,null,null,null,null,null,null,null,null,null,null,null,null,null,null,null,null,null,null,null,null,null,null,null,null,null,null,null,null,null,null,null,null,null,null,null,null,null,null,null,null,null,null,null,null,null,null,null,null,null,null,null,null,19540420]
["USGS",312037110510101,"D-24-15 18BDA2 UNSURV",31.343611111111109,-110.85027777777778,"NAD27","1954-05-20",6.64,null,3713,"NGVD29","U",47,47,null,null,null,null,null,null,null,null,null,null,null,null,null,null,null,null,null,null,null,null,null,null,null,null,null,null,null,null,null,null,null,null,null,null,null,null,null,null,null,null,null,null,null,null,null,null,null,null,null,null,null,null,null,null,null,null,null,null,null,null,null,null,null,null,null,null,null,null,null,null,null,null,null,null,null,null,null,null,null,null,null,null,null,null,null,null,19540520]
["USGS",312037110510101,"D-24-15 18BDA2 UNSURV",31.343611111111109,-110.85027777777778,"NAD27","1954-06-20",7.08,null,3713,"NGVD29","U",47,47,null,null,null,null,null,null,null,null,null,null,null,null,null,null,null,null,null,null,null,null,null,null,null,null,null,null,null,null,null,null,null,null,null,null,null,null,null,null,null,null,null,null,null,null,null,null,null,null,null,null,null,null,null,null,null,null,null,null,null,null,null,null,null,null,null,null,null,null,null,null,null,null,null,null,null,null,null,null,null,null,null,null,null,null,null,null,19540620]
["USGS",312037110510101,"D-24-15 18BDA2 UNSURV",31.343611111111109,-110.85027777777778,"NAD27","1954-07-20",5.93,null,3713,"NGVD29","U",47,47,null,null,null,null,null,null,null,null,null,null,null,null,null,null,null,null,null,null,null,null,null,null,null,null,null,null,null,null,null,null,null,null,null,null,null,null,null,null,null,null,null,null,null,null,null,null,null,null,null,null,null,null,null,null,null,null,null,null,null,null,null,null,null,null,null,null,null,null,null,null,null,null,null,null,null,null,null,null,null,null,null,null,null,null,null,null,19540720]
["USGS",312037110510101,"D-24-15 18BDA2 UNSURV",31.343611111111109,-110.85027777777778,"NAD27","1954-08-20",5.66,null,3713,"NGVD29","U",47,47,null,null,null,null,null,null,null,null,null,null,null,null,null,null,null,null,null,null,null,null,null,null,null,null,null,null,null,null,null,null,null,null,null,null,null,null,null,null,null,null,null,null,null,null,null,null,null,null,null,null,null,null,null,null,null,null,null,null,null,null,null,null,null,null,null,null,null,null,null,null,null,null,null,null,null,null,null,null,null,null,null,null,null,null,null,null,19540820]
["USGS",312037110510101,"D-24-15 18BDA2 UNSURV",31.343611111111109,-110.85027777777778,"NAD27","1954-09-20",6.37,null,3713,"NGVD29","U",47,47,null,null,null,null,null,null,null,null,null,null,null,null,null,null,null,null,null,null,null,null,null,null,null,null,null,null,null,null,null,null,null,null,null,null,null,null,null,null,null,null,null,null,null,null,null,null,null,null,null,null,null,null,null,null,null,null,null,null,null,null,null,null,null,null,null,null,null,null,null,null,null,null,null,null,null,null,null,null,null,null,null,null,null,null,null,null,19540920]
["USGS",312037110510101,"D-24-15 18BDA2 UNSURV",31.343611111111109,-110.85027777777778,"NAD27","1954-10-20",6.73,null,3713,"NGVD29","U",47,47,null,null,null,null,null,null,null,null,null,null,null,null,null,null,null,null,null,null,null,null,null,null,null,null,null,null,null,null,null,null,null,null,null,null,null,null,null,null,null,null,null,null,null,null,null,null,null,null,null,null,null,null,null,null,null,null,null,null,null,null,null,null,null,null,null,null,null,null,null,null,null,null,null,null,null,null,null,null,null,null,null,null,null,null,null,null,19541020]
["USGS",312037110510101,"D-24-15 18BDA2 UNSURV",31.343611111111109,-110.85027777777778,"NAD27","1954-11-20",6.73,null,3713,"NGVD29","U",47,47,null,null,null,null,null,null,null,null,null,null,null,null,null,null,null,null,null,null,null,null,null,null,null,null,null,null,null,null,null,null,null,null,null,null,null,null,null,null,null,null,null,null,null,null,null,null,null,null,null,null,null,null,null,null,null,null,null,null,null,null,null,null,null,null,null,null,null,null,null,null,null,null,null,null,null,null,null,null,null,null,null,null,null,null,null,null,19541120]
["USGS",312037110510101,"D-24-15 18BDA2 UNSURV",31.343611111111109,-110.85027777777778,"NAD27","1954-12-20",6.73,null,3713,"NGVD29","U",47,47,null,null,null,null,null,null,null,null,null,null,null,null,null,null,null,null,null,null,null,null,null,null,null,null,null,null,null,null,null,null,null,null,null,null,null,null,null,null,null,null,null,null,null,null,null,null,null,null,null,null,null,null,null,null,null,null,null,null,null,null,null,null,null,null,null,null,null,null,null,null,null,null,null,null,null,null,null,null,null,null,null,null,null,null,null,null,19541220]
["USGS",312037110510101,"D-24-15 18BDA2 UNSURV",31.343611111111109,-110.85027777777778,"NAD27","1955-01-20",6.69,null,3713,"NGVD29","U",47,47,null,null,null,null,null,null,null,null,null,null,null,null,null,null,null,null,null,null,null,null,null,null,null,null,null,null,null,null,null,null,null,null,null,null,null,null,null,null,null,null,null,null,null,null,null,null,null,null,null,null,null,null,null,null,null,null,null,null,null,null,null,null,null,null,null,null,null,null,null,null,null,null,null,null,null,null,null,null,null,null,null,null,null,null,null,null,19550120]
["USGS",312037110510101,"D-24-15 18BDA2 UNSURV",31.343611111111109,-110.85027777777778,"NAD27","1955-02-20",6.65,null,3713,"NGVD29","U",47,47,null,null,null,null,null,null,null,null,null,null,null,null,null,null,null,null,null,null,null,null,null,null,null,null,null,null,null,null,null,null,null,null,null,null,null,null,null,null,null,null,null,null,null,null,null,null,null,null,null,null,null,null,null,null,null,null,null,null,null,null,null,null,null,null,null,null,null,null,null,null,null,null,null,null,null,null,null,null,null,null,null,null,null,null,null,null,19550220]
["USGS",312037110510101,"D-24-15 18BDA2 UNSURV",31.343611111111109,-110.85027777777778,"NAD27","1955-03-20",6.69,null,3713,"NGVD29","U",47,47,null,null,null,null,null,null,null,null,null,null,null,null,null,null,null,null,null,null,null,null,null,null,null,null,null,null,null,null,null,null,null,null,null,null,null,null,null,null,null,null,null,null,null,null,null,null,null,null,null,null,null,null,null,null,null,null,null,null,null,null,null,null,null,null,null,null,null,null,null,null,null,null,null,null,null,null,null,null,null,null,null,null,null,null,null,null,19550320]
["USGS",312037110510101,"D-24-15 18BDA2 UNSURV",31.343611111111109,-110.85027777777778,"NAD27","1955-04-20",6.84,null,3713,"NGVD29","U",47,47,null,null,null,null,null,null,null,null,null,null,null,null,null,null,null,null,null,null,null,null,null,null,null,null,null,null,null,null,null,null,null,null,null,null,null,null,null,null,null,null,null,null,null,null,null,null,null,null,null,null,null,null,null,null,null,null,null,null,null,null,null,null,null,null,null,null,null,null,null,null,null,null,null,null,null,null,null,null,null,null,null,null,null,null,null,null,19550420]
["USGS",312037110510101,"D-24-15 18BDA2 UNSURV",31.343611111111109,-110.85027777777778,"NAD27","1955-05-20",6.91,null,3713,"NGVD29","U",47,47,null,null,null,null,null,null,null,null,null,null,null,null,null,null,null,null,null,null,null,null,null,null,null,null,null,null,null,null,null,null,null,null,null,null,null,null,null,null,null,null,null,null,null,null,null,null,null,null,null,null,null,null,null,null,null,null,null,null,null,null,null,null,null,null,null,null,null,null,null,null,null,null,null,null,null,null,null,null,null,null,null,null,null,null,null,null,19550520]
["USGS",312037110510101,"D-24-15 18BDA2 UNSURV",31.343611111111109,-110.85027777777778,"NAD27","1955-06-20",6.98,null,3713,"NGVD29","U",47,47,null,null,null,null,null,null,null,null,null,null,null,null,null,null,null,null,null,null,null,null,null,null,null,null,null,null,null,null,null,null,null,null,null,null,null,null,null,null,null,null,null,null,null,null,null,null,null,null,null,null,null,null,null,null,null,null,null,null,null,null,null,null,null,null,null,null,null,null,null,null,null,null,null,null,null,null,null,null,null,null,null,null,null,null,null,null,19550620]
["USGS",312037110510101,"D-24-15 18BDA2 UNSURV",31.343611111111109,-110.85027777777778,"NAD27","1955-07-20",6.73,null,3713,"NGVD29","U",47,47,null,null,null,null,null,null,null,null,null,null,null,null,null,null,null,null,null,null,null,null,null,null,null,null,null,null,null,null,null,null,null,null,null,null,null,null,null,null,null,null,null,null,null,null,null,null,null,null,null,null,null,null,null,null,null,null,null,null,null,null,null,null,null,null,null,null,null,null,null,null,null,null,null,null,null,null,null,null,null,null,null,null,null,null,null,null,19550720]
["USGS",312037110510101,"D-24-15 18BDA2 UNSURV",31.343611111111109,-110.85027777777778,"NAD27","1955-08-29",5.79,null,3713,"NGVD29","U",47,47,null,null,null,null,null,null,null,null,null,null,null,null,null,null,null,null,null,null,null,null,null,null,null,null,null,null,null,null,null,null,null,null,null,null,null,null,null,null,null,null,null,null,null,null,null,null,null,null,null,null,null,null,null,null,null,null,null,null,null,null,null,null,null,null,null,null,null,null,null,null,null,null,null,null,null,null,null,null,null,null,null,null,null,null,null,null,19550829]
["USGS",312037110510101,"D-24-15 18BDA2 UNSURV",31.343611111111109,-110.85027777777778,"NAD27","1955-09-20",6.35,null,3713,"NGVD29","U",47,47,null,null,null,null,null,null,null,null,null,null,null,null,null,null,null,null,null,null,null,null,null,null,null,null,null,null,null,null,null,null,null,null,null,null,null,null,null,null,null,null,null,null,null,null,null,null,null,null,null,null,null,null,null,null,null,null,null,null,null,null,null,null,null,null,null,null,null,null,null,null,null,null,null,null,null,null,null,null,null,null,null,null,null,null,null,null,19550920]
["USGS",312037110510101,"D-24-15 18BDA2 UNSURV",31.343611111111109,-110.85027777777778,"NAD27","1956-01-20",6.51,null,3713,"NGVD29","U",47,47,null,null,null,null,null,null,null,null,null,null,null,null,null,null,null,null,null,null,null,null,null,null,null,null,null,null,null,null,null,null,null,null,null,null,null,null,null,null,null,null,null,null,null,null,null,null,null,null,null,null,null,null,null,null,null,null,null,null,null,null,null,null,null,null,null,null,null,null,null,null,null,null,null,null,null,null,null,null,null,null,null,null,null,null,null,null,19560120]
["USGS",312037110510101,"D-24-15 18BDA2 UNSURV",31.343611111111109,-110.85027777777778,"NAD27","1956-06-20",6.76,null,3713,"NGVD29","U",47,47,null,null,null,null,null,null,null,null,null,null,null,null,null,null,null,null,null,null,null,null,null,null,null,null,null,null,null,null,null,null,null,null,null,null,null,null,null,null,null,null,null,null,null,null,null,null,null,null,null,null,null,null,null,null,null,null,null,null,null,null,null,null,null,null,null,null,null,null,null,null,null,null,null,null,null,null,null,null,null,null,null,null,null,null,null,null,19560620]
["USGS",312037110510101,"D-24-15 18BDA2 UNSURV",31.343611111111109,-110.85027777777778,"NAD27","1956-09-20",6.85,null,3713,"NGVD29","U",47,47,null,null,null,null,null,null,null,null,null,null,null,null,null,null,null,null,null,null,null,null,null,null,null,null,null,null,null,null,null,null,null,null,null,null,null,null,null,null,null,null,null,null,null,null,null,null,null,null,null,null,null,null,null,null,null,null,null,null,null,null,null,null,null,null,null,null,null,null,null,null,null,null,null,null,null,null,null,null,null,null,null,null,null,null,null,null,19560920]
["USGS",312037110510101,"D-24-15 18BDA2 UNSURV",31.343611111111109,-110.85027777777778,"NAD27","1956-11-20",6.72,null,3713,"NGVD29","U",47,47,null,null,null,null,null,null,null,null,null,null,null,null,null,null,null,null,null,null,null,null,null,null,null,null,null,null,null,null,null,null,null,null,null,null,null,null,null,null,null,null,null,null,null,null,null,null,null,null,null,null,null,null,null,null,null,null,null,null,null,null,null,null,null,null,null,null,null,null,null,null,null,null,null,null,null,null,null,null,null,null,null,null,null,null,null,null,19561120]
["USGS",312037110510101,"D-24-15 18BDA2 UNSURV",31.343611111111109,-110.85027777777778,"NAD27","1957-04-20",6.58,null,3713,"NGVD29","U",47,47,null,null,null,null,null,null,null,null,null,null,null,null,null,null,null,null,null,null,null,null,null,null,null,null,null,null,null,null,null,null,null,null,null,null,null,null,null,null,null,null,null,null,null,null,null,null,null,null,null,null,null,null,null,null,null,null,null,null,null,null,null,null,null,null,null,null,null,null,null,null,null,null,null,null,null,null,null,null,null,null,null,null,null,null,null,null,19570420]
["USGS",312037110510101,"D-24-15 18BDA2 UNSURV",31.343611111111109,-110.85027777777778,"NAD27","1957-05-20",6.6,null,3713,"NGVD29","U",47,47,null,null,null,null,null,null,null,null,null,null,null,null,null,null,null,null,null,null,null,null,null,null,null,null,null,null,null,null,null,null,null,null,null,null,null,null,null,null,null,null,null,null,null,null,null,null,null,null,null,null,null,null,null,null,null,null,null,null,null,null,null,null,null,null,null,null,null,null,null,null,null,null,null,null,null,null,null,null,null,null,null,null,null,null,null,null,19570520]
["USGS",312037110510101,"D-24-15 18BDA2 UNSURV",31.343611111111109,-110.85027777777778,"NAD27","1957-08-20",6.22,null,3713,"NGVD29","U",47,47,null,null,null,null,null,null,null,null,null,null,null,null,null,null,null,null,null,null,null,null,null,null,null,null,null,null,null,null,null,null,null,null,null,null,null,null,null,null,null,null,null,null,null,null,null,null,null,null,null,null,null,null,null,null,null,null,null,null,null,null,null,null,null,null,null,null,null,null,null,null,null,null,null,null,null,null,null,null,null,null,null,null,null,null,null,null,19570820]
["USGS",312037110510101,"D-24-15 18BDA2 UNSURV",31.343611111111109,-110.85027777777778,"NAD27","1958-01-20",6.59,null,3713,"NGVD29","U",47,47,null,null,null,null,null,null,null,null,null,null,null,null,null,null,null,null,null,null,null,null,null,null,null,null,null,null,null,null,null,null,null,null,null,null,null,null,null,null,null,null,null,null,null,null,null,null,null,null,null,null,null,null,null,null,null,null,null,null,null,null,null,null,null,null,null,null,null,null,null,null,null,null,null,null,null,null,null,null,null,null,null,null,null,null,null,null,19580120]
["USGS",312037110510101,"D-24-15 18BDA2 UNSURV",31.343611111111109,-110.85027777777778,"NAD27","1958-05-20",6.62,null,3713,"NGVD29","U",47,47,null,null,null,null,null,null,null,null,null,null,null,null,null,null,null,null,null,null,null,null,null,null,null,null,null,null,null,null,null,null,null,null,null,null,null,null,null,null,null,null,null,null,null,null,null,null,null,null,null,null,null,null,null,null,null,null,null,null,null,null,null,null,null,null,null,null,null,null,null,null,null,null,null,null,null,null,null,null,null,null,null,null,null,null,null,null,19580520]
["USGS",312037110510101,"D-24-15 18BDA2 UNSURV",31.343611111111109,-110.85027777777778,"NAD27","1958-08-25",5.69,null,3713,"NGVD29","U",47,47,null,null,null,null,null,null,null,null,null,null,null,null,null,null,null,null,null,null,null,null,null,null,null,null,null,null,null,null,null,null,null,null,null,null,null,null,null,null,null,null,null,null,null,null,null,null,null,null,null,null,null,null,null,null,null,null,null,null,null,null,null,null,null,null,null,null,null,null,null,null,null,null,null,null,null,null,null,null,null,null,null,null,null,null,null,null,19580825]
["USGS",312037110510101,"D-24-15 18BDA2 UNSURV",31.343611111111109,-110.85027777777778,"NAD27","1958-12-20",6.62,null,3713,"NGVD29","U",47,47,null,null,null,null,null,null,null,null,null,null,null,null,null,null,null,null,null,null,null,null,null,null,null,null,null,null,null,null,null,null,null,null,null,null,null,null,null,null,null,null,null,null,null,null,null,null,null,null,null,null,null,null,null,null,null,null,null,null,null,null,null,null,null,null,null,null,null,null,null,null,null,null,null,null,null,null,null,null,null,null,null,null,null,null,null,null,19581220]
["USGS",312037110510101,"D-24-15 18BDA2 UNSURV",31.343611111111109,-110.85027777777778,"NAD27","1959-02-20",6.66,null,3713,"NGVD29","U",47,47,null,null,null,null,null,null,null,null,null,null,null,null,null,null,null,null,null,null,null,null,null,null,null,null,null,null,null,null,null,null,null,null,null,null,null,null,null,null,null,null,null,null,null,null,null,null,null,null,null,null,null,null,null,null,null,null,null,null,null,null,null,null,null,null,null,null,null,null,null,null,null,null,null,null,null,null,null,null,null,null,null,null,null,null,null,null,19590220]
["USGS",312037110510101,"D-24-15 18BDA2 UNSURV",31.343611111111109,-110.85027777777778,"NAD27","1959-07-20",6.8,null,3713,"NGVD29","U",47,47,null,null,null,null,null,null,null,null,null,null,null,null,null,null,null,null,null,null,null,null,null,null,null,null,null,null,null,null,null,null,null,null,null,null,null,null,null,null,null,null,null,null,null,null,null,null,null,null,null,null,null,null,null,null,null,null,null,null,null,null,null,null,null,null,null,null,null,null,null,null,null,null,null,null,null,null,null,null,null,null,null,null,null,null,null,null,19590720]
["USGS",312037110510101,"D-24-15 18BDA2 UNSURV",31.343611111111109,-110.85027777777778,"NAD27","1959-11-20",6.2,null,3713,"NGVD29","U",47,47,null,null,null,null,null,null,null,null,null,null,null,null,null,null,null,null,null,null,null,null,null,null,null,null,null,null,null,null,null,null,null,null,null,null,null,null,null,null,null,null,null,null,null,null,null,null,null,null,null,null,null,null,null,null,null,null,null,null,null,null,null,null,null,null,null,null,null,null,null,null,null,null,null,null,null,null,null,null,null,null,null,null,null,null,null,null,19591120]
["USGS",312037110510101,"D-24-15 18BDA2 UNSURV",31.343611111111109,-110.85027777777778,"NAD27","1959-12-20",6.36,null,3713,"NGVD29","U",47,47,null,null,null,null,null,null,null,null,null,null,null,null,null,null,null,null,null,null,null,null,null,null,null,null,null,null,null,null,null,null,null,null,null,null,null,null,null,null,null,null,null,null,null,null,null,null,null,null,null,null,null,null,null,null,null,null,null,null,null,null,null,null,null,null,null,null,null,null,null,null,null,null,null,null,null,null,null,null,null,null,null,null,null,null,null,null,19591220]
["USGS",312037110510101,"D-24-15 18BDA2 UNSURV",31.343611111111109,-110.85027777777778,"NAD27","1960-04-20",6.59,null,3713,"NGVD29","U",47,47,null,null,null,null,null,null,null,null,null,null,null,null,null,null,null,null,null,null,null,null,null,null,null,null,null,null,null,null,null,null,null,null,null,null,null,null,null,null,null,null,null,null,null,null,null,null,null,null,null,null,null,null,null,null,null,null,null,null,null,null,null,null,null,null,null,null,null,null,null,null,null,null,null,null,null,null,null,null,null,null,null,null,null,null,null,null,19600420]
["USGS",312037110510101,"D-24-15 18BDA2 UNSURV",31.343611111111109,-110.85027777777778,"NAD27","1960-08-20",6.81,null,3713,"NGVD29","U",47,47,null,null,null,null,null,null,null,null,null,null,null,null,null,null,null,null,null,null,null,null,null,null,null,null,null,null,null,null,null,null,null,null,null,null,null,null,null,null,null,null,null,null,null,null,null,null,null,null,null,null,null,null,null,null,null,null,null,null,null,null,null,null,null,null,null,null,null,null,null,null,null,null,null,null,null,null,null,null,null,null,null,null,null,null,null,null,19600820]
["USGS",312037110510101,"D-24-15 18BDA2 UNSURV",31.343611111111109,-110.85027777777778,"NAD27","1960-11-20",6.85,null,3713,"NGVD29","U",47,47,null,null,null,null,null,null,null,null,null,null,null,null,null,null,null,null,null,null,null,null,null,null,null,null,null,null,null,null,null,null,null,null,null,null,null,null,null,null,null,null,null,null,null,null,null,null,null,null,null,null,null,null,null,null,null,null,null,null,null,null,null,null,null,null,null,null,null,null,null,null,null,null,null,null,null,null,null,null,null,null,null,null,null,null,null,null,19601120]
["USGS",312037110510101,"D-24-15 18BDA2 UNSURV",31.343611111111109,-110.85027777777778,"NAD27","1961-01-20",6.83,null,3713,"NGVD29","U",47,47,null,null,null,null,null,null,null,null,null,null,null,null,null,null,null,null,null,null,null,null,null,null,null,null,null,null,null,null,null,null,null,null,null,null,null,null,null,null,null,null,null,null,null,null,null,null,null,null,null,null,null,null,null,null,null,null,null,null,null,null,null,null,null,null,null,null,null,null,null,null,null,null,null,null,null,null,null,null,null,null,null,null,null,null,null,null,19610120]
["USGS",312037110510101,"D-24-15 18BDA2 UNSURV",31.343611111111109,-110.85027777777778,"NAD27","1961-07-20",6.55,null,3713,"NGVD29","U",47,47,null,null,null,null,null,null,null,null,null,null,null,null,null,null,null,null,null,null,null,null,null,null,null,null,null,null,null,null,null,null,null,null,null,null,null,null,null,null,null,null,null,null,null,null,null,null,null,null,null,null,null,null,null,null,null,null,null,null,null,null,null,null,null,null,null,null,null,null,null,null,null,null,null,null,null,null,null,null,null,null,null,null,null,null,null,null,19610720]
["USGS",312037110510101,"D-24-15 18BDA2 UNSURV",31.343611111111109,-110.85027777777778,"NAD27","1961-10-20",6.66,null,3713,"NGVD29","U",47,47,null,null,null,null,null,null,null,null,null,null,null,null,null,null,null,null,null,null,null,null,null,null,null,null,null,null,null,null,null,null,null,null,null,null,null,null,null,null,null,null,null,null,null,null,null,null,null,null,null,null,null,null,null,null,null,null,null,null,null,null,null,null,null,null,null,null,null,null,null,null,null,null,null,null,null,null,null,null,null,null,null,null,null,null,null,null,19611020]
["USGS",312037110510101,"D-24-15 18BDA2 UNSURV",31.343611111111109,-110.85027777777778,"NAD27","1961-12-20",5.86,null,3713,"NGVD29","U",47,47,null,null,null,null,null,null,null,null,null,null,null,null,null,null,null,null,null,null,null,null,null,null,null,null,null,null,null,null,null,null,null,null,null,null,null,null,null,null,null,null,null,null,null,null,null,null,null,null,null,null,null,null,null,null,null,null,null,null,null,null,null,null,null,null,null,null,null,null,null,null,null,null,null,null,null,null,null,null,null,null,null,null,null,null,null,null,19611220]
["USGS",312037110510101,"D-24-15 18BDA2 UNSURV",31.343611111111109,-110.85027777777778,"NAD27","1962-03-20",6.37,null,3713,"NGVD29","U",47,47,null,null,null,null,null,null,null,null,null,null,null,null,null,null,null,null,null,null,null,null,null,null,null,null,null,null,null,null,null,null,null,null,null,null,null,null,null,null,null,null,null,null,null,null,null,null,null,null,null,null,null,null,null,null,null,null,null,null,null,null,null,null,null,null,null,null,null,null,null,null,null,null,null,null,null,null,null,null,null,null,null,null,null,null,null,null,19620320]
["USGS",312037110510101,"D-24-15 18BDA2 UNSURV",31.343611111111109,-110.85027777777778,"NAD27","1962-07-20",7.24,null,3713,"NGVD29","U",47,47,null,null,null,null,null,null,null,null,null,null,null,null,null,null,null,null,null,null,null,null,null,null,null,null,null,null,null,null,null,null,null,null,null,null,null,null,null,null,null,null,null,null,null,null,null,null,null,null,null,null,null,null,null,null,null,null,null,null,null,null,null,null,null,null,null,null,null,null,null,null,null,null,null,null,null,null,null,null,null,null,null,null,null,null,null,null,19620720]
["USGS",312037110510101,"D-24-15 18BDA2 UNSURV",31.343611111111109,-110.85027777777778,"NAD27","1962-11-20",7.35,null,3713,"NGVD29","U",47,47,null,null,null,null,null,null,null,null,null,null,null,null,null,null,null,null,null,null,null,null,null,null,null,null,null,null,null,null,null,null,null,null,null,null,null,null,null,null,null,null,null,null,null,null,null,null,null,null,null,null,null,null,null,null,null,null,null,null,null,null,null,null,null,null,null,null,null,null,null,null,null,null,null,null,null,null,null,null,null,null,null,null,null,null,null,null,19621120]
["USGS",312037110510101,"D-24-15 18BDA2 UNSURV",31.343611111111109,-110.85027777777778,"NAD27","1963-04-20",7.02,null,3713,"NGVD29","U",47,47,null,null,null,null,null,null,null,null,null,null,null,null,null,null,null,null,null,null,null,null,null,null,null,null,null,null,null,null,null,null,null,null,null,null,null,null,null,null,null,null,null,null,null,null,null,null,null,null,null,null,null,null,null,null,null,null,null,null,null,null,null,null,null,null,null,null,null,null,null,null,null,null,null,null,null,null,null,null,null,null,null,null,null,null,null,null,19630420]
["USGS",312037110510101,"D-24-15 18BDA2 UNSURV",31.343611111111109,-110.85027777777778,"NAD27","1963-07-20",6.43,null,3713,"NGVD29","U",47,47,null,null,null,null,null,null,null,null,null,null,null,null,null,null,null,null,null,null,null,null,null,null,null,null,null,null,null,null,null,null,null,null,null,null,null,null,null,null,null,null,null,null,null,null,null,null,null,null,null,null,null,null,null,null,null,null,null,null,null,null,null,null,null,null,null,null,null,null,null,null,null,null,null,null,null,null,null,null,null,null,null,null,null,null,null,null,19630720]
["USGS",312037110510101,"D-24-15 18BDA2 UNSURV",31.343611111111109,-110.85027777777778,"NAD27","1963-09-20",6.46,null,3713,"NGVD29","U",47,47,null,null,null,null,null,null,null,null,null,null,null,null,null,null,null,null,null,null,null,null,null,null,null,null,null,null,null,null,null,null,null,null,null,null,null,null,null,null,null,null,null,null,null,null,null,null,null,null,null,null,null,null,null,null,null,null,null,null,null,null,null,null,null,null,null,null,null,null,null,null,null,null,null,null,null,null,null,null,null,null,null,null,null,null,null,null,19630920]
["USGS",312037110510101,"D-24-15 18BDA2 UNSURV",31.343611111111109,-110.85027777777778,"NAD27","1963-12-20",6.53,null,3713,"NGVD29","U",47,47,null,null,null,null,null,null,null,null,null,null,null,null,null,null,null,null,null,null,null,null,null,null,null,null,null,null,null,null,null,null,null,null,null,null,null,null,null,null,null,null,null,null,null,null,null,null,null,null,null,null,null,null,null,null,null,null,null,null,null,null,null,null,null,null,null,null,null,null,null,null,null,null,null,null,null,null,null,null,null,null,null,null,null,null,null,null,19631220]
["USGS",312037110510101,"D-24-15 18BDA2 UNSURV",31.343611111111109,-110.85027777777778,"NAD27","1964-03-20",6.6,null,3713,"NGVD29","U",47,47,null,null,null,null,null,null,null,null,null,null,null,null,null,null,null,null,null,null,null,null,null,null,null,null,null,null,null,null,null,null,null,null,null,null,null,null,null,null,null,null,null,null,null,null,null,null,null,null,null,null,null,null,null,null,null,null,null,null,null,null,null,null,null,null,null,null,null,null,null,null,null,null,null,null,null,null,null,null,null,null,null,null,null,null,null,null,19640320]
["USGS",312037110510101,"D-24-15 18BDA2 UNSURV",31.343611111111109,-110.85027777777778,"NAD27","1964-06-20",7.33,null,3713,"NGVD29","U",47,47,null,null,null,null,null,null,null,null,null,null,null,null,null,null,null,null,null,null,null,null,null,null,null,null,null,null,null,null,null,null,null,null,null,null,null,null,null,null,null,null,null,null,null,null,null,null,null,null,null,null,null,null,null,null,null,null,null,null,null,null,null,null,null,null,null,null,null,null,null,null,null,null,null,null,null,null,null,null,null,null,null,null,null,null,null,null,19640620]
["USGS",312037110510101,"D-24-15 18BDA2 UNSURV",31.343611111111109,-110.85027777777778,"NAD27","1964-11-20",6.23,null,3713,"NGVD29","U",47,47,null,null,null,null,null,null,null,null,null,null,null,null,null,null,null,null,null,null,null,null,null,null,null,null,null,null,null,null,null,null,null,null,null,null,null,null,null,null,null,null,null,null,null,null,null,null,null,null,null,null,null,null,null,null,null,null,null,null,null,null,null,null,null,null,null,null,null,null,null,null,null,null,null,null,null,null,null,null,null,null,null,null,null,null,null,null,19641120]
["USGS",312037110510101,"D-24-15 18BDA2 UNSURV",31.343611111111109,-110.85027777777778,"NAD27","1965-03-20",6.43,null,3713,"NGVD29","U",47,47,null,null,null,null,null,null,null,null,null,null,null,null,null,null,null,null,null,null,null,null,null,null,null,null,null,null,null,null,null,null,null,null,null,null,null,null,null,null,null,null,null,null,null,null,null,null,null,null,null,null,null,null,null,null,null,null,null,null,null,null,null,null,null,null,null,null,null,null,null,null,null,null,null,null,null,null,null,null,null,null,null,null,null,null,null,null,19650320]
["USGS",312037110510101,"D-24-15 18BDA2 UNSURV",31.343611111111109,-110.85027777777778,"NAD27","1965-06-20",7.02,null,3713,"NGVD29","U",47,47,null,null,null,null,null,null,null,null,null,null,null,null,null,null,null,null,null,null,null,null,null,null,null,null,null,null,null,null,null,null,null,null,null,null,null,null,null,null,null,null,null,null,null,null,null,null,null,null,null,null,null,null,null,null,null,null,null,null,null,null,null,null,null,null,null,null,null,null,null,null,null,null,null,null,null,null,null,null,null,null,null,null,null,null,null,null,19650620]
["USGS",312037110510101,"D-24-15 18BDA2 UNSURV",31.343611111111109,-110.85027777777778,"NAD27","1965-10-20",7.33,null,3713,"NGVD29","U",47,47,null,null,null,null,null,null,null,null,null,null,null,null,null,null,null,null,null,null,null,null,null,null,null,null,null,null,null,null,null,null,null,null,null,null,null,null,null,null,null,null,null,null,null,null,null,null,null,null,null,null,null,null,null,null,null,null,null,null,null,null,null,null,null,null,null,null,null,null,null,null,null,null,null,null,null,null,null,null,null,null,null,null,null,null,null,null,19651020]
["USGS",312037110510101,"D-24-15 18BDA2 UNSURV",31.343611111111109,-110.85027777777778,"NAD27","1965-12-20",5.68,null,3713,"NGVD29","U",47,47,null,null,null,null,null,null,null,null,null,null,null,null,null,null,null,null,null,null,null,null,null,null,null,null,null,null,null,null,null,null,null,null,null,null,null,null,null,null,null,null,null,null,null,null,null,null,null,null,null,null,null,null,null,null,null,null,null,null,null,null,null,null,null,null,null,null,null,null,null,null,null,null,null,null,null,null,null,null,null,null,null,null,null,null,null,null,19651220]
["USGS",312037110510101,"D-24-15 18BDA2 UNSURV",31.343611111111109,-110.85027777777778,"NAD27","1966-03-20",6.09,null,3713,"NGVD29","U",47,47,null,null,null,null,null,null,null,null,null,null,null,null,null,null,null,null,null,null,null,null,null,null,null,null,null,null,null,null,null,null,null,null,null,null,null,null,null,null,null,null,null,null,null,null,null,null,null,null,null,null,null,null,null,null,null,null,null,null,null,null,null,null,null,null,null,null,null,null,null,null,null,null,null,null,null,null,null,null,null,null,null,null,null,null,null,null,19660320]
["USGS",312037110510101,"D-24-15 18BDA2 UNSURV",31.343611111111109,-110.85027777777778,"NAD27","1966-09-20",5.95,null,3713,"NGVD29","U",47,47,null,null,null,null,null,null,null,null,null,null,null,null,null,null,null,null,null,null,null,null,null,null,null,null,null,null,null,null,null,null,null,null,null,null,null,null,null,null,null,null,null,null,null,null,null,null,null,null,null,null,null,null,null,null,null,null,null,null,null,null,null,null,null,null,null,null,null,null,null,null,null,null,null,null,null,null,null,null,null,null,null,null,null,null,null,null,19660920]
["USGS",312037110510101,"D-24-15 18BDA2 UNSURV",31.343611111111109,-110.85027777777778,"NAD27","1966-10-20",6.06,null,3713,"NGVD29","U",47,47,null,null,null,null,null,null,null,null,null,null,null,null,null,null,null,null,null,null,null,null,null,null,null,null,null,null,null,null,null,null,null,null,null,null,null,null,null,null,null,null,null,null,null,null,null,null,null,null,null,null,null,null,null,null,null,null,null,null,null,null,null,null,null,null,null,null,null,null,null,null,null,null,null,null,null,null,null,null,null,null,null,null,null,null,null,null,19661020]
["USGS",312037110510101,"D-24-15 18BDA2 UNSURV",31.343611111111109,-110.85027777777778,"NAD27","1967-02-20",6.35,null,3713,"NGVD29","U",47,47,null,null,null,null,null,null,null,null,null,null,null,null,null,null,null,null,null,null,null,null,null,null,null,null,null,null,null,null,null,null,null,null,null,null,null,null,null,null,null,null,null,null,null,null,null,null,null,null,null,null,null,null,null,null,null,null,null,null,null,null,null,null,null,null,null,null,null,null,null,null,null,null,null,null,null,null,null,null,null,null,null,null,null,null,null,null,19670220]
["USGS",312037110510101,"D-24-15 18BDA2 UNSURV",31.343611111111109,-110.85027777777778,"NAD27","1967-05-23",6.54,null,3713,"NGVD29","U",47,47,null,null,null,null,null,null,null,null,null,null,null,null,null,null,null,null,null,null,null,null,null,null,null,null,null,null,null,null,null,null,null,null,null,null,null,null,null,null,null,null,null,null,null,null,null,null,null,null,null,null,null,null,null,null,null,null,null,null,null,null,null,null,null,null,null,null,null,null,null,null,null,null,null,null,null,null,null,null,null,null,null,null,null,null,null,null,19670523]
["USGS",312037110510101,"D-24-15 18BDA2 UNSURV",31.343611111111109,-110.85027777777778,"NAD27","1967-09-17",6.69,null,3713,"NGVD29","U",47,47,null,null,null,null,null,null,null,null,null,null,null,null,null,null,null,null,null,null,null,null,null,null,null,null,null,null,null,null,null,null,null,null,null,null,null,null,null,null,null,null,null,null,null,null,null,null,null,null,null,null,null,null,null,null,null,null,null,null,null,null,null,null,null,null,null,null,null,null,null,null,null,null,null,null,null,null,null,null,null,null,null,null,null,null,null,null,19670917]
["USGS",312037110510101,"D-24-15 18BDA2 UNSURV",31.343611111111109,-110.85027777777778,"NAD27","1967-10-18",6.65,null,3713,"NGVD29","U",47,47,null,null,null,null,null,null,null,null,null,null,null,null,null,null,null,null,null,null,null,null,null,null,null,null,null,null,null,null,null,null,null,null,null,null,null,null,null,null,null,null,null,null,null,null,null,null,null,null,null,null,null,null,null,null,null,null,null,null,null,null,null,null,null,null,null,null,null,null,null,null,null,null,null,null,null,null,null,null,null,null,null,null,null,null,null,null,19671018]
["USGS",312037110510101,"D-24-15 18BDA2 UNSURV",31.343611111111109,-110.85027777777778,"NAD27","1968-04-25",6.62,null,3713,"NGVD29","U",47,47,null,null,null,null,null,null,null,null,null,null,null,null,null,null,null,null,null,null,null,null,null,null,null,null,null,null,null,null,null,null,null,null,null,null,null,null,null,null,null,null,null,null,null,null,null,null,null,null,null,null,null,null,null,null,null,null,null,null,null,null,null,null,null,null,null,null,null,null,null,null,null,null,null,null,null,null,null,null,null,null,null,null,null,null,null,null,19680425]
["USGS",312037110510101,"D-24-15 18BDA2 UNSURV",31.343611111111109,-110.85027777777778,"NAD27","1968-08-23",6.88,null,3713,"NGVD29","U",47,47,null,null,null,null,null,null,null,null,null,null,null,null,null,null,null,null,null,null,null,null,null,null,null,null,null,null,null,null,null,null,null,null,null,null,null,null,null,null,null,null,null,null,null,null,null,null,null,null,null,null,null,null,null,null,null,null,null,null,null,null,null,null,null,null,null,null,null,null,null,null,null,null,null,null,null,null,null,null,null,null,null,null,null,null,null,null,19680823]
["USGS",312037110510101,"D-24-15 18BDA2 UNSURV",31.343611111111109,-110.85027777777778,"NAD27","1968-10-25",7.03,null,3713,"NGVD29","U",47,47,null,null,null,null,null,null,null,null,null,null,null,null,null,null,null,null,null,null,null,null,null,null,null,null,null,null,null,null,null,null,null,null,null,null,null,null,null,null,null,null,null,null,null,null,null,null,null,null,null,null,null,null,null,null,null,null,null,null,null,null,null,null,null,null,null,null,null,null,null,null,null,null,null,null,null,null,null,null,null,null,null,null,null,null,null,null,19681025]
["USGS",312037110510101,"D-24-15 18BDA2 UNSURV",31.343611111111109,-110.85027777777778,"NAD27","1969-01-27",6.94,null,3713,"NGVD29","U",47,47,null,null,null,null,null,null,null,null,null,null,null,null,null,null,null,null,null,null,null,null,null,null,null,null,null,null,null,null,null,null,null,null,null,null,null,null,null,null,null,null,null,null,null,null,null,null,null,null,null,null,null,null,null,null,null,null,null,null,null,null,null,null,null,null,null,null,null,null,null,null,null,null,null,null,null,null,null,null,null,null,null,null,null,null,null,null,19690127]
["USGS",312037110510101,"D-24-15 18BDA2 UNSURV",31.343611111111109,-110.85027777777778,"NAD27","1969-05-23",7.04,null,3713,"NGVD29","U",47,47,null,null,null,null,null,null,null,null,null,null,null,null,null,null,null,null,null,null,null,null,null,null,null,null,null,null,null,null,null,null,null,null,null,null,null,null,null,null,null,null,null,null,null,null,null,null,null,null,null,null,null,null,null,null,null,null,null,null,null,null,null,null,null,null,null,null,null,null,null,null,null,null,null,null,null,null,null,null,null,null,null,null,null,null,null,null,19690523]
["USGS",312037110510101,"D-24-15 18BDA2 UNSURV",31.343611111111109,-110.85027777777778,"NAD27","1969-09-24",6.33,null,3713,"NGVD29","U",47,47,null,null,null,null,null,null,null,null,null,null,null,null,null,null,null,null,null,null,null,null,null,null,null,null,null,null,null,null,null,null,null,null,null,null,null,null,null,null,null,null,null,null,null,null,null,null,null,null,null,null,null,null,null,null,null,null,null,null,null,null,null,null,null,null,null,null,null,null,null,null,null,null,null,null,null,null,null,null,null,null,null,null,null,null,null,null,19690924]
["USGS",312037110510101,"D-24-15 18BDA2 UNSURV",31.343611111111109,-110.85027777777778,"NAD27","1970-02-19",6.39,null,3713,"NGVD29","U",47,47,null,null,null,null,null,null,null,null,null,null,null,null,null,null,null,null,null,null,null,null,null,null,null,null,null,null,null,null,null,null,null,null,null,null,null,null,null,null,null,null,null,null,null,null,null,null,null,null,null,null,null,null,null,null,null,null,null,null,null,null,null,null,null,null,null,null,null,null,null,null,null,null,null,null,null,null,null,null,null,null,null,null,null,null,null,null,19700219]
["USGS",312037110510101,"D-24-15 18BDA2 UNSURV",31.343611111111109,-110.85027777777778,"NAD27","1970-05-25",6.61,null,3713,"NGVD29","U",47,47,null,null,null,null,null,null,null,null,null,null,null,null,null,null,null,null,null,null,null,null,null,null,null,null,null,null,null,null,null,null,null,null,null,null,null,null,null,null,null,null,null,null,null,null,null,null,null,null,null,null,null,null,null,null,null,null,null,null,null,null,null,null,null,null,null,null,null,null,null,null,null,null,null,null,null,null,null,null,null,null,null,null,null,null,null,null,19700525]
["USGS",312037110510101,"D-24-15 18BDA2 UNSURV",31.343611111111109,-110.85027777777778,"NAD27","1970-07-28",6.79,null,3713,"NGVD29","U",47,47,null,null,null,null,null,null,null,null,null,null,null,null,null,null,null,null,null,null,null,null,null,null,null,null,null,null,null,null,null,null,null,null,null,null,null,null,null,null,null,null,null,null,null,null,null,null,null,null,null,null,null,null,null,null,null,null,null,null,null,null,null,null,null,null,null,null,null,null,null,null,null,null,null,null,null,null,null,null,null,null,null,null,null,null,null,null,19700728]
["USGS",312037110510101,"D-24-15 18BDA2 UNSURV",31.343611111111109,-110.85027777777778,"NAD27","1970-10-27",6.5,null,3713,"NGVD29","U",47,47,null,null,null,null,null,null,null,null,null,null,null,null,null,null,null,null,null,null,null,null,null,null,null,null,null,null,null,null,null,null,null,null,null,null,null,null,null,null,null,null,null,null,null,null,null,null,null,null,null,null,null,null,null,null,null,null,null,null,null,null,null,null,null,null,null,null,null,null,null,null,null,null,null,null,null,null,null,null,null,null,null,null,null,null,null,null,19701027]
["USGS",312037110510101,"D-24-15 18BDA2 UNSURV",31.343611111111109,-110.85027777777778,"NAD27","1971-01-26",6.47,null,3713,"NGVD29","U",47,47,null,null,null,null,null,null,null,null,null,null,null,null,null,null,null,null,null,null,null,null,null,null,null,null,null,null,null,null,null,null,null,null,null,null,null,null,null,null,null,null,null,null,null,null,null,null,null,null,null,null,null,null,null,null,null,null,null,null,null,null,null,null,null,null,null,null,null,null,null,null,null,null,null,null,null,null,null,null,null,null,null,null,null,null,null,null,19710126]
["USGS",312037110510101,"D-24-15 18BDA2 UNSURV",31.343611111111109,-110.85027777777778,"NAD27","1971-04-27",6.58,null,3713,"NGVD29","U",47,47,null,null,null,null,null,null,null,null,null,null,null,null,null,null,null,null,null,null,null,null,null,null,null,null,null,null,null,null,null,null,null,null,null,null,null,null,null,null,null,null,null,null,null,null,null,null,null,null,null,null,null,null,null,null,null,null,null,null,null,null,null,null,null,null,null,null,null,null,null,null,null,null,null,null,null,null,null,null,null,null,null,null,null,null,null,null,19710427]
["USGS",312037110510101,"D-24-15 18BDA2 UNSURV",31.343611111111109,-110.85027777777778,"NAD27","1971-09-23",6.34,null,3713,"NGVD29","U",47,47,null,null,null,null,null,null,null,null,null,null,null,null,null,null,null,null,null,null,null,null,null,null,null,null,null,null,null,null,null,null,null,null,null,null,null,null,null,null,null,null,null,null,null,null,null,null,null,null,null,null,null,null,null,null,null,null,null,null,null,null,null,null,null,null,null,null,null,null,null,null,null,null,null,null,null,null,null,null,null,null,null,null,null,null,null,null,19710923]
["USGS",312037110510101,"D-24-15 18BDA2 UNSURV",31.343611111111109,-110.85027777777778,"NAD27","1972-01-27",6.18,null,3713,"NGVD29","U",47,47,null,null,null,null,null,null,null,null,null,null,null,null,null,null,null,null,null,null,null,null,null,null,null,null,null,null,null,null,null,null,null,null,null,null,null,null,null,null,null,null,null,null,null,null,null,null,null,null,null,null,null,null,null,null,null,null,null,null,null,null,null,null,null,null,null,null,null,null,null,null,null,null,null,null,null,null,null,null,null,null,null,null,null,null,null,null,19720127]
["USGS",312037110510101,"D-24-15 18BDA2 UNSURV",31.343611111111109,-110.85027777777778,"NAD27","1972-05-24",6.45,null,3713,"NGVD29","U",47,47,null,null,null,null,null,null,null,null,null,null,null,null,null,null,null,null,null,null,null,null,null,null,null,null,null,null,null,null,null,null,null,null,null,null,null,null,null,null,null,null,null,null,null,null,null,null,null,null,null,null,null,null,null,null,null,null,null,null,null,null,null,null,null,null,null,null,null,null,null,null,null,null,null,null,null,null,null,null,null,null,null,null,null,null,null,null,19720524]
["USGS",312037110510101,"D-24-15 18BDA2 UNSURV",31.343611111111109,-110.85027777777778,"NAD27","1972-08-24",6.71,null,3713,"NGVD29","U",47,47,null,null,null,null,null,null,null,null,null,null,null,null,null,null,null,null,null,null,null,null,null,null,null,null,null,null,null,null,null,null,null,null,null,null,null,null,null,null,null,null,null,null,null,null,null,null,null,null,null,null,null,null,null,null,null,null,null,null,null,null,null,null,null,null,null,null,null,null,null,null,null,null,null,null,null,null,null,null,null,null,null,null,null,null,null,null,19720824]
["USGS",312037110510101,"D-24-15 18BDA2 UNSURV",31.343611111111109,-110.85027777777778,"NAD27","1972-10-26",6.57,null,3713,"NGVD29","U",47,47,null,null,null,null,null,null,null,null,null,null,null,null,null,null,null,null,null,null,null,null,null,null,null,null,null,null,null,null,null,null,null,null,null,null,null,null,null,null,null,null,null,null,null,null,null,null,null,null,null,null,null,null,null,null,null,null,null,null,null,null,null,null,null,null,null,null,null,null,null,null,null,null,null,null,null,null,null,null,null,null,null,null,null,null,null,null,19721026]
["USGS",312037110510101,"D-24-15 18BDA2 UNSURV",31.343611111111109,-110.85027777777778,"NAD27","1973-01-26",6.49,null,3713,"NGVD29","U",47,47,null,null,null,null,null,null,null,null,null,null,null,null,null,null,null,null,null,null,null,null,null,null,null,null,null,null,null,null,null,null,null,null,null,null,null,null,null,null,null,null,null,null,null,null,null,null,null,null,null,null,null,null,null,null,null,null,null,null,null,null,null,null,null,null,null,null,null,null,null,null,null,null,null,null,null,null,null,null,null,null,null,null,null,null,null,null,19730126]
["USGS",312037110510101,"D-24-15 18BDA2 UNSURV",31.343611111111109,-110.85027777777778,"NAD27","1973-07-24",6.53,null,3713,"NGVD29","U",47,47,null,null,null,null,null,null,null,null,null,null,null,null,null,null,null,null,null,null,null,null,null,null,null,null,null,null,null,null,null,null,null,null,null,null,null,null,null,null,null,null,null,null,null,null,null,null,null,null,null,null,null,null,null,null,null,null,null,null,null,null,null,null,null,null,null,null,null,null,null,null,null,null,null,null,null,null,null,null,null,null,null,null,null,null,null,null,19730724]
["USGS",312037110510101,"D-24-15 18BDA2 UNSURV",31.343611111111109,-110.85027777777778,"NAD27","1973-09-24",7.71,null,3713,"NGVD29","U",47,47,null,null,null,null,null,null,null,null,null,null,null,null,null,null,null,null,null,null,null,null,null,null,null,null,null,null,null,null,null,null,null,null,null,null,null,null,null,null,null,null,null,null,null,null,null,null,null,null,null,null,null,null,null,null,null,null,null,null,null,null,null,null,null,null,null,null,null,null,null,null,null,null,null,null,null,null,null,null,null,null,null,null,null,null,null,null,19730924]
["USGS",312037110510101,"D-24-15 18BDA2 UNSURV",31.343611111111109,-110.85027777777778,"NAD27","1973-12-20",9.07,null,3713,"NGVD29","U",47,47,null,null,null,null,null,null,null,null,null,null,null,null,null,null,null,null,null,null,null,null,null,null,null,null,null,null,null,null,null,null,null,null,null,null,null,null,null,null,null,null,null,null,null,null,null,null,null,null,null,null,null,null,null,null,null,null,null,null,null,null,null,null,null,null,null,null,null,null,null,null,null,null,null,null,null,null,null,null,null,null,null,null,null,null,null,null,19731220]
["USGS",312037110510101,"D-24-15 18BDA2 UNSURV",31.343611111111109,-110.85027777777778,"NAD27","1974-04-25",10.34,null,3713,"NGVD29","U",47,47,null,null,null,null,null,null,null,null,null,null,null,null,null,null,null,null,null,null,null,null,null,null,null,null,null,null,null,null,null,null,null,null,null,null,null,null,null,null,null,null,null,null,null,null,null,null,null,null,null,null,null,null,null,null,null,null,null,null,null,null,null,null,null,null,null,null,null,null,null,null,null,null,null,null,null,null,null,null,null,null,null,null,null,null,null,null,19740425]
["USGS",312037110510101,"D-24-15 18BDA2 UNSURV",31.343611111111109,-110.85027777777778,"NAD27","1974-09-25",6.19,null,3713,"NGVD29","U",47,47,null,null,null,null,null,null,null,null,null,null,null,null,null,null,null,null,null,null,null,null,null,null,null,null,null,null,null,null,null,null,null,null,null,null,null,null,null,null,null,null,null,null,null,null,null,null,null,null,null,null,null,null,null,null,null,null,null,null,null,null,null,null,null,null,null,null,null,null,null,null,null,null,null,null,null,null,null,null,null,null,null,null,null,null,null,null,19740925]
["USGS",312037110510101,"D-24-15 18BDA2 UNSURV",31.343611111111109,-110.85027777777778,"NAD27","1974-10-21",7.83,null,3713,"NGVD29","U",47,47,null,null,null,null,null,null,null,null,null,null,null,null,null,null,null,null,null,null,null,null,null,null,null,null,null,null,null,null,null,null,null,null,null,null,null,null,null,null,null,null,null,null,null,null,null,null,null,null,null,null,null,null,null,null,null,null,null,null,null,null,null,null,null,null,null,null,null,null,null,null,null,null,null,null,null,null,null,null,null,null,null,null,null,null,null,null,19741021]
["USGS",312037110510101,"D-24-15 18BDA2 UNSURV",31.343611111111109,-110.85027777777778,"NAD27","1975-04-25",6.75,null,3713,"NGVD29","U",47,47,null,null,null,null,null,null,null,null,null,null,null,null,null,null,null,null,null,null,null,null,null,null,null,null,null,null,null,null,null,null,null,null,null,null,null,null,null,null,null,null,null,null,null,null,null,null,null,null,null,null,null,null,null,null,null,null,null,null,null,null,null,null,null,null,null,null,null,null,null,null,null,null,null,null,null,null,null,null,null,null,null,null,null,null,null,null,19750425]
["USGS",312037110510101,"D-24-15 18BDA2 UNSURV",31.343611111111109,-110.85027777777778,"NAD27","1976-12-06",6.5,null,3713,"NGVD29","U",47,47,null,null,null,null,null,null,null,null,null,null,null,null,null,null,null,null,null,null,null,null,null,null,null,null,null,null,null,null,null,null,null,null,null,null,null,null,null,null,null,null,null,null,null,null,null,null,null,null,null,null,null,null,null,null,null,null,null,null,null,null,null,null,null,null,null,null,null,null,null,null,null,null,null,null,null,null,null,null,null,null,null,null,null,null,null,null,19761206]
["USGS",312048110504901,"D-24-15 18BA   UNSURV",31.344999999999999,-110.84972222222221,"NAD27","1940-01-04",9.91,null,3715,"NGVD29","U",80,80,null,null,null,null,null,null,null,null,null,null,null,null,null,null,null,null,null,null,null,null,null,null,null,null,null,null,null,null,null,null,null,null,null,null,null,null,null,null,null,null,null,null,null,null,null,null,null,null,null,null,null,null,null,null,null,null,null,null,null,null,null,null,null,null,null,null,null,null,null,null,null,null,null,null,null,null,null,null,null,null,null,null,null,null,null,null,19400104]
["USGS",312048110504901,"D-24-15 18BA   UNSURV",31.344999999999999,-110.84972222222221,"NAD27","1940-06-07",10.89,null,3715,"NGVD29","U",80,80,null,null,null,null,null,null,null,null,null,null,null,null,null,null,null,null,null,null,null,null,null,null,null,null,null,null,null,null,null,null,null,null,null,null,null,null,null,null,null,null,null,null,null,null,null,null,null,null,null,null,null,null,null,null,null,null,null,null,null,null,null,null,null,null,null,null,null,null,null,null,null,null,null,null,null,null,null,null,null,null,null,null,null,null,null,null,19400607]
["USGS",312048110504901,"D-24-15 18BA   UNSURV",31.344999999999999,-110.84972222222221,"NAD27","1941-11-26",10.09,null,3715,"NGVD29","U",80,80,null,null,null,null,null,null,null,null,null,null,null,null,null,null,null,null,null,null,null,null,null,null,null,null,null,null,null,null,null,null,null,null,null,null,null,null,null,null,null,null,null,null,null,null,null,null,null,null,null,null,null,null,null,null,null,null,null,null,null,null,null,null,null,null,null,null,null,null,null,null,null,null,null,null,null,null,null,null,null,null,null,null,null,null,null,null,19411126]
["USGS",312048110504901,"D-24-15 18BA   UNSURV",31.344999999999999,-110.84972222222221,"NAD27","1947-10-28",10.57,null,3715,"NGVD29","U",80,80,null,null,null,null,null,null,null,null,null,null,null,null,null,null,null,null,null,null,null,null,null,null,null,null,null,null,null,null,null,null,null,null,null,null,null,null,null,null,null,null,null,null,null,null,null,null,null,null,null,null,null,null,null,null,null,null,null,null,null,null,null,null,null,null,null,null,null,null,null,null,null,null,null,null,null,null,null,null,null,null,null,null,null,null,null,null,19471028]
["USGS",312048110504901,"D-24-15 18BA   UNSURV",31.344999999999999,-110.84972222222221,"NAD27","1948-09-30",10.02,null,3715,"NGVD29","U",80,80,null,null,null,null,null,null,null,null,null,null,null,null,null,null,null,null,null,null,null,null,null,null,null,null,null,null,null,null,null,null,null,null,null,null,null,null,null,null,null,null,null,null,null,null,null,null,null,null,null,null,null,null,null,null,null,null,null,null,null,null,null,null,null,null,null,null,null,null,null,null,null,null,null,null,null,null,null,null,null,null,null,null,null,null,null,null,19480930]
["USGS",312048110504901,"D-24-15 18BA   UNSURV",31.344999999999999,-110.84972222222221,"NAD27","1949-01-19",9.39,null,3715,"NGVD29","U",80,80,null,null,null,null,null,null,null,null,null,null,null,null,null,null,null,null,null,null,null,null,null,null,null,null,null,null,null,null,null,null,null,null,null,null,null,null,null,null,null,null,null,null,null,null,null,null,null,null,null,null,null,null,null,null,null,null,null,null,null,null,null,null,null,null,null,null,null,null,null,null,null,null,null,null,null,null,null,null,null,null,null,null,null,null,null,null,19490119]
["USGS",312048110504901,"D-24-15 18BA   UNSURV",31.344999999999999,-110.84972222222221,"NAD27","1949-07-27",9.5500000000000007,null,3715,"NGVD29","U",80,80,null,null,null,null,null,null,null,null,null,null,null,null,null,null,null,null,null,null,null,null,null,null,null,null,null,null,null,null,null,null,null,null,null,null,null,null,null,null,null,null,null,null,null,null,null,null,null,null,null,null,null,null,null,null,null,null,null,null,null,null,null,null,null,null,null,null,null,null,null,null,null,null,null,null,null,null,null,null,null,null,null,null,null,null,null,null,19490727]
["USGS",312048110504901,"D-24-15 18BA   UNSURV",31.344999999999999,-110.84972222222221,"NAD27","1950-02-09",10.61,null,3715,"NGVD29","U",80,80,null,null,null,null,null,null,null,null,null,null,null,null,null,null,null,null,null,null,null,null,null,null,null,null,null,null,null,null,null,null,null,null,null,null,null,null,null,null,null,null,null,null,null,null,null,null,null,null,null,null,null,null,null,null,null,null,null,null,null,null,null,null,null,null,null,null,null,null,null,null,null,null,null,null,null,null,null,null,null,null,null,null,null,null,null,null,19500209]
["USGS",312048110504901,"D-24-15 18BA   UNSURV",31.344999999999999,-110.84972222222221,"NAD27","1950-07-12",9.25,null,3715,"NGVD29","U",80,80,null,null,null,null,null,null,null,null,null,null,null,null,null,null,null,null,null,null,null,null,null,null,null,null,null,null,null,null,null,null,null,null,null,null,null,null,null,null,null,null,null,null,null,null,null,null,null,null,null,null,null,null,null,null,null,null,null,null,null,null,null,null,null,null,null,null,null,null,null,null,null,null,null,null,null,null,null,null,null,null,null,null,null,null,null,null,19500712]
["USGS",312048110504901,"D-24-15 18BA   UNSURV",31.344999999999999,-110.84972222222221,"NAD27","1950-10-16",9.5299999999999994,null,3715,"NGVD29","U",80,80,null,null,null,null,null,null,null,null,null,null,null,null,null,null,null,null,null,null,null,null,null,null,null,null,null,null,null,null,null,null,null,null,null,null,null,null,null,null,null,null,null,null,null,null,null,null,null,null,null,null,null,null,null,null,null,null,null,null,null,null,null,null,null,null,null,null,null,null,null,null,null,null,null,null,null,null,null,null,null,null,null,null,null,null,null,null,19501016]
["USGS",312048110504901,"D-24-15 18BA   UNSURV",31.344999999999999,-110.84972222222221,"NAD27","1951-04-25",9.5299999999999994,null,3715,"NGVD29","U",80,80,null,null,null,null,null,null,null,null,null,null,null,null,null,null,null,null,null,null,null,null,null,null,null,null,null,null,null,null,null,null,null,null,null,null,null,null,null,null,null,null,null,null,null,null,null,null,null,null,null,null,null,null,null,null,null,null,null,null,null,null,null,null,null,null,null,null,null,null,null,null,null,null,null,null,null,null,null,null,null,null,null,null,null,null,null,null,19510425]
["USGS",312048110504901,"D-24-15 18BA   UNSURV",31.344999999999999,-110.84972222222221,"NAD27","1951-09-05",9.4600000000000009,null,3715,"NGVD29","U",80,80,null,null,null,null,null,null,null,null,null,null,null,null,null,null,null,null,null,null,null,null,null,null,null,null,null,null,null,null,null,null,null,null,null,null,null,null,null,null,null,null,null,null,null,null,null,null,null,null,null,null,null,null,null,null,null,null,null,null,null,null,null,null,null,null,null,null,null,null,null,null,null,null,null,null,null,null,null,null,null,null,null,null,null,null,null,null,19510905]
["USGS",312048110504901,"D-24-15 18BA   UNSURV",31.344999999999999,-110.84972222222221,"NAD27","1952-07-08",9.56,null,3715,"NGVD29","U",80,80,null,null,null,null,null,null,null,null,null,null,null,null,null,null,null,null,null,null,null,null,null,null,null,null,null,null,null,null,null,null,null,null,null,null,null,null,null,null,null,null,null,null,null,null,null,null,null,null,null,null,null,null,null,null,null,null,null,null,null,null,null,null,null,null,null,null,null,null,null,null,null,null,null,null,null,null,null,null,null,null,null,null,null,null,null,null,19520708]
["USGS",312048110504901,"D-24-15 18BA   UNSURV",31.344999999999999,-110.84972222222221,"NAD27","1952-10-07",9.89,null,3715,"NGVD29","U",80,80,null,null,null,null,null,null,null,null,null,null,null,null,null,null,null,null,null,null,null,null,null,null,null,null,null,null,null,null,null,null,null,null,null,null,null,null,null,null,null,null,null,null,null,null,null,null,null,null,null,null,null,null,null,null,null,null,null,null,null,null,null,null,null,null,null,null,null,null,null,null,null,null,null,null,null,null,null,null,null,null,null,null,null,null,null,null,19521007]
["USGS",312048110504901,"D-24-15 18BA   UNSURV",31.344999999999999,-110.84972222222221,"NAD27","1953-01-27",9.0500000000000007,null,3715,"NGVD29","U",80,80,null,null,null,null,null,null,null,null,null,null,null,null,null,null,null,null,null,null,null,null,null,null,null,null,null,null,null,null,null,null,null,null,null,null,null,null,null,null,null,null,null,null,null,null,null,null,null,null,null,null,null,null,null,null,null,null,null,null,null,null,null,null,null,null,null,null,null,null,null,null,null,null,null,null,null,null,null,null,null,null,null,null,null,null,null,null,19530127]
["USGS",312048110504901,"D-24-15 18BA   UNSURV",31.344999999999999,-110.84972222222221,"NAD27","1953-06-19",9.69,null,3715,"NGVD29","U",80,80,null,null,null,null,null,null,null,null,null,null,null,null,null,null,null,null,null,null,null,null,null,null,null,null,null,null,null,null,null,null,null,null,null,null,null,null,null,null,null,null,null,null,null,null,null,null,null,null,null,null,null,null,null,null,null,null,null,null,null,null,null,null,null,null,null,null,null,null,null,null,null,null,null,null,null,null,null,null,null,null,null,null,null,null,null,null,19530619]
["USGS",312048110504901,"D-24-15 18BA   UNSURV",31.344999999999999,-110.84972222222221,"NAD27","1954-02-08",9.0299999999999994,null,3715,"NGVD29","U",80,80,null,null,null,null,null,null,null,null,null,null,null,null,null,null,null,null,null,null,null,null,null,null,null,null,null,null,null,null,null,null,null,null,null,null,null,null,null,null,null,null,null,null,null,null,null,null,null,null,null,null,null,null,null,null,null,null,null,null,null,null,null,null,null,null,null,null,null,null,null,null,null,null,null,null,null,null,null,null,null,null,null,null,null,null,null,null,19540208]
["USGS",312048110504901,"D-24-15 18BA   UNSURV",31.344999999999999,-110.84972222222221,"NAD27","1954-05-17",9.41,null,3715,"NGVD29","U",80,80,null,null,null,null,null,null,null,null,null,null,null,null,null,null,null,null,null,null,null,null,null,null,null,null,null,null,null,null,null,null,null,null,null,null,null,null,null,null,null,null,null,null,null,null,null,null,null,null,null,null,null,null,null,null,null,null,null,null,null,null,null,null,null,null,null,null,null,null,null,null,null,null,null,null,null,null,null,null,null,null,null,null,null,null,null,null,19540517]
["USGS",312048110504901,"D-24-15 18BA   UNSURV",31.344999999999999,-110.84972222222221,"NAD27","1955-01-24",11.12,null,3715,"NGVD29","U",80,80,null,null,null,null,null,null,null,null,null,null,null,null,null,null,null,null,null,null,null,null,null,null,null,null,null,null,null,null,null,null,null,null,null,null,null,null,null,null,null,null,null,null,null,null,null,null,null,null,null,null,null,null,null,null,null,null,null,null,null,null,null,null,null,null,null,null,null,null,null,null,null,null,null,null,null,null,null,null,null,null,null,null,null,null,null,null,19550124]
["USGS",312048110504901,"D-24-15 18BA   UNSURV",31.344999999999999,-110.84972222222221,"NAD27","1958-09-24",8.5,null,3715,"NGVD29","U",80,80,null,null,null,null,null,null,null,null,null,null,null,null,null,null,null,null,null,null,null,null,null,null,null,null,null,null,null,null,null,null,null,null,null,null,null,null,null,null,null,null,null,null,null,null,null,null,null,null,null,null,null,null,null,null,null,null,null,null,null,null,null,null,null,null,null,null,null,null,null,null,null,null,null,null,null,null,null,null,null,null,null,null,null,null,null,null,19580924]
["USGS",312048110504901,"D-24-15 18BA   UNSURV",31.344999999999999,-110.84972222222221,"NAD27","1962-02-19",10.11,null,3715,"NGVD29","U",80,80,null,null,null,null,null,null,null,null,null,null,null,null,null,null,null,null,null,null,null,null,null,null,null,null,null,null,null,null,null,null,null,null,null,null,null,null,null,null,null,null,null,null,null,null,null,null,null,null,null,null,null,null,null,null,null,null,null,null,null,null,null,null,null,null,null,null,null,null,null,null,null,null,null,null,null,null,null,null,null,null,null,null,null,null,null,null,19620219]
["USGS",312048110504901,"D-24-15 18BA   UNSURV",31.344999999999999,-110.84972222222221,"NAD27","1963-02-19",9.73,null,3715,"NGVD29","U",80,80,null,null,null,null,null,null,null,null,null,null,null,null,null,null,null,null,null,null,null,null,null,null,null,null,null,null,null,null,null,null,null,null,null,null,null,null,null,null,null,null,null,null,null,null,null,null,null,null,null,null,null,null,null,null,null,null,null,null,null,null,null,null,null,null,null,null,null,null,null,null,null,null,null,null,null,null,null,null,null,null,null,null,null,null,null,null,19630219]
["USGS",312048110504901,"D-24-15 18BA   UNSURV",31.344999999999999,-110.84972222222221,"NAD27","1964-11-17",8.92,null,3715,"NGVD29","U",80,80,null,null,null,null,null,null,null,null,null,null,null,null,null,null,null,null,null,null,null,null,null,null,null,null,null,null,null,null,null,null,null,null,null,null,null,null,null,null,null,null,null,null,null,null,null,null,null,null,null,null,null,null,null,null,null,null,null,null,null,null,null,null,null,null,null,null,null,null,null,null,null,null,null,null,null,null,null,null,null,null,null,null,null,null,null,null,19641117]
["ADWR",312048110504901,"D-24-15 18BAD UNSURV",31.344944444444444,-110.84938888888888,"NAD27","1995-01-10",8.3000000000000007,null,3715,null,"S",-9999,-9999,null,null,null,null,null,null,null,null,null,null,null,null,null,null,null,null,null,null,null,null,null,null,null,null,null,null,null,null,null,null,null,null,null,null,null,null,null,null,null,null,null,null,null,null,null,null,null,null,null,null,null,null,null,null,null,null,null,null,null,null,null,null,null,null,null,null,null,null,null,null,null,null,null,null,null,null,null,null,null,null,null,null,null,null,null,null,1]
["ADWR",312048110504901,"D-24-15 18BAD UNSURV",31.344944444444444,-110.84938888888888,"NAD27","1997-11-20",11.3,null,3715,null,"S",-9999,-9999,null,null,null,null,null,null,null,null,null,null,null,null,null,null,null,null,null,null,null,null,null,null,null,null,null,null,null,null,null,null,null,null,null,null,null,null,null,null,null,null,null,null,null,null,null,null,null,null,null,null,null,null,null,null,null,null,null,null,null,null,null,null,null,null,null,null,null,null,null,null,null,null,null,null,null,null,null,null,null,null,null,null,null,null,null,null,1]
["ADWR",312048110504901,"D-24-15 18BAD UNSURV",31.344944444444444,-110.84938888888888,"NAD27","1998-02-13",8.3000000000000007,null,3715,null,"S",-9999,-9999,null,null,null,null,null,null,null,null,null,null,null,null,null,null,null,null,null,null,null,null,null,null,null,null,null,null,null,null,null,null,null,null,null,null,null,null,null,null,null,null,null,null,null,null,null,null,null,null,null,null,null,null,null,null,null,null,null,null,null,null,null,null,null,null,null,null,null,null,null,null,null,null,null,null,null,null,null,null,null,null,null,null,null,null,null,null,1]
["ADWR",312048110504901,"D-24-15 18BAD UNSURV",31.344944444444444,-110.84938888888888,"NAD27","1998-04-15",10.6,"S",3715,null,"S",-9999,-9999,null,null,null,null,null,null,null,null,null,null,null,null,null,null,null,null,null,null,null,null,null,null,null,null,null,null,null,null,null,null,null,null,null,null,null,null,null,null,null,null,null,null,null,null,null,null,null,null,null,null,null,null,null,null,null,null,null,null,null,null,null,null,null,null,null,null,null,null,null,null,null,null,null,null,null,null,null,null,null,null,null,null,null,null,null,null,1]
["ADWR",312048110504901,"D-24-15 18BAD UNSURV",31.344944444444444,-110.84938888888888,"NAD27","1998-07-29",9.9,"S",3715,null,"S",-9999,-9999,null,null,null,null,null,null,null,null,null,null,null,null,null,null,null,null,null,null,null,null,null,null,null,null,null,null,null,null,null,null,null,null,null,null,null,null,null,null,null,null,null,null,null,null,null,null,null,null,null,null,null,null,null,null,null,null,null,null,null,null,null,null,null,null,null,null,null,null,null,null,null,null,null,null,null,null,null,null,null,null,null,null,null,null,null,null,1]
["ADWR",312048110504901,"D-24-15 18BAD UNSURV",31.344944444444444,-110.84938888888888,"NAD27","1998-11-17",12.9,"P",3715,null,"S",-9999,-9999,null,null,null,null,null,null,null,null,null,null,null,null,null,null,null,null,null,null,null,null,null,null,null,null,null,null,null,null,null,null,null,null,null,null,null,null,null,null,null,null,null,null,null,null,null,null,null,null,null,null,null,null,null,null,null,null,null,null,null,null,null,null,null,null,null,null,null,null,null,null,null,null,null,null,null,null,null,null,null,null,null,null,null,null,null,null,1]
["ADWR",312048110504901,"D-24-15 18BAD UNSURV",31.344944444444444,-110.84938888888888,"NAD27","1999-02-12",10.6,null,3715,null,"S",-9999,-9999,null,null,null,null,null,null,null,null,null,null,null,null,null,null,null,null,null,null,null,null,null,null,null,null,null,null,null,null,null,null,null,null,null,null,null,null,null,null,null,null,null,null,null,null,null,null,null,null,null,null,null,null,null,null,null,null,null,null,null,null,null,null,null,null,null,null,null,null,null,null,null,null,null,null,null,null,null,null,null,null,null,null,null,null,null,null,1]
["ADWR",312048110504901,"D-24-15 18BAD UNSURV",31.344944444444444,-110.84938888888888,"NAD27","1999-04-06",10.7,null,3715,null,"S",-9999,-9999,null,null,null,null,null,null,null,null,null,null,null,null,null,null,null,null,null,null,null,null,null,null,null,null,null,null,null,null,null,null,null,null,null,null,null,null,null,null,null,null,null,null,null,null,null,null,null,null,null,null,null,null,null,null,null,null,null,null,null,null,null,null,null,null,null,null,null,null,null,null,null,null,null,null,null,null,null,null,null,null,null,null,null,null,null,null,1]
["ADWR",312048110504901,"D-24-15 18BAD UNSURV",31.344944444444444,-110.84938888888888,"NAD27","1999-06-22",13.4,null,3715,null,"S",-9999,-9999,null,null,null,null,null,null,null,null,null,null,null,null,null,null,null,null,null,null,null,null,null,null,null,null,null,null,null,null,null,null,null,null,null,null,null,null,null,null,null,null,null,null,null,null,null,null,null,null,null,null,null,null,null,null,null,null,null,null,null,null,null,null,null,null,null,null,null,null,null,null,null,null,null,null,null,null,null,null,null,null,null,null,null,null,null,null,1]
["ADWR",312048110504901,"D-24-15 18BAD UNSURV",31.344944444444444,-110.84938888888888,"NAD27","1999-09-21",8.57,null,3715,null,"S",-9999,-9999,null,null,null,null,null,null,null,null,null,null,null,null,null,null,null,null,null,null,null,null,null,null,null,null,null,null,null,null,null,null,null,null,null,null,null,null,null,null,null,null,null,null,null,null,null,null,null,null,null,null,null,null,null,null,null,null,null,null,null,null,null,null,null,null,null,null,null,null,null,null,null,null,null,null,null,null,null,null,null,null,null,null,null,null,null,null,1]
["ADWR",312048110504901,"D-24-15 18BAD UNSURV",31.344944444444444,-110.84938888888888,"NAD27","1999-12-21",8.8000000000000007,null,3715,null,"S",-9999,-9999,null,null,null,null,null,null,null,null,null,null,null,null,null,null,null,null,null,null,null,null,null,null,null,null,null,null,null,null,null,null,null,null,null,null,null,null,null,null,null,null,null,null,null,null,null,null,null,null,null,null,null,null,null,null,null,null,null,null,null,null,null,null,null,null,null,null,null,null,null,null,null,null,null,null,null,null,null,null,null,null,null,null,null,null,null,null,1]
["ADWR",312048110504901,"D-24-15 18BAD UNSURV",31.344944444444444,-110.84938888888888,"NAD27","2000-05-16",10.1,null,3715,null,"S",-9999,-9999,null,null,null,null,null,null,null,null,null,null,null,null,null,null,null,null,null,null,null,null,null,null,null,null,null,null,null,null,null,null,null,null,null,null,null,null,null,null,null,null,null,null,null,null,null,null,null,null,null,null,null,null,null,null,null,null,null,null,null,null,null,null,null,null,null,null,null,null,null,null,null,null,null,null,null,null,null,null,null,null,null,null,null,null,null,null,1]
["ADWR",312048110504901,"D-24-15 18BAD UNSURV",31.344944444444444,-110.84938888888888,"NAD27","2000-10-30",7.8,"X",3715,null,"S",-9999,-9999,null,null,null,null,null,null,null,null,null,null,null,null,null,null,null,null,null,null,null,null,null,null,null,null,null,null,null,null,null,null,null,null,null,null,null,null,null,null,null,null,null,null,null,null,null,null,null,null,null,null,null,null,null,null,null,null,null,null,null,null,null,null,null,null,null,null,null,null,null,null,null,null,null,null,null,null,null,null,null,null,null,null,null,null,null,null,1]
["ADWR",312048110504901,"D-24-15 18BAD UNSURV",31.344944444444444,-110.84938888888888,"NAD27","2001-08-07",9.5,null,3715,null,"S",-9999,-9999,null,null,null,null,null,null,null,null,null,null,null,null,null,null,null,null,null,null,null,null,null,null,null,null,null,null,null,null,null,null,null,null,null,null,null,null,null,null,null,null,null,null,null,null,null,null,null,null,null,null,null,null,null,null,null,null,null,null,null,null,null,null,null,null,null,null,null,null,null,null,null,null,null,null,null,null,null,null,null,null,null,null,null,null,null,null,1]
["ADWR",312048110504901,"D-24-15 18BAD UNSURV",31.344944444444444,-110.84938888888888,"NAD27","2001-11-20",9.4,null,3715,null,"S",-9999,-9999,null,null,null,null,null,null,null,null,null,null,null,null,null,null,null,null,null,null,null,null,null,null,null,null,null,null,null,null,null,null,null,null,null,null,null,null,null,null,null,null,null,null,null,null,null,null,null,null,null,null,null,null,null,null,null,null,null,null,null,null,null,null,null,null,null,null,null,null,null,null,null,null,null,null,null,null,null,null,null,null,null,null,null,null,null,null,1]
["ADWR",312048110504901,"D-24-15 18BAD UNSURV",31.344944444444444,-110.84938888888888,"NAD27","2002-02-26",11.49,null,3715,null,"S",-9999,-9999,null,null,null,null,null,null,null,null,null,null,null,null,null,null,null,null,null,null,null,null,null,null,null,null,null,null,null,null,null,null,null,null,null,null,null,null,null,null,null,null,null,null,null,null,null,null,null,null,null,null,null,null,null,null,null,null,null,null,null,null,null,null,null,null,null,null,null,null,null,null,null,null,null,null,null,null,null,null,null,null,null,null,null,null,null,null,1]
["ADWR",312048110504901,"D-24-15 18BAD UNSURV",31.344944444444444,-110.84938888888888,"NAD27","2002-08-07",9.61,null,3715,null,"S",-9999,-9999,null,null,null,null,null,null,null,null,null,null,null,null,null,null,null,null,null,null,null,null,null,null,null,null,null,null,null,null,null,null,null,null,null,null,null,null,null,null,null,null,null,null,null,null,null,null,null,null,null,null,null,null,null,null,null,null,null,null,null,null,null,null,null,null,null,null,null,null,null,null,null,null,null,null,null,null,null,null,null,null,null,null,null,null,null,null,1]
["USGS",312048110504901,"D-24-15 18BA   UNSURV",31.344999999999999,-110.84972222222221,"NAD27","2004-02-19",11.6,"S",3715,"NGVD29","U",80,80,null,null,null,null,null,null,null,null,null,null,null,null,null,null,null,null,null,null,null,null,null,null,null,null,null,null,null,null,null,null,null,null,null,null,null,null,null,null,null,null,null,null,null,null,null,null,null,null,null,null,null,null,null,null,null,null,null,null,null,null,null,null,null,null,null,null,null,null,null,null,null,null,null,null,null,null,null,null,null,null,null,null,null,null,null,null,20040219]
["USGS",312048110504901,"D-24-15 18BA   UNSURV",31.344999999999999,-110.84972222222221,"NAD27","2004-10-20",15.3,null,3715,"NGVD29","U",80,80,null,null,null,null,null,null,null,null,null,null,null,null,null,null,null,null,null,null,null,null,null,null,null,null,null,null,null,null,null,null,null,null,null,null,null,null,null,null,null,null,null,null,null,null,null,null,null,null,null,null,null,null,null,null,null,null,null,null,null,null,null,null,null,null,null,null,null,null,null,null,null,null,null,null,null,null,null,null,null,null,null,null,null,null,null,null,20041020]
["USGS",312048110504901,"D-24-15 18BA   UNSURV",31.344999999999999,-110.84972222222221,"NAD27","2005-08-04",10.199999999999999,"X",3715,"NGVD29","U",80,80,null,null,null,null,null,null,null,null,null,null,null,null,null,null,null,null,null,null,null,null,null,null,null,null,null,null,null,null,null,null,null,null,null,null,null,null,null,null,null,null,null,null,null,null,null,null,null,null,null,null,null,null,null,null,null,null,null,null,null,null,null,null,null,null,null,null,null,null,null,null,null,null,null,null,null,null,null,null,null,null,null,null,null,null,null,null,20050804]
["USGS",312048110504901,"D-24-15 18BA   UNSURV",31.344999999999999,-110.84972222222221,"NAD27","2006-10-18",8.9,null,3715,"NGVD29","U",80,80,null,null,null,null,null,null,null,null,null,null,null,null,null,null,null,null,null,null,null,null,null,null,null,null,null,null,null,null,null,null,null,null,null,null,null,null,null,null,null,null,null,null,null,null,null,null,null,null,null,null,null,null,null,null,null,null,null,null,null,null,null,null,null,null,null,null,null,null,null,null,null,null,null,null,null,null,null,null,null,null,null,null,null,null,null,null,20061018]
["USGS",312048110504901,"D-24-15 18BA   UNSURV",31.344999999999999,-110.84972222222221,"NAD27","2007-03-28",10.1,"P",3715,"NGVD29","U",80,80,null,null,null,null,null,null,null,null,null,null,null,null,null,null,null,null,null,null,null,null,null,null,null,null,null,null,null,null,null,null,null,null,null,null,null,null,null,null,null,null,null,null,null,null,null,null,null,null,null,null,null,null,null,null,null,null,null,null,null,null,null,null,null,null,null,null,null,null,null,null,null,null,null,null,null,null,null,null,null,null,null,null,null,null,null,null,20070328]
["USGS",312048110504901,"D-24-15 18BA   UNSURV",31.344999999999999,-110.84972222222221,"NAD27","2007-04-26",10.7,"P",3715,"NGVD29","U",80,80,null,null,null,null,null,null,null,null,null,null,null,null,null,null,null,null,null,null,null,null,null,null,null,null,null,null,null,null,null,null,null,null,null,null,null,null,null,null,null,null,null,null,null,null,null,null,null,null,null,null,null,null,null,null,null,null,null,null,null,null,null,null,null,null,null,null,null,null,null,null,null,null,null,null,null,null,null,null,null,null,null,null,null,null,null,null,20070426]
["ADWR",312048110504901,"D-24-15 18BAD UNSURV",31.344944444444444,-110.84938888888888,"NAD27","2007-08-21",9.9,null,3715,null,"S",-9999,-9999,null,null,null,null,null,null,null,null,null,null,null,null,null,null,null,null,null,null,null,null,null,null,null,null,null,null,null,null,null,null,null,null,null,null,null,null,null,null,null,null,null,null,null,null,null,null,null,null,null,null,null,null,null,null,null,null,null,null,null,null,null,null,null,null,null,null,null,null,null,null,null,null,null,null,null,null,null,null,null,null,null,null,null,null,null,null,1]
["ADWR",312048110504901,"D-24-15 18BAD UNSURV",31.344944444444444,-110.84938888888888,"NAD27","2008-01-31",13.4,null,3715,null,"S",-9999,-9999,null,null,null,null,null,null,null,null,null,null,null,null,null,null,null,null,null,null,null,null,null,null,null,null,null,null,null,null,null,null,null,null,null,null,null,null,null,null,null,null,null,null,null,null,null,null,null,null,null,null,null,null,null,null,null,null,null,null,null,null,null,null,null,null,null,null,null,null,null,null,null,null,null,null,null,null,null,null,null,null,null,null,null,null,null,null,1]
["ADWR",312048110504901,"D-24-15 18BAD UNSURV",31.344944444444444,-110.84938888888888,"NAD27","2008-05-08",11.2,"P",3715,null,"S",-9999,-9999,null,null,null,null,null,null,null,null,null,null,null,null,null,null,null,null,null,null,null,null,null,null,null,null,null,null,null,null,null,null,null,null,null,null,null,null,null,null,null,null,null,null,null,null,null,null,null,null,null,null,null,null,null,null,null,null,null,null,null,null,null,null,null,null,null,null,null,null,null,null,null,null,null,null,null,null,null,null,null,null,null,null,null,null,null,null,1]
["ADWR",312048110504901,"D-24-15 18BAD UNSURV",31.344944444444444,-110.84938888888888,"NAD27","2008-08-05",11.9,"H",3715,null,"S",-9999,-9999,null,null,null,null,null,null,null,null,null,null,null,null,null,null,null,null,null,null,null,null,null,null,null,null,null,null,null,null,null,null,null,null,null,null,null,null,null,null,null,null,null,null,null,null,null,null,null,null,null,null,null,null,null,null,null,null,null,null,null,null,null,null,null,null,null,null,null,null,null,null,null,null,null,null,null,null,null,null,null,null,null,null,null,null,null,null,1]
["ADWR",312048110504901,"D-24-15 18BAD UNSURV",31.344944444444444,-110.84938888888888,"NAD27","2008-10-28",11.6,null,3715,null,"S",-9999,-9999,null,null,null,null,null,null,null,null,null,null,null,null,null,null,null,null,null,null,null,null,null,null,null,null,null,null,null,null,null,null,null,null,null,null,null,null,null,null,null,null,null,null,null,null,null,null,null,null,null,null,null,null,null,null,null,null,null,null,null,null,null,null,null,null,null,null,null,null,null,null,null,null,null,null,null,null,null,null,null,null,null,null,null,null,null,null,1]
["USGS",312050110504501,"D-24-15 18AB 1 UNSURV",31.34611111111111,-110.84888888888888,"NAD27","1939-10-20",8.15,null,3730,"NGVD29","I",45,45,null,null,null,null,null,null,null,null,null,null,null,null,null,null,null,null,null,null,null,null,null,null,null,null,null,null,null,null,null,null,null,null,null,null,null,null,null,null,null,null,null,null,null,null,null,null,null,null,null,null,null,null,null,null,null,null,null,null,null,null,null,null,null,null,null,null,null,null,null,null,null,null,null,null,null,null,null,null,null,null,null,null,null,null,null,null,19391020]
["USGS",312050110504501,"D-24-15 18AB 1 UNSURV",31.34611111111111,-110.84888888888888,"NAD27","1940-03-15",8.4,null,3730,"NGVD29","I",45,45,null,null,null,null,null,null,null,null,null,null,null,null,null,null,null,null,null,null,null,null,null,null,null,null,null,null,null,null,null,null,null,null,null,null,null,null,null,null,null,null,null,null,null,null,null,null,null,null,null,null,null,null,null,null,null,null,null,null,null,null,null,null,null,null,null,null,null,null,null,null,null,null,null,null,null,null,null,null,null,null,null,null,null,null,null,null,19400315]
["USGS",312050110504501,"D-24-15 18AB 1 UNSURV",31.34611111111111,-110.84888888888888,"NAD27","1940-06-07",9.14,null,3730,"NGVD29","I",45,45,null,null,null,null,null,null,null,null,null,null,null,null,null,null,null,null,null,null,null,null,null,null,null,null,null,null,null,null,null,null,null,null,null,null,null,null,null,null,null,null,null,null,null,null,null,null,null,null,null,null,null,null,null,null,null,null,null,null,null,null,null,null,null,null,null,null,null,null,null,null,null,null,null,null,null,null,null,null,null,null,null,null,null,null,null,null,19400607]
["USGS",312050110504501,"D-24-15 18AB 1 UNSURV",31.34611111111111,-110.84888888888888,"NAD27","1940-07-10",10.35,null,3730,"NGVD29","I",45,45,null,null,null,null,null,null,null,null,null,null,null,null,null,null,null,null,null,null,null,null,null,null,null,null,null,null,null,null,null,null,null,null,null,null,null,null,null,null,null,null,null,null,null,null,null,null,null,null,null,null,null,null,null,null,null,null,null,null,null,null,null,null,null,null,null,null,null,null,null,null,null,null,null,null,null,null,null,null,null,null,null,null,null,null,null,null,19400710]
["USGS",312050110504501,"D-24-15 18AB 1 UNSURV",31.34611111111111,-110.84888888888888,"NAD27","1941-03-21",10.36,null,3730,"NGVD29","I",45,45,null,null,null,null,null,null,null,null,null,null,null,null,null,null,null,null,null,null,null,null,null,null,null,null,null,null,null,null,null,null,null,null,null,null,null,null,null,null,null,null,null,null,null,null,null,null,null,null,null,null,null,null,null,null,null,null,null,null,null,null,null,null,null,null,null,null,null,null,null,null,null,null,null,null,null,null,null,null,null,null,null,null,null,null,null,null,19410321]
["USGS",312050110504501,"D-24-15 18AB 1 UNSURV",31.34611111111111,-110.84888888888888,"NAD27","1941-11-26",8.19,null,3730,"NGVD29","I",45,45,null,null,null,null,null,null,null,null,null,null,null,null,null,null,null,null,null,null,null,null,null,null,null,null,null,null,null,null,null,null,null,null,null,null,null,null,null,null,null,null,null,null,null,null,null,null,null,null,null,null,null,null,null,null,null,null,null,null,null,null,null,null,null,null,null,null,null,null,null,null,null,null,null,null,null,null,null,null,null,null,null,null,null,null,null,null,19411126]
["USGS",312050110504501,"D-24-15 18AB 1 UNSURV",31.34611111111111,-110.84888888888888,"NAD27","1942-10-14",8.9499999999999993,null,3730,"NGVD29","I",45,45,null,null,null,null,null,null,null,null,null,null,null,null,null,null,null,null,null,null,null,null,null,null,null,null,null,null,null,null,null,null,null,null,null,null,null,null,null,null,null,null,null,null,null,null,null,null,null,null,null,null,null,null,null,null,null,null,null,null,null,null,null,null,null,null,null,null,null,null,null,null,null,null,null,null,null,null,null,null,null,null,null,null,null,null,null,null,19421014]
["USGS",312050110504501,"D-24-15 18AB 1 UNSURV",31.34611111111111,-110.84888888888888,"NAD27","1947-07-03",10.9,null,3730,"NGVD29","I",45,45,null,null,null,null,null,null,null,null,null,null,null,null,null,null,null,null,null,null,null,null,null,null,null,null,null,null,null,null,null,null,null,null,null,null,null,null,null,null,null,null,null,null,null,null,null,null,null,null,null,null,null,null,null,null,null,null,null,null,null,null,null,null,null,null,null,null,null,null,null,null,null,null,null,null,null,null,null,null,null,null,null,null,null,null,null,null,19470703]
["USGS",312050110504501,"D-24-15 18AB 1 UNSURV",31.34611111111111,-110.84888888888888,"NAD27","1950-10-16",8.5399999999999991,null,3730,"NGVD29","I",45,45,null,null,null,null,null,null,null,null,null,null,null,null,null,null,null,null,null,null,null,null,null,null,null,null,null,null,null,null,null,null,null,null,null,null,null,null,null,null,null,null,null,null,null,null,null,null,null,null,null,null,null,null,null,null,null,null,null,null,null,null,null,null,null,null,null,null,null,null,null,null,null,null,null,null,null,null,null,null,null,null,null,null,null,null,null,null,19501016]
["USGS",312050110504501,"D-24-15 18AB 1 UNSURV",31.34611111111111,-110.84888888888888,"NAD27","1952-11-07",8.39,null,3730,"NGVD29","I",45,45,null,null,null,null,null,null,null,null,null,null,null,null,null,null,null,null,null,null,null,null,null,null,null,null,null,null,null,null,null,null,null,null,null,null,null,null,null,null,null,null,null,null,null,null,null,null,null,null,null,null,null,null,null,null,null,null,null,null,null,null,null,null,null,null,null,null,null,null,null,null,null,null,null,null,null,null,null,null,null,null,null,null,null,null,null,null,19521107]
["USGS",312050110504501,"D-24-15 18AB 1 UNSURV",31.34611111111111,-110.84888888888888,"NAD27","1954-03-04",8.06,null,3730,"NGVD29","I",45,45,null,null,null,null,null,null,null,null,null,null,null,null,null,null,null,null,null,null,null,null,null,null,null,null,null,null,null,null,null,null,null,null,null,null,null,null,null,null,null,null,null,null,null,null,null,null,null,null,null,null,null,null,null,null,null,null,null,null,null,null,null,null,null,null,null,null,null,null,null,null,null,null,null,null,null,null,null,null,null,null,null,null,null,null,null,null,19540304]
["USGS",312050110504501,"D-24-15 18AB 1 UNSURV",31.34611111111111,-110.84888888888888,"NAD27","1959-02-26",8.3800000000000008,null,3730,"NGVD29","I",45,45,null,null,null,null,null,null,null,null,null,null,null,null,null,null,null,null,null,null,null,null,null,null,null,null,null,null,null,null,null,null,null,null,null,null,null,null,null,null,null,null,null,null,null,null,null,null,null,null,null,null,null,null,null,null,null,null,null,null,null,null,null,null,null,null,null,null,null,null,null,null,null,null,null,null,null,null,null,null,null,null,null,null,null,null,null,null,19590226]
["USGS",312050110504501,"D-24-15 18AB 1 UNSURV",31.34611111111111,-110.84888888888888,"NAD27","1962-02-19",8.25,null,3730,"NGVD29","I",45,45,null,null,null,null,null,null,null,null,null,null,null,null,null,null,null,null,null,null,null,null,null,null,null,null,null,null,null,null,null,null,null,null,null,null,null,null,null,null,null,null,null,null,null,null,null,null,null,null,null,null,null,null,null,null,null,null,null,null,null,null,null,null,null,null,null,null,null,null,null,null,null,null,null,null,null,null,null,null,null,null,null,null,null,null,null,null,19620219]
["USGS",312050110504501,"D-24-15 18AB 1 UNSURV",31.34611111111111,-110.84888888888888,"NAD27","1966-11-29",7.66,null,3730,"NGVD29","I",45,45,null,null,null,null,null,null,null,null,null,null,null,null,null,null,null,null,null,null,null,null,null,null,null,null,null,null,null,null,null,null,null,null,null,null,null,null,null,null,null,null,null,null,null,null,null,null,null,null,null,null,null,null,null,null,null,null,null,null,null,null,null,null,null,null,null,null,null,null,null,null,null,null,null,null,null,null,null,null,null,null,null,null,null,null,null,null,19661129]
["USGS",312050110504501,"D-24-15 18AB 1 UNSURV",31.34611111111111,-110.84888888888888,"NAD27","1968-03-01",7.29,null,3730,"NGVD29","I",45,45,null,null,null,null,null,null,null,null,null,null,null,null,null,null,null,null,null,null,null,null,null,null,null,null,null,null,null,null,null,null,null,null,null,null,null,null,null,null,null,null,null,null,null,null,null,null,null,null,null,null,null,null,null,null,null,null,null,null,null,null,null,null,null,null,null,null,null,null,null,null,null,null,null,null,null,null,null,null,null,null,null,null,null,null,null,null,19680301]
["USGS",312050110504501,"D-24-15 18AB 1 UNSURV",31.34611111111111,-110.84888888888888,"NAD27","1969-12-22",5.38,null,3730,"NGVD29","I",45,45,null,null,null,null,null,null,null,null,null,null,null,null,null,null,null,null,null,null,null,null,null,null,null,null,null,null,null,null,null,null,null,null,null,null,null,null,null,null,null,null,null,null,null,null,null,null,null,null,null,null,null,null,null,null,null,null,null,null,null,null,null,null,null,null,null,null,null,null,null,null,null,null,null,null,null,null,null,null,null,null,null,null,null,null,null,null,19691222]
["USGS",312050110504501,"D-24-15 18AB 1 UNSURV",31.34611111111111,-110.84888888888888,"NAD27","1975-01-30",3.87,null,3730,"NGVD29","I",45,45,null,null,null,null,null,null,null,null,null,null,null,null,null,null,null,null,null,null,null,null,null,null,null,null,null,null,null,null,null,null,null,null,null,null,null,null,null,null,null,null,null,null,null,null,null,null,null,null,null,null,null,null,null,null,null,null,null,null,null,null,null,null,null,null,null,null,null,null,null,null,null,null,null,null,null,null,null,null,null,null,null,null,null,null,null,null,19750130]
["ADWR",312050110504501,"D-24-15 18AB1 UNSURV",31.346472222222221,-110.84852777777778,"NAD27","1978-01-01",5.15,null,3715,null,"I",45,45,null,null,null,null,null,null,null,null,null,null,null,null,null,null,null,null,null,null,null,null,null,null,null,null,null,null,null,null,null,null,null,null,null,null,null,null,null,null,null,null,null,null,null,null,null,null,null,null,null,null,null,null,null,null,null,null,null,null,null,null,null,null,null,null,null,null,null,null,null,null,null,null,null,null,null,null,null,null,null,null,null,null,null,null,null,null,1]
["USGS",312050110504501,"D-24-15 18AB 1 UNSURV",31.34611111111111,-110.84888888888888,"NAD27","1978-01-15",5.15,null,3730,"NGVD29","I",45,45,null,null,null,null,null,null,null,null,null,null,null,null,null,null,null,null,null,null,null,null,null,null,null,null,null,null,null,null,null,null,null,null,null,null,null,null,null,null,null,null,null,null,null,null,null,null,null,null,null,null,null,null,null,null,null,null,null,null,null,null,null,null,null,null,null,null,null,null,null,null,null,null,null,null,null,null,null,null,null,null,null,null,null,null,null,null,197801]
["USGS",312050110504501,"D-24-15 18AB 1 UNSURV",31.34611111111111,-110.84888888888888,"NAD27","1987-12-10",5.8,null,3730,"NGVD29","I",45,45,null,null,null,null,null,null,null,null,null,null,null,null,null,null,null,null,null,null,null,null,null,null,null,null,null,null,null,null,null,null,null,null,null,null,null,null,null,null,null,null,null,null,null,null,null,null,null,null,null,null,null,null,null,null,null,null,null,null,null,null,null,null,null,null,null,null,null,null,null,null,null,null,null,null,null,null,null,null,null,null,null,null,null,null,null,null,19871210]
["ADWR",312050110504501,"D-24-15 18AB1 UNSURV",31.346472222222221,-110.84852777777778,"NAD27","1998-02-12",7.7,null,3715,null,"I",45,45,null,null,null,null,null,null,null,null,null,null,null,null,null,null,null,null,null,null,null,null,null,null,null,null,null,null,null,null,null,null,null,null,null,null,null,null,null,null,null,null,null,null,null,null,null,null,null,null,null,null,null,null,null,null,null,null,null,null,null,null,null,null,null,null,null,null,null,null,null,null,null,null,null,null,null,null,null,null,null,null,null,null,null,null,null,null,1]
["ADWR",312050110504501,"D-24-15 18AB1 UNSURV",31.346472222222221,-110.84852777777778,"NAD27","1998-04-01",7.7,null,3715,null,"I",45,45,null,null,null,null,null,null,null,null,null,null,null,null,null,null,null,null,null,null,null,null,null,null,null,null,null,null,null,null,null,null,null,null,null,null,null,null,null,null,null,null,null,null,null,null,null,null,null,null,null,null,null,null,null,null,null,null,null,null,null,null,null,null,null,null,null,null,null,null,null,null,null,null,null,null,null,null,null,null,null,null,null,null,null,null,null,null,1]
["USGS",312116110554301,"D-24-14 08DAB",31.354444444444447,-110.92861111111111,"NAD27","1940-01-04",13.17,null,3770,"NGVD29","U",20,20,null,null,null,null,null,null,null,null,null,null,null,null,null,null,null,null,null,null,null,null,null,null,null,null,null,null,null,null,null,null,null,null,null,null,null,null,null,null,null,null,null,null,null,null,null,null,null,null,null,null,null,null,null,null,null,null,null,null,null,null,null,null,null,null,null,null,null,null,null,null,null,null,null,null,null,null,null,null,null,null,null,null,null,null,null,null,19400104]
["USGS",312116110554301,"D-24-14 08DAB",31.354444444444447,-110.92861111111111,"NAD27","1940-04-27",14.07,null,3770,"NGVD29","U",20,20,null,null,null,null,null,null,null,null,null,null,null,null,null,null,null,null,null,null,null,null,null,null,null,null,null,null,null,null,null,null,null,null,null,null,null,null,null,null,null,null,null,null,null,null,null,null,null,null,null,null,null,null,null,null,null,null,null,null,null,null,null,null,null,null,null,null,null,null,null,null,null,null,null,null,null,null,null,null,null,null,null,null,null,null,null,null,19400427]
["USGS",312116110554301,"D-24-14 08DAB",31.354444444444447,-110.92861111111111,"NAD27","1940-11-04",14.7,null,3770,"NGVD29","U",20,20,null,null,null,null,null,null,null,null,null,null,null,null,null,null,null,null,null,null,null,null,null,null,null,null,null,null,null,null,null,null,null,null,null,null,null,null,null,null,null,null,null,null,null,null,null,null,null,null,null,null,null,null,null,null,null,null,null,null,null,null,null,null,null,null,null,null,null,null,null,null,null,null,null,null,null,null,null,null,null,null,null,null,null,null,null,null,19401104]
["USGS",312116110554301,"D-24-14 08DAB",31.354444444444447,-110.92861111111111,"NAD27","1941-05-02",14.28,null,3770,"NGVD29","U",20,20,null,null,null,null,null,null,null,null,null,null,null,null,null,null,null,null,null,null,null,null,null,null,null,null,null,null,null,null,null,null,null,null,null,null,null,null,null,null,null,null,null,null,null,null,null,null,null,null,null,null,null,null,null,null,null,null,null,null,null,null,null,null,null,null,null,null,null,null,null,null,null,null,null,null,null,null,null,null,null,null,null,null,null,null,null,null,19410502]
["USGS",312116110554301,"D-24-14 08DAB",31.354444444444447,-110.92861111111111,"NAD27","1941-06-07",14.82,null,3770,"NGVD29","U",20,20,null,null,null,null,null,null,null,null,null,null,null,null,null,null,null,null,null,null,null,null,null,null,null,null,null,null,null,null,null,null,null,null,null,null,null,null,null,null,null,null,null,null,null,null,null,null,null,null,null,null,null,null,null,null,null,null,null,null,null,null,null,null,null,null,null,null,null,null,null,null,null,null,null,null,null,null,null,null,null,null,null,null,null,null,null,null,19410607]
["USGS",312116110554301,"D-24-14 08DAB",31.354444444444447,-110.92861111111111,"NAD27","1941-09-23",14.54,null,3770,"NGVD29","U",20,20,null,null,null,null,null,null,null,null,null,null,null,null,null,null,null,null,null,null,null,null,null,null,null,null,null,null,null,null,null,null,null,null,null,null,null,null,null,null,null,null,null,null,null,null,null,null,null,null,null,null,null,null,null,null,null,null,null,null,null,null,null,null,null,null,null,null,null,null,null,null,null,null,null,null,null,null,null,null,null,null,null,null,null,null,null,null,19410923]
["USGS",312121110504001,"D-24-15 07AD   UNSURV",31.355833333333333,-110.84444444444443,"NAD27","1948-11-18",6.56,null,3710,"NGVD29","U",80,80,null,null,null,null,null,null,null,null,null,null,null,null,null,null,null,null,null,null,null,null,null,null,null,null,null,null,null,null,null,null,null,null,null,null,null,null,null,null,null,null,null,null,null,null,null,null,null,null,null,null,null,null,null,null,null,null,null,null,null,null,null,null,null,null,null,null,null,null,null,null,null,null,null,null,null,null,null,null,null,null,null,null,null,null,null,null,19481118]
["USGS",312121110504001,"D-24-15 07AD   UNSURV",31.355833333333333,-110.84444444444443,"NAD27","1949-07-15",6.22,null,3710,"NGVD29","U",80,80,null,null,null,null,null,null,null,null,null,null,null,null,null,null,null,null,null,null,null,null,null,null,null,null,null,null,null,null,null,null,null,null,null,null,null,null,null,null,null,null,null,null,null,null,null,null,null,null,null,null,null,null,null,null,null,null,null,null,null,null,null,null,null,null,null,null,null,null,null,null,null,null,null,null,null,null,null,null,null,null,null,null,null,null,null,null,194907]
["USGS",312121110504001,"D-24-15 07AD   UNSURV",31.355833333333333,-110.84444444444443,"NAD27","1950-03-02",5.55,null,3710,"NGVD29","U",80,80,null,null,null,null,null,null,null,null,null,null,null,null,null,null,null,null,null,null,null,null,null,null,null,null,null,null,null,null,null,null,null,null,null,null,null,null,null,null,null,null,null,null,null,null,null,null,null,null,null,null,null,null,null,null,null,null,null,null,null,null,null,null,null,null,null,null,null,null,null,null,null,null,null,null,null,null,null,null,null,null,null,null,null,null,null,null,19500302]
["USGS",312121110504001,"D-24-15 07AD   UNSURV",31.355833333333333,-110.84444444444443,"NAD27","1953-03-13",5.24,null,3710,"NGVD29","U",80,80,null,null,null,null,null,null,null,null,null,null,null,null,null,null,null,null,null,null,null,null,null,null,null,null,null,null,null,null,null,null,null,null,null,null,null,null,null,null,null,null,null,null,null,null,null,null,null,null,null,null,null,null,null,null,null,null,null,null,null,null,null,null,null,null,null,null,null,null,null,null,null,null,null,null,null,null,null,null,null,null,null,null,null,null,null,null,19530313]
["USGS",312121110504001,"D-24-15 07AD   UNSURV",31.355833333333333,-110.84444444444443,"NAD27","1956-03-07",4.71,null,3710,"NGVD29","U",80,80,null,null,null,null,null,null,null,null,null,null,null,null,null,null,null,null,null,null,null,null,null,null,null,null,null,null,null,null,null,null,null,null,null,null,null,null,null,null,null,null,null,null,null,null,null,null,null,null,null,null,null,null,null,null,null,null,null,null,null,null,null,null,null,null,null,null,null,null,null,null,null,null,null,null,null,null,null,null,null,null,null,null,null,null,null,null,19560307]
["USGS",312121110504001,"D-24-15 07AD   UNSURV",31.355833333333333,-110.84444444444443,"NAD27","1960-03-15",6.91,null,3710,"NGVD29","U",80,80,null,null,null,null,null,null,null,null,null,null,null,null,null,null,null,null,null,null,null,null,null,null,null,null,null,null,null,null,null,null,null,null,null,null,null,null,null,null,null,null,null,null,null,null,null,null,null,null,null,null,null,null,null,null,null,null,null,null,null,null,null,null,null,null,null,null,null,null,null,null,null,null,null,null,null,null,null,null,null,null,null,null,null,null,null,null,196003]
["USGS",312121110504001,"D-24-15 07AD   UNSURV",31.355833333333333,-110.84444444444443,"NAD27","1961-02-16",7.63,null,3710,"NGVD29","U",80,80,null,null,null,null,null,null,null,null,null,null,null,null,null,null,null,null,null,null,null,null,null,null,null,null,null,null,null,null,null,null,null,null,null,null,null,null,null,null,null,null,null,null,null,null,null,null,null,null,null,null,null,null,null,null,null,null,null,null,null,null,null,null,null,null,null,null,null,null,null,null,null,null,null,null,null,null,null,null,null,null,null,null,null,null,null,null,19610216]
["USGS",312121110504001,"D-24-15 07AD   UNSURV",31.355833333333333,-110.84444444444443,"NAD27","1963-06-11",11.46,null,3710,"NGVD29","U",80,80,null,null,null,null,null,null,null,null,null,null,null,null,null,null,null,null,null,null,null,null,null,null,null,null,null,null,null,null,null,null,null,null,null,null,null,null,null,null,null,null,null,null,null,null,null,null,null,null,null,null,null,null,null,null,null,null,null,null,null,null,null,null,null,null,null,null,null,null,null,null,null,null,null,null,null,null,null,null,null,null,null,null,null,null,null,null,19630611]
["USGS",312121110504001,"D-24-15 07AD   UNSURV",31.355833333333333,-110.84444444444443,"NAD27","1968-11-25",4.8499999999999996,null,3710,"NGVD29","U",80,80,null,null,null,null,null,null,null,null,null,null,null,null,null,null,null,null,null,null,null,null,null,null,null,null,null,null,null,null,null,null,null,null,null,null,null,null,null,null,null,null,null,null,null,null,null,null,null,null,null,null,null,null,null,null,null,null,null,null,null,null,null,null,null,null,null,null,null,null,null,null,null,null,null,null,null,null,null,null,null,null,null,null,null,null,null,null,19681125]
["USGS",312121110504001,"D-24-15 07AD   UNSURV",31.355833333333333,-110.84444444444443,"NAD27","1974-01-15",20.75,null,3710,"NGVD29","U",80,80,null,null,null,null,null,null,null,null,null,null,null,null,null,null,null,null,null,null,null,null,null,null,null,null,null,null,null,null,null,null,null,null,null,null,null,null,null,null,null,null,null,null,null,null,null,null,null,null,null,null,null,null,null,null,null,null,null,null,null,null,null,null,null,null,null,null,null,null,null,null,null,null,null,null,null,null,null,null,null,null,null,null,null,null,null,null,19740115]
["USGS",312121110504001,"D-24-15 07AD   UNSURV",31.355833333333333,-110.84444444444443,"NAD27","1976-01-29",8.4,null,3710,"NGVD29","U",80,80,null,null,null,null,null,null,null,null,null,null,null,null,null,null,null,null,null,null,null,null,null,null,null,null,null,null,null,null,null,null,null,null,null,null,null,null,null,null,null,null,null,null,null,null,null,null,null,null,null,null,null,null,null,null,null,null,null,null,null,null,null,null,null,null,null,null,null,null,null,null,null,null,null,null,null,null,null,null,null,null,null,null,null,null,null,null,19760129]
["USGS",312121110504001,"D-24-15 07AD   UNSURV",31.355833333333333,-110.84444444444443,"NAD27","1978-01-15",8.3000000000000007,null,3710,"NGVD29","U",80,80,null,null,null,null,null,null,null,null,null,null,null,null,null,null,null,null,null,null,null,null,null,null,null,null,null,null,null,null,null,null,null,null,null,null,null,null,null,null,null,null,null,null,null,null,null,null,null,null,null,null,null,null,null,null,null,null,null,null,null,null,null,null,null,null,null,null,null,null,null,null,null,null,null,null,null,null,null,null,null,null,null,null,null,null,null,null,197801]
["USGS",312121110504001,"D-24-15 07AD   UNSURV",31.355833333333333,-110.84444444444443,"NAD27","1982-02-23",5.74,null,3710,"NGVD29","U",80,80,null,null,null,null,null,null,null,null,null,null,null,null,null,null,null,null,null,null,null,null,null,null,null,null,null,null,null,null,null,null,null,null,null,null,null,null,null,null,null,null,null,null,null,null,null,null,null,null,null,null,null,null,null,null,null,null,null,null,null,null,null,null,null,null,null,null,null,null,null,null,null,null,null,null,null,null,null,null,null,null,null,null,null,null,null,null,19820223]
["USGS",312123110484201,"D-24-15 04DDD2 UNSURV",31.362777777777779,-110.80749999999999,"NAD27","1982-02-23",285.89999999999998,null,4018,"NGVD29","P",665,665,null,null,null,null,null,null,null,null,null,null,null,null,null,null,null,null,null,null,null,null,null,null,null,null,null,null,null,null,null,null,null,null,null,null,null,null,null,null,null,null,null,null,null,null,null,null,null,null,null,null,null,null,null,null,null,null,null,null,null,null,null,null,null,null,null,null,null,null,null,null,null,null,null,null,null,null,null,null,null,null,null,null,null,null,null,null,19820223]
["USGS",312123110484201,"D-24-15 04DDD2 UNSURV",31.362777777777779,-110.80749999999999,"NAD27","1983-12-21",266.3,null,4018,"NGVD29","P",665,665,null,null,null,null,null,null,null,null,null,null,null,null,null,null,null,null,null,null,null,null,null,null,null,null,null,null,null,null,null,null,null,null,null,null,null,null,null,null,null,null,null,null,null,null,null,null,null,null,null,null,null,null,null,null,null,null,null,null,null,null,null,null,null,null,null,null,null,null,null,null,null,null,null,null,null,null,null,null,null,null,null,null,null,null,null,null,19831221]
["USGS",312123110484201,"D-24-15 04DDD2 UNSURV",31.362777777777779,-110.80749999999999,"NAD27","1986-05-28",371.3,"P",4018,"NGVD29","P",665,665,null,null,null,null,null,null,null,null,null,null,null,null,null,null,null,null,null,null,null,null,null,null,null,null,null,null,null,null,null,null,null,null,null,null,null,null,null,null,null,null,null,null,null,null,null,null,null,null,null,null,null,null,null,null,null,null,null,null,null,null,null,null,null,null,null,null,null,null,null,null,null,null,null,null,null,null,null,null,null,null,null,null,null,null,null,null,19860528]
["USGS",312123110484201,"D-24-15 04DDD2 UNSURV",31.362777777777779,-110.80749999999999,"NAD27","1988-12-08",504.9,"R",4018,"NGVD29","P",665,665,null,null,null,null,null,null,null,null,null,null,null,null,null,null,null,null,null,null,null,null,null,null,null,null,null,null,null,null,null,null,null,null,null,null,null,null,null,null,null,null,null,null,null,null,null,null,null,null,null,null,null,null,null,null,null,null,null,null,null,null,null,null,null,null,null,null,null,null,null,null,null,null,null,null,null,null,null,null,null,null,null,null,null,null,null,null,19881208]
["USGS",312123110484201,"D-24-15 04DDD2 UNSURV",31.362777777777779,-110.80749999999999,"NAD27","1991-12-10",412.8,null,4018,"NGVD29","P",665,665,null,null,null,null,null,null,null,null,null,null,null,null,null,null,null,null,null,null,null,null,null,null,null,null,null,null,null,null,null,null,null,null,null,null,null,null,null,null,null,null,null,null,null,null,null,null,null,null,null,null,null,null,null,null,null,null,null,null,null,null,null,null,null,null,null,null,null,null,null,null,null,null,null,null,null,null,null,null,null,null,null,null,null,null,null,null,19911210]
["USGS",312123110484201,"D-24-15 04DDD2 UNSURV",31.362777777777779,-110.80749999999999,"NAD27","1995-01-09",295.5,null,4018,"NGVD29","P",665,665,null,null,null,null,null,null,null,null,null,null,null,null,null,null,null,null,null,null,null,null,null,null,null,null,null,null,null,null,null,null,null,null,null,null,null,null,null,null,null,null,null,null,null,null,null,null,null,null,null,null,null,null,null,null,null,null,null,null,null,null,null,null,null,null,null,null,null,null,null,null,null,null,null,null,null,null,null,null,null,null,null,null,null,null,null,null,19950109]
["ADWR",312123110484201,"D-24-15 04DDD2UNSURV",31.362888888888889,-110.80733333333333,"NAD27","1996-12-03",279,null,4018,null,"P",665,665,null,null,null,null,null,null,null,null,null,null,null,null,null,null,null,null,null,null,null,null,null,null,null,null,null,null,null,null,null,null,null,null,null,null,null,null,null,null,null,null,null,null,null,null,null,null,null,null,null,null,null,null,null,null,null,null,null,null,null,null,null,null,null,null,null,null,null,null,null,null,null,null,null,null,null,null,null,null,null,null,null,null,null,null,null,null,1]
["USGS",312123110484201,"D-24-15 04DDD2 UNSURV",31.362777777777779,-110.80749999999999,"NAD27","2001-02-13",297.8,null,4018,"NGVD29","P",665,665,null,null,null,null,null,null,null,null,null,null,null,null,null,null,null,null,null,null,null,null,null,null,null,null,null,null,null,null,null,null,null,null,null,null,null,null,null,null,null,null,null,null,null,null,null,null,null,null,null,null,null,null,null,null,null,null,null,null,null,null,null,null,null,null,null,null,null,null,null,null,null,null,null,null,null,null,null,null,null,null,null,null,null,null,null,null,20010213]
["USGS",312123110484201,"D-24-15 04DDD2 UNSURV",31.362777777777779,-110.80749999999999,"NAD27","2007-01-18",334.6,null,4018,"NGVD29","P",665,665,null,null,null,null,null,null,null,null,null,null,null,null,null,null,null,null,null,null,null,null,null,null,null,null,null,null,null,null,null,null,null,null,null,null,null,null,null,null,null,null,null,null,null,null,null,null,null,null,null,null,null,null,null,null,null,null,null,null,null,null,null,null,null,null,null,null,null,null,null,null,null,null,null,null,null,null,null,null,null,null,null,null,null,null,null,null,20070118]
["ADWR",312123110484201,"D-24-15 04DDD2UNSURV",31.362888888888889,-110.80733333333333,"NAD27","2008-01-09",444.5,"R",4018,null,"P",665,665,null,null,null,null,null,null,null,null,null,null,null,null,null,null,null,null,null,null,null,null,null,null,null,null,null,null,null,null,null,null,null,null,null,null,null,null,null,null,null,null,null,null,null,null,null,null,null,null,null,null,null,null,null,null,null,null,null,null,null,null,null,null,null,null,null,null,null,null,null,null,null,null,null,null,null,null,null,null,null,null,null,null,null,null,null,null,1]
["AZ014",312124110493301,"D-24-15 08ADC  UNSURV",31.356666666666669,-110.82583333333334,"NAD27","2007-03-28",83.8,null,3844,"NGVD29","U",1000,1000,null,null,null,null,null,null,null,null,null,null,null,null,null,null,null,null,null,null,null,null,null,null,null,null,null,null,null,null,null,null,null,null,null,null,null,null,null,null,null,null,null,null,null,null,null,null,null,null,null,null,null,null,null,null,null,null,null,null,null,null,null,null,null,null,null,null,null,null,null,null,null,null,null,null,null,null,null,null,null,null,null,null,null,null,null,null,20070328]
["ADWR",312124110493301,"D-24-15 08ADC UNSURV",31.356611111111114,-110.82597222222222,"NAD27","2007-08-21",85.2,null,3844,null,"U",1000,1000,null,null,null,null,null,null,null,null,null,null,null,null,null,null,null,null,null,null,null,null,null,null,null,null,null,null,null,null,null,null,null,null,null,null,null,null,null,null,null,null,null,null,null,null,null,null,null,null,null,null,null,null,null,null,null,null,null,null,null,null,null,null,null,null,null,null,null,null,null,null,null,null,null,null,null,null,null,null,null,null,null,null,null,null,null,null,1]
["ADWR",312124110493301,"D-24-15 08ADC UNSURV",31.356611111111114,-110.82597222222222,"NAD27","2007-11-19",84.5,null,3844,null,"U",1000,1000,null,null,null,null,null,null,null,null,null,null,null,null,null,null,null,null,null,null,null,null,null,null,null,null,null,null,null,null,null,null,null,null,null,null,null,null,null,null,null,null,null,null,null,null,null,null,null,null,null,null,null,null,null,null,null,null,null,null,null,null,null,null,null,null,null,null,null,null,null,null,null,null,null,null,null,null,null,null,null,null,null,null,null,null,null,null,1]
["ADWR",312124110493301,"D-24-15 08ADC UNSURV",31.356611111111114,-110.82597222222222,"NAD27","2008-02-28",84,null,3844,null,"U",1000,1000,null,null,null,null,null,null,null,null,null,null,null,null,null,null,null,null,null,null,null,null,null,null,null,null,null,null,null,null,null,null,null,null,null,null,null,null,null,null,null,null,null,null,null,null,null,null,null,null,null,null,null,null,null,null,null,null,null,null,null,null,null,null,null,null,null,null,null,null,null,null,null,null,null,null,null,null,null,null,null,null,null,null,null,null,null,null,1]
["ADWR",312124110493301,"D-24-15 08ADC UNSURV",31.356611111111114,-110.82597222222222,"NAD27","2008-09-03",84.6,null,3844,null,"U",1000,1000,null,null,null,null,null,null,null,null,null,null,null,null,null,null,null,null,null,null,null,null,null,null,null,null,null,null,null,null,null,null,null,null,null,null,null,null,null,null,null,null,null,null,null,null,null,null,null,null,null,null,null,null,null,null,null,null,null,null,null,null,null,null,null,null,null,null,null,null,null,null,null,null,null,null,null,null,null,null,null,null,null,null,null,null,null,null,1]
["ADWR",312124110493301,"D-24-15 08ADC UNSURV",31.356611111111114,-110.82597222222222,"NAD27","2009-01-28",84.6,null,3844,null,"U",1000,1000,null,null,null,null,null,null,null,null,null,null,null,null,null,null,null,null,null,null,null,null,null,null,null,null,null,null,null,null,null,null,null,null,null,null,null,null,null,null,null,null,null,null,null,null,null,null,null,null,null,null,null,null,null,null,null,null,null,null,null,null,null,null,null,null,null,null,null,null,null,null,null,null,null,null,null,null,null,null,null,null,null,null,null,null,null,null,1]
["USGS",312136110504001,"D-24-15 07AA   UNSURV",31.361666666666668,-110.84222222222222,"NAD27","1942-10-14",9.23,null,3700,"NGVD29","U",42,42,null,null,null,null,null,null,null,null,null,null,null,null,null,null,null,null,null,null,null,null,null,null,null,null,null,null,null,null,null,null,null,null,null,null,null,null,null,null,null,null,null,null,null,null,null,null,null,null,null,null,null,null,null,null,null,null,null,null,null,null,null,null,null,null,null,null,null,null,null,null,null,null,null,null,null,null,null,null,null,null,null,null,null,null,null,null,19421014]
["USGS",312136110504001,"D-24-15 07AA   UNSURV",31.361666666666668,-110.84222222222222,"NAD27","1943-06-01",10.65,null,3700,"NGVD29","U",42,42,null,null,null,null,null,null,null,null,null,null,null,null,null,null,null,null,null,null,null,null,null,null,null,null,null,null,null,null,null,null,null,null,null,null,null,null,null,null,null,null,null,null,null,null,null,null,null,null,null,null,null,null,null,null,null,null,null,null,null,null,null,null,null,null,null,null,null,null,null,null,null,null,null,null,null,null,null,null,null,null,null,null,null,null,null,null,19430601]
["USGS",312136110504001,"D-24-15 07AA   UNSURV",31.361666666666668,-110.84222222222222,"NAD27","1944-10-19",9.5299999999999994,null,3700,"NGVD29","U",42,42,null,null,null,null,null,null,null,null,null,null,null,null,null,null,null,null,null,null,null,null,null,null,null,null,null,null,null,null,null,null,null,null,null,null,null,null,null,null,null,null,null,null,null,null,null,null,null,null,null,null,null,null,null,null,null,null,null,null,null,null,null,null,null,null,null,null,null,null,null,null,null,null,null,null,null,null,null,null,null,null,null,null,null,null,null,null,19441019]
["USGS",312136110504001,"D-24-15 07AA   UNSURV",31.361666666666668,-110.84222222222222,"NAD27","1946-04-16",8.5399999999999991,null,3700,"NGVD29","U",42,42,null,null,null,null,null,null,null,null,null,null,null,null,null,null,null,null,null,null,null,null,null,null,null,null,null,null,null,null,null,null,null,null,null,null,null,null,null,null,null,null,null,null,null,null,null,null,null,null,null,null,null,null,null,null,null,null,null,null,null,null,null,null,null,null,null,null,null,null,null,null,null,null,null,null,null,null,null,null,null,null,null,null,null,null,null,null,19460416]
["USGS",312136110504001,"D-24-15 07AA   UNSURV",31.361666666666668,-110.84222222222222,"NAD27","1948-03-12",8.5,null,3700,"NGVD29","U",42,42,null,null,null,null,null,null,null,null,null,null,null,null,null,null,null,null,null,null,null,null,null,null,null,null,null,null,null,null,null,null,null,null,null,null,null,null,null,null,null,null,null,null,null,null,null,null,null,null,null,null,null,null,null,null,null,null,null,null,null,null,null,null,null,null,null,null,null,null,null,null,null,null,null,null,null,null,null,null,null,null,null,null,null,null,null,null,19480312]
["USGS",312136110504001,"D-24-15 07AA   UNSURV",31.361666666666668,-110.84222222222222,"NAD27","1948-11-18",8.4600000000000009,null,3700,"NGVD29","U",42,42,null,null,null,null,null,null,null,null,null,null,null,null,null,null,null,null,null,null,null,null,null,null,null,null,null,null,null,null,null,null,null,null,null,null,null,null,null,null,null,null,null,null,null,null,null,null,null,null,null,null,null,null,null,null,null,null,null,null,null,null,null,null,null,null,null,null,null,null,null,null,null,null,null,null,null,null,null,null,null,null,null,null,null,null,null,null,19481118]
["USGS",312136110504001,"D-24-15 07AA   UNSURV",31.361666666666668,-110.84222222222222,"NAD27","1950-03-02",8.65,null,3700,"NGVD29","U",42,42,null,null,null,null,null,null,null,null,null,null,null,null,null,null,null,null,null,null,null,null,null,null,null,null,null,null,null,null,null,null,null,null,null,null,null,null,null,null,null,null,null,null,null,null,null,null,null,null,null,null,null,null,null,null,null,null,null,null,null,null,null,null,null,null,null,null,null,null,null,null,null,null,null,null,null,null,null,null,null,null,null,null,null,null,null,null,19500302]
["USGS",312136110504001,"D-24-15 07AA   UNSURV",31.361666666666668,-110.84222222222222,"NAD27","1951-07-06",9.2799999999999994,null,3700,"NGVD29","U",42,42,null,null,null,null,null,null,null,null,null,null,null,null,null,null,null,null,null,null,null,null,null,null,null,null,null,null,null,null,null,null,null,null,null,null,null,null,null,null,null,null,null,null,null,null,null,null,null,null,null,null,null,null,null,null,null,null,null,null,null,null,null,null,null,null,null,null,null,null,null,null,null,null,null,null,null,null,null,null,null,null,null,null,null,null,null,null,19510706]
["USGS",312136110504001,"D-24-15 07AA   UNSURV",31.361666666666668,-110.84222222222222,"NAD27","1952-07-08",8.7799999999999994,null,3700,"NGVD29","U",42,42,null,null,null,null,null,null,null,null,null,null,null,null,null,null,null,null,null,null,null,null,null,null,null,null,null,null,null,null,null,null,null,null,null,null,null,null,null,null,null,null,null,null,null,null,null,null,null,null,null,null,null,null,null,null,null,null,null,null,null,null,null,null,null,null,null,null,null,null,null,null,null,null,null,null,null,null,null,null,null,null,null,null,null,null,null,null,19520708]
["ADWR",312136110504001,"D-24-15 07AA  UNSURV",31.361666666666668,-110.84222222222222,"NAD27","1953-07-01",9.11,null,3700,null,"U",42,42,null,null,null,null,null,null,null,null,null,null,null,null,null,null,null,null,null,null,null,null,null,null,null,null,null,null,null,null,null,null,null,null,null,null,null,null,null,null,null,null,null,null,null,null,null,null,null,null,null,null,null,null,null,null,null,null,null,null,null,null,null,null,null,null,null,null,null,null,null,null,null,null,null,null,null,null,null,null,null,null,null,null,null,null,null,null,1]
["USGS",312136110504001,"D-24-15 07AA   UNSURV",31.361666666666668,-110.84222222222222,"NAD27","1956-03-07",8.2100000000000009,null,3700,"NGVD29","U",42,42,null,null,null,null,null,null,null,null,null,null,null,null,null,null,null,null,null,null,null,null,null,null,null,null,null,null,null,null,null,null,null,null,null,null,null,null,null,null,null,null,null,null,null,null,null,null,null,null,null,null,null,null,null,null,null,null,null,null,null,null,null,null,null,null,null,null,null,null,null,null,null,null,null,null,null,null,null,null,null,null,null,null,null,null,null,null,19560307]
["USGS",312136110504001,"D-24-15 07AA   UNSURV",31.361666666666668,-110.84222222222222,"NAD27","1962-02-19",8.4499999999999993,null,3700,"NGVD29","U",42,42,null,null,null,null,null,null,null,null,null,null,null,null,null,null,null,null,null,null,null,null,null,null,null,null,null,null,null,null,null,null,null,null,null,null,null,null,null,null,null,null,null,null,null,null,null,null,null,null,null,null,null,null,null,null,null,null,null,null,null,null,null,null,null,null,null,null,null,null,null,null,null,null,null,null,null,null,null,null,null,null,null,null,null,null,null,null,19620219]
["ADWR",312136110504001,"D-24-15 07AA  UNSURV",31.361666666666668,-110.84222222222222,"NAD27","1964-12-01",5.6,null,3700,null,"U",42,42,null,null,null,null,null,null,null,null,null,null,null,null,null,null,null,null,null,null,null,null,null,null,null,null,null,null,null,null,null,null,null,null,null,null,null,null,null,null,null,null,null,null,null,null,null,null,null,null,null,null,null,null,null,null,null,null,null,null,null,null,null,null,null,null,null,null,null,null,null,null,null,null,null,null,null,null,null,null,null,null,null,null,null,null,null,null,1]
["USGS",312147110482801,"D-24-15 04DDD1 UNSURV",31.363055555555558,-110.80777777777777,"NAD27","1982-02-23",99.8,null,4018,"NGVD29","U",264,264,null,null,null,null,null,null,null,null,null,null,null,null,null,null,null,null,null,null,null,null,null,null,null,null,null,null,null,null,null,null,null,null,null,null,null,null,null,null,null,null,null,null,null,null,null,null,null,null,null,null,null,null,null,null,null,null,null,null,null,null,null,null,null,null,null,null,null,null,null,null,null,null,null,null,null,null,null,null,null,null,null,null,null,null,null,null,19820223]
["USGS",312147110482801,"D-24-15 04DDD1 UNSURV",31.363055555555558,-110.80777777777777,"NAD27","1985-06-19",93.5,null,4018,"NGVD29","U",264,264,null,null,null,null,null,null,null,null,null,null,null,null,null,null,null,null,null,null,null,null,null,null,null,null,null,null,null,null,null,null,null,null,null,null,null,null,null,null,null,null,null,null,null,null,null,null,null,null,null,null,null,null,null,null,null,null,null,null,null,null,null,null,null,null,null,null,null,null,null,null,null,null,null,null,null,null,null,null,null,null,null,null,null,null,null,null,19850619]
["USGS",312147110482801,"D-24-15 04DDD1 UNSURV",31.363055555555558,-110.80777777777777,"NAD27","1987-12-10",97.2,null,4018,"NGVD29","U",264,264,null,null,null,null,null,null,null,null,null,null,null,null,null,null,null,null,null,null,null,null,null,null,null,null,null,null,null,null,null,null,null,null,null,null,null,null,null,null,null,null,null,null,null,null,null,null,null,null,null,null,null,null,null,null,null,null,null,null,null,null,null,null,null,null,null,null,null,null,null,null,null,null,null,null,null,null,null,null,null,null,null,null,null,null,null,null,19871210]
["USGS",312147110482801,"D-24-15 04DDD1 UNSURV",31.363055555555558,-110.80777777777777,"NAD27","1990-12-12",92.1,null,4018,"NGVD29","U",264,264,null,null,null,null,null,null,null,null,null,null,null,null,null,null,null,null,null,null,null,null,null,null,null,null,null,null,null,null,null,null,null,null,null,null,null,null,null,null,null,null,null,null,null,null,null,null,null,null,null,null,null,null,null,null,null,null,null,null,null,null,null,null,null,null,null,null,null,null,null,null,null,null,null,null,null,null,null,null,null,null,null,null,null,null,null,null,19901212]
["USGS",312147110482801,"D-24-15 04DDD1 UNSURV",31.363055555555558,-110.80777777777777,"NAD27","1991-12-10",96.5,null,4018,"NGVD29","U",264,264,null,null,null,null,null,null,null,null,null,null,null,null,null,null,null,null,null,null,null,null,null,null,null,null,null,null,null,null,null,null,null,null,null,null,null,null,null,null,null,null,null,null,null,null,null,null,null,null,null,null,null,null,null,null,null,null,null,null,null,null,null,null,null,null,null,null,null,null,null,null,null,null,null,null,null,null,null,null,null,null,null,null,null,null,null,null,19911210]
["USGS",312147110482801,"D-24-15 04DDD1 UNSURV",31.363055555555558,-110.80777777777777,"NAD27","1995-01-09",92.4,null,4018,"NGVD29","U",264,264,null,null,null,null,null,null,null,null,null,null,null,null,null,null,null,null,null,null,null,null,null,null,null,null,null,null,null,null,null,null,null,null,null,null,null,null,null,null,null,null,null,null,null,null,null,null,null,null,null,null,null,null,null,null,null,null,null,null,null,null,null,null,null,null,null,null,null,null,null,null,null,null,null,null,null,null,null,null,null,null,null,null,null,null,null,null,19950109]
["USGS",312147110482801,"D-24-15 04DDD1 UNSURV",31.363055555555558,-110.80777777777777,"NAD27","1999-11-17",97.3,null,4018,"NGVD29","U",264,264,null,null,null,null,null,null,null,null,null,null,null,null,null,null,null,null,null,null,null,null,null,null,null,null,null,null,null,null,null,null,null,null,null,null,null,null,null,null,null,null,null,null,null,null,null,null,null,null,null,null,null,null,null,null,null,null,null,null,null,null,null,null,null,null,null,null,null,null,null,null,null,null,null,null,null,null,null,null,null,null,null,null,null,null,null,null,19991117]
["USGS",312147110482801,"D-24-15 04DDD1 UNSURV",31.363055555555558,-110.80777777777777,"NAD27","2003-01-17",98.3,null,4018,"NGVD29","U",264,264,null,null,null,null,null,null,null,null,null,null,null,null,null,null,null,null,null,null,null,null,null,null,null,null,null,null,null,null,null,null,null,null,null,null,null,null,null,null,null,null,null,null,null,null,null,null,null,null,null,null,null,null,null,null,null,null,null,null,null,null,null,null,null,null,null,null,null,null,null,null,null,null,null,null,null,null,null,null,null,null,null,null,null,null,null,null,20030117]
["USGS",312147110482801,"D-24-15 04DDD1 UNSURV",31.363055555555558,-110.80777777777777,"NAD27","2004-10-21",100.1,"S",4018,"NGVD29","U",264,264,null,null,null,null,null,null,null,null,null,null,null,null,null,null,null,null,null,null,null,null,null,null,null,null,null,null,null,null,null,null,null,null,null,null,null,null,null,null,null,null,null,null,null,null,null,null,null,null,null,null,null,null,null,null,null,null,null,null,null,null,null,null,null,null,null,null,null,null,null,null,null,null,null,null,null,null,null,null,null,null,null,null,null,null,null,null,20041021]
["USGS",312156110555201,"D-24-14 05DCA",31.365555555555556,-110.93111111111112,"NAD27","1939-10-30",17.68,null,3755,"NGVD29","H",35,35,null,null,null,null,null,null,null,null,null,null,null,null,null,null,null,null,null,null,null,null,null,null,null,null,null,null,null,null,null,null,null,null,null,null,null,null,null,null,null,null,null,null,null,null,null,null,null,null,null,null,null,null,null,null,null,null,null,null,null,null,null,null,null,null,null,null,null,null,null,null,null,null,null,null,null,null,null,null,null,null,null,null,null,null,null,null,19391030]
["USGS",312156110555201,"D-24-14 05DCA",31.365555555555556,-110.93111111111112,"NAD27","1940-03-22",19.29,null,3755,"NGVD29","H",35,35,null,null,null,null,null,null,null,null,null,null,null,null,null,null,null,null,null,null,null,null,null,null,null,null,null,null,null,null,null,null,null,null,null,null,null,null,null,null,null,null,null,null,null,null,null,null,null,null,null,null,null,null,null,null,null,null,null,null,null,null,null,null,null,null,null,null,null,null,null,null,null,null,null,null,null,null,null,null,null,null,null,null,null,null,null,null,19400322]
["USGS",312156110555201,"D-24-14 05DCA",31.365555555555556,-110.93111111111112,"NAD27","1940-06-07",23.46,null,3755,"NGVD29","H",35,35,null,null,null,null,null,null,null,null,null,null,null,null,null,null,null,null,null,null,null,null,null,null,null,null,null,null,null,null,null,null,null,null,null,null,null,null,null,null,null,null,null,null,null,null,null,null,null,null,null,null,null,null,null,null,null,null,null,null,null,null,null,null,null,null,null,null,null,null,null,null,null,null,null,null,null,null,null,null,null,null,null,null,null,null,null,null,19400607]
["USGS",312156110555201,"D-24-14 05DCA",31.365555555555556,-110.93111111111112,"NAD27","1940-10-09",24.56,null,3755,"NGVD29","H",35,35,null,null,null,null,null,null,null,null,null,null,null,null,null,null,null,null,null,null,null,null,null,null,null,null,null,null,null,null,null,null,null,null,null,null,null,null,null,null,null,null,null,null,null,null,null,null,null,null,null,null,null,null,null,null,null,null,null,null,null,null,null,null,null,null,null,null,null,null,null,null,null,null,null,null,null,null,null,null,null,null,null,null,null,null,null,null,19401009]
["USGS",312156110555201,"D-24-14 05DCA",31.365555555555556,-110.93111111111112,"NAD27","1941-03-26",18.399999999999999,null,3755,"NGVD29","H",35,35,null,null,null,null,null,null,null,null,null,null,null,null,null,null,null,null,null,null,null,null,null,null,null,null,null,null,null,null,null,null,null,null,null,null,null,null,null,null,null,null,null,null,null,null,null,null,null,null,null,null,null,null,null,null,null,null,null,null,null,null,null,null,null,null,null,null,null,null,null,null,null,null,null,null,null,null,null,null,null,null,null,null,null,null,null,null,19410326]
["USGS",312156110555201,"D-24-14 05DCA",31.365555555555556,-110.93111111111112,"NAD27","1941-08-20",21.75,null,3755,"NGVD29","H",35,35,null,null,null,null,null,null,null,null,null,null,null,null,null,null,null,null,null,null,null,null,null,null,null,null,null,null,null,null,null,null,null,null,null,null,null,null,null,null,null,null,null,null,null,null,null,null,null,null,null,null,null,null,null,null,null,null,null,null,null,null,null,null,null,null,null,null,null,null,null,null,null,null,null,null,null,null,null,null,null,null,null,null,null,null,null,null,19410820]
["USGS",312156110555201,"D-24-14 05DCA",31.365555555555556,-110.93111111111112,"NAD27","1942-03-27",23.66,null,3755,"NGVD29","H",35,35,null,null,null,null,null,null,null,null,null,null,null,null,null,null,null,null,null,null,null,null,null,null,null,null,null,null,null,null,null,null,null,null,null,null,null,null,null,null,null,null,null,null,null,null,null,null,null,null,null,null,null,null,null,null,null,null,null,null,null,null,null,null,null,null,null,null,null,null,null,null,null,null,null,null,null,null,null,null,null,null,null,null,null,null,null,null,19420327]
["USGS",312156110555201,"D-24-14 05DCA",31.365555555555556,-110.93111111111112,"NAD27","1942-06-30",25.12,null,3755,"NGVD29","H",35,35,null,null,null,null,null,null,null,null,null,null,null,null,null,null,null,null,null,null,null,null,null,null,null,null,null,null,null,null,null,null,null,null,null,null,null,null,null,null,null,null,null,null,null,null,null,null,null,null,null,null,null,null,null,null,null,null,null,null,null,null,null,null,null,null,null,null,null,null,null,null,null,null,null,null,null,null,null,null,null,null,null,null,null,null,null,null,19420630]
["USGS",312156110555201,"D-24-14 05DCA",31.365555555555556,-110.93111111111112,"NAD27","1942-12-24",26.92,null,3755,"NGVD29","H",35,35,null,null,null,null,null,null,null,null,null,null,null,null,null,null,null,null,null,null,null,null,null,null,null,null,null,null,null,null,null,null,null,null,null,null,null,null,null,null,null,null,null,null,null,null,null,null,null,null,null,null,null,null,null,null,null,null,null,null,null,null,null,null,null,null,null,null,null,null,null,null,null,null,null,null,null,null,null,null,null,null,null,null,null,null,null,null,19421224]
["USGS",312156110555201,"D-24-14 05DCA",31.365555555555556,-110.93111111111112,"NAD27","1944-01-18",27.34,null,3755,"NGVD29","H",35,35,null,null,null,null,null,null,null,null,null,null,null,null,null,null,null,null,null,null,null,null,null,null,null,null,null,null,null,null,null,null,null,null,null,null,null,null,null,null,null,null,null,null,null,null,null,null,null,null,null,null,null,null,null,null,null,null,null,null,null,null,null,null,null,null,null,null,null,null,null,null,null,null,null,null,null,null,null,null,null,null,null,null,null,null,null,null,19440118]
["USGS",312156110555201,"D-24-14 05DCA",31.365555555555556,-110.93111111111112,"NAD27","1945-02-11",25.2,null,3755,"NGVD29","H",35,35,null,null,null,null,null,null,null,null,null,null,null,null,null,null,null,null,null,null,null,null,null,null,null,null,null,null,null,null,null,null,null,null,null,null,null,null,null,null,null,null,null,null,null,null,null,null,null,null,null,null,null,null,null,null,null,null,null,null,null,null,null,null,null,null,null,null,null,null,null,null,null,null,null,null,null,null,null,null,null,null,null,null,null,null,null,null,19450211]
["USGS",312156110555201,"D-24-14 05DCA",31.365555555555556,-110.93111111111112,"NAD27","1945-12-06",22.37,null,3755,"NGVD29","H",35,35,null,null,null,null,null,null,null,null,null,null,null,null,null,null,null,null,null,null,null,null,null,null,null,null,null,null,null,null,null,null,null,null,null,null,null,null,null,null,null,null,null,null,null,null,null,null,null,null,null,null,null,null,null,null,null,null,null,null,null,null,null,null,null,null,null,null,null,null,null,null,null,null,null,null,null,null,null,null,null,null,null,null,null,null,null,null,19451206]
["USGS",312156110555201,"D-24-14 05DCA",31.365555555555556,-110.93111111111112,"NAD27","1946-06-17",24.38,null,3755,"NGVD29","H",35,35,null,null,null,null,null,null,null,null,null,null,null,null,null,null,null,null,null,null,null,null,null,null,null,null,null,null,null,null,null,null,null,null,null,null,null,null,null,null,null,null,null,null,null,null,null,null,null,null,null,null,null,null,null,null,null,null,null,null,null,null,null,null,null,null,null,null,null,null,null,null,null,null,null,null,null,null,null,null,null,null,null,null,null,null,null,null,19460617]
["USGS",312156110555201,"D-24-14 05DCA",31.365555555555556,-110.93111111111112,"NAD27","1946-12-23",18.2,null,3755,"NGVD29","H",35,35,null,null,null,null,null,null,null,null,null,null,null,null,null,null,null,null,null,null,null,null,null,null,null,null,null,null,null,null,null,null,null,null,null,null,null,null,null,null,null,null,null,null,null,null,null,null,null,null,null,null,null,null,null,null,null,null,null,null,null,null,null,null,null,null,null,null,null,null,null,null,null,null,null,null,null,null,null,null,null,null,null,null,null,null,null,null,19461223]
["USGS",312156110555201,"D-24-14 05DCA",31.365555555555556,-110.93111111111112,"NAD27","1947-04-28",21.83,null,3755,"NGVD29","H",35,35,null,null,null,null,null,null,null,null,null,null,null,null,null,null,null,null,null,null,null,null,null,null,null,null,null,null,null,null,null,null,null,null,null,null,null,null,null,null,null,null,null,null,null,null,null,null,null,null,null,null,null,null,null,null,null,null,null,null,null,null,null,null,null,null,null,null,null,null,null,null,null,null,null,null,null,null,null,null,null,null,null,null,null,null,null,null,19470428]
["USGS",312156110555201,"D-24-14 05DCA",31.365555555555556,-110.93111111111112,"NAD27","1947-09-26",24.3,null,3755,"NGVD29","H",35,35,null,null,null,null,null,null,null,null,null,null,null,null,null,null,null,null,null,null,null,null,null,null,null,null,null,null,null,null,null,null,null,null,null,null,null,null,null,null,null,null,null,null,null,null,null,null,null,null,null,null,null,null,null,null,null,null,null,null,null,null,null,null,null,null,null,null,null,null,null,null,null,null,null,null,null,null,null,null,null,null,null,null,null,null,null,null,19470926]
["USGS",312156110555201,"D-24-14 05DCA",31.365555555555556,-110.93111111111112,"NAD27","1948-01-28",26.59,null,3755,"NGVD29","H",35,35,null,null,null,null,null,null,null,null,null,null,null,null,null,null,null,null,null,null,null,null,null,null,null,null,null,null,null,null,null,null,null,null,null,null,null,null,null,null,null,null,null,null,null,null,null,null,null,null,null,null,null,null,null,null,null,null,null,null,null,null,null,null,null,null,null,null,null,null,null,null,null,null,null,null,null,null,null,null,null,null,null,null,null,null,null,null,19480128]
["USGS",312156110555201,"D-24-14 05DCA",31.365555555555556,-110.93111111111112,"NAD27","1948-10-26",25.26,null,3755,"NGVD29","H",35,35,null,null,null,null,null,null,null,null,null,null,null,null,null,null,null,null,null,null,null,null,null,null,null,null,null,null,null,null,null,null,null,null,null,null,null,null,null,null,null,null,null,null,null,null,null,null,null,null,null,null,null,null,null,null,null,null,null,null,null,null,null,null,null,null,null,null,null,null,null,null,null,null,null,null,null,null,null,null,null,null,null,null,null,null,null,null,19481026]
["USGS",312156110555201,"D-24-14 05DCA",31.365555555555556,-110.93111111111112,"NAD27","1949-12-13",23.05,null,3755,"NGVD29","H",35,35,null,null,null,null,null,null,null,null,null,null,null,null,null,null,null,null,null,null,null,null,null,null,null,null,null,null,null,null,null,null,null,null,null,null,null,null,null,null,null,null,null,null,null,null,null,null,null,null,null,null,null,null,null,null,null,null,null,null,null,null,null,null,null,null,null,null,null,null,null,null,null,null,null,null,null,null,null,null,null,null,null,null,null,null,null,null,19491213]
["USGS",312214110554201,"D-24-14 05ADC4",31.370555555555555,-110.92833333333334,"NAD27","1954-02-08",23.08,null,3740,"NGVD29","I",-9999,-9999,null,null,null,null,null,null,null,null,null,null,null,null,null,null,null,null,null,null,null,null,null,null,null,null,null,null,null,null,null,null,null,null,null,null,null,null,null,null,null,null,null,null,null,null,null,null,null,null,null,null,null,null,null,null,null,null,null,null,null,null,null,null,null,null,null,null,null,null,null,null,null,null,null,null,null,null,null,null,null,null,null,null,null,null,null,null,19540208]
["USGS",312214110554201,"D-24-14 05ADC4",31.370555555555555,-110.92833333333334,"NAD27","1957-12-23",24.28,null,3740,"NGVD29","I",-9999,-9999,null,null,null,null,null,null,null,null,null,null,null,null,null,null,null,null,null,null,null,null,null,null,null,null,null,null,null,null,null,null,null,null,null,null,null,null,null,null,null,null,null,null,null,null,null,null,null,null,null,null,null,null,null,null,null,null,null,null,null,null,null,null,null,null,null,null,null,null,null,null,null,null,null,null,null,null,null,null,null,null,null,null,null,null,null,null,19571223]
["USGS",312214110554201,"D-24-14 05ADC4",31.370555555555555,-110.92833333333334,"NAD27","1961-02-17",21.37,null,3740,"NGVD29","I",-9999,-9999,null,null,null,null,null,null,null,null,null,null,null,null,null,null,null,null,null,null,null,null,null,null,null,null,null,null,null,null,null,null,null,null,null,null,null,null,null,null,null,null,null,null,null,null,null,null,null,null,null,null,null,null,null,null,null,null,null,null,null,null,null,null,null,null,null,null,null,null,null,null,null,null,null,null,null,null,null,null,null,null,null,null,null,null,null,null,19610217]
["USGS",312214110554201,"D-24-14 05ADC4",31.370555555555555,-110.92833333333334,"NAD27","1964-02-28",25.55,null,3740,"NGVD29","I",-9999,-9999,null,null,null,null,null,null,null,null,null,null,null,null,null,null,null,null,null,null,null,null,null,null,null,null,null,null,null,null,null,null,null,null,null,null,null,null,null,null,null,null,null,null,null,null,null,null,null,null,null,null,null,null,null,null,null,null,null,null,null,null,null,null,null,null,null,null,null,null,null,null,null,null,null,null,null,null,null,null,null,null,null,null,null,null,null,null,19640228]
["USGS",312214110554201,"D-24-14 05ADC4",31.370555555555555,-110.92833333333334,"NAD27","1966-01-13",22.76,null,3740,"NGVD29","I",-9999,-9999,null,null,null,null,null,null,null,null,null,null,null,null,null,null,null,null,null,null,null,null,null,null,null,null,null,null,null,null,null,null,null,null,null,null,null,null,null,null,null,null,null,null,null,null,null,null,null,null,null,null,null,null,null,null,null,null,null,null,null,null,null,null,null,null,null,null,null,null,null,null,null,null,null,null,null,null,null,null,null,null,null,null,null,null,null,null,19660113]
["ADWR",312238110583501,"D-24-13 01BBB1",31.377472222222224,-110.97627777777778,"NAD27","1996-07-17",187.3,null,3758,null,"U",408,408,null,null,null,null,null,null,null,null,null,null,null,null,null,null,null,null,null,null,null,null,null,null,null,null,null,null,null,null,null,null,null,null,null,null,null,null,null,null,null,null,null,null,null,null,null,null,null,null,null,null,null,null,null,null,null,null,null,null,null,null,null,null,null,null,null,null,null,null,null,null,null,null,null,null,null,null,null,null,null,null,null,null,null,null,null,null,1]
["ADWR",312238110583501,"D-24-13 01BBB1",31.377472222222224,-110.97627777777778,"NAD27","1997-02-12",184.4,null,3758,null,"U",408,408,null,null,null,null,null,null,null,null,null,null,null,null,null,null,null,null,null,null,null,null,null,null,null,null,null,null,null,null,null,null,null,null,null,null,null,null,null,null,null,null,null,null,null,null,null,null,null,null,null,null,null,null,null,null,null,null,null,null,null,null,null,null,null,null,null,null,null,null,null,null,null,null,null,null,null,null,null,null,null,null,null,null,null,null,null,null,1]
["ADWR",312238110583501,"D-24-13 01BBB1",31.377472222222224,-110.97627777777778,"NAD27","1997-08-19",189.3,null,3758,null,"U",408,408,null,null,null,null,null,null,null,null,null,null,null,null,null,null,null,null,null,null,null,null,null,null,null,null,null,null,null,null,null,null,null,null,null,null,null,null,null,null,null,null,null,null,null,null,null,null,null,null,null,null,null,null,null,null,null,null,null,null,null,null,null,null,null,null,null,null,null,null,null,null,null,null,null,null,null,null,null,null,null,null,null,null,null,null,null,null,1]
["ADWR",312238110583501,"D-24-13 01BBB1",31.377472222222224,-110.97627777777778,"NAD27","1998-03-31",185.6,null,3758,null,"U",408,408,null,null,null,null,null,null,null,null,null,null,null,null,null,null,null,null,null,null,null,null,null,null,null,null,null,null,null,null,null,null,null,null,null,null,null,null,null,null,null,null,null,null,null,null,null,null,null,null,null,null,null,null,null,null,null,null,null,null,null,null,null,null,null,null,null,null,null,null,null,null,null,null,null,null,null,null,null,null,null,null,null,null,null,null,null,null,1]
["ADWR",312238110583501,"D-24-13 01BBB1",31.377472222222224,-110.97627777777778,"NAD27","1999-02-16",185.1,null,3758,null,"U",408,408,null,null,null,null,null,null,null,null,null,null,null,null,null,null,null,null,null,null,null,null,null,null,null,null,null,null,null,null,null,null,null,null,null,null,null,null,null,null,null,null,null,null,null,null,null,null,null,null,null,null,null,null,null,null,null,null,null,null,null,null,null,null,null,null,null,null,null,null,null,null,null,null,null,null,null,null,null,null,null,null,null,null,null,null,null,null,1]
["USGS",312240110511001,"D-23-15 31CDC",31.37777777777778,-110.85277777777777,"NAD27","1995-01-11",19.5,null,3682,"NGVD29","U",100,100,null,null,null,null,null,null,null,null,null,null,null,null,null,null,null,null,null,null,null,null,null,null,null,null,null,null,null,null,null,null,null,null,null,null,null,null,null,null,null,null,null,null,null,null,null,null,null,null,null,null,null,null,null,null,null,null,null,null,null,null,null,null,null,null,null,null,null,null,null,null,null,null,null,null,null,null,null,null,null,null,null,null,null,null,null,null,19950111]
["USGS",312240110511001,"D-23-15 31CDC",31.37777777777778,-110.85277777777777,"NAD27","2000-11-02",21.3,null,3682,"NGVD29","U",100,100,null,null,null,null,null,null,null,null,null,null,null,null,null,null,null,null,null,null,null,null,null,null,null,null,null,null,null,null,null,null,null,null,null,null,null,null,null,null,null,null,null,null,null,null,null,null,null,null,null,null,null,null,null,null,null,null,null,null,null,null,null,null,null,null,null,null,null,null,null,null,null,null,null,null,null,null,null,null,null,null,null,null,null,null,null,null,20001102]
["ADWR",312240110511001,"D-23-15 31CDC",31.377833333333335,-110.85288888888888,"NAD27","2003-10-21",23.2,null,3682,null,"U",100,100,null,null,null,null,null,null,null,null,null,null,null,null,null,null,null,null,null,null,null,null,null,null,null,null,null,null,null,null,null,null,null,null,null,null,null,null,null,null,null,null,null,null,null,null,null,null,null,null,null,null,null,null,null,null,null,null,null,null,null,null,null,null,null,null,null,null,null,null,null,null,null,null,null,null,null,null,null,null,null,null,null,null,null,null,null,null,1]
["ADWR",312240110511001,"D-23-15 31CDC",31.377833333333335,-110.85288888888888,"NAD27","2005-10-25",19.3,null,3682,null,"U",100,100,null,null,null,null,null,null,null,null,null,null,null,null,null,null,null,null,null,null,null,null,null,null,null,null,null,null,null,null,null,null,null,null,null,null,null,null,null,null,null,null,null,null,null,null,null,null,null,null,null,null,null,null,null,null,null,null,null,null,null,null,null,null,null,null,null,null,null,null,null,null,null,null,null,null,null,null,null,null,null,null,null,null,null,null,null,null,1]
["ADWR",312240110511001,"D-23-15 31CDC",31.377833333333335,-110.85288888888888,"NAD27","2007-04-26",17.8,null,3682,null,"U",100,100,null,null,null,null,null,null,null,null,null,null,null,null,null,null,null,null,null,null,null,null,null,null,null,null,null,null,null,null,null,null,null,null,null,null,null,null,null,null,null,null,null,null,null,null,null,null,null,null,null,null,null,null,null,null,null,null,null,null,null,null,null,null,null,null,null,null,null,null,null,null,null,null,null,null,null,null,null,null,null,null,null,null,null,null,null,null,1]
["ADWR",312240110511001,"D-23-15 31CDC",31.377833333333335,-110.85288888888888,"NAD27","2007-06-21",18,null,3682,null,"U",100,100,null,null,null,null,null,null,null,null,null,null,null,null,null,null,null,null,null,null,null,null,null,null,null,null,null,null,null,null,null,null,null,null,null,null,null,null,null,null,null,null,null,null,null,null,null,null,null,null,null,null,null,null,null,null,null,null,null,null,null,null,null,null,null,null,null,null,null,null,null,null,null,null,null,null,null,null,null,null,null,null,null,null,null,null,null,null,1]
["ADWR",312240110511001,"D-23-15 31CDC",31.377833333333335,-110.85288888888888,"NAD27","2007-09-25",19.3,null,3682,null,"U",100,100,null,null,null,null,null,null,null,null,null,null,null,null,null,null,null,null,null,null,null,null,null,null,null,null,null,null,null,null,null,null,null,null,null,null,null,null,null,null,null,null,null,null,null,null,null,null,null,null,null,null,null,null,null,null,null,null,null,null,null,null,null,null,null,null,null,null,null,null,null,null,null,null,null,null,null,null,null,null,null,null,null,null,null,null,null,null,1]
["ADWR",312240110511001,"D-23-15 31CDC",31.377833333333335,-110.85288888888888,"NAD27","2008-04-03",19.5,null,3682,null,"U",100,100,null,null,null,null,null,null,null,null,null,null,null,null,null,null,null,null,null,null,null,null,null,null,null,null,null,null,null,null,null,null,null,null,null,null,null,null,null,null,null,null,null,null,null,null,null,null,null,null,null,null,null,null,null,null,null,null,null,null,null,null,null,null,null,null,null,null,null,null,null,null,null,null,null,null,null,null,null,null,null,null,null,null,null,null,null,null,1]
["ADWR",312240110511001,"D-23-15 31CDC",31.377833333333335,-110.85288888888888,"NAD27","2008-08-05",19.899999999999999,"H",3682,null,"U",100,100,null,null,null,null,null,null,null,null,null,null,null,null,null,null,null,null,null,null,null,null,null,null,null,null,null,null,null,null,null,null,null,null,null,null,null,null,null,null,null,null,null,null,null,null,null,null,null,null,null,null,null,null,null,null,null,null,null,null,null,null,null,null,null,null,null,null,null,null,null,null,null,null,null,null,null,null,null,null,null,null,null,null,null,null,null,null,1]
["ADWR",312240110511001,"D-23-15 31CDC",31.377833333333335,-110.85288888888888,"NAD27","2008-10-28",21.5,null,3682,null,"U",100,100,null,null,null,null,null,null,null,null,null,null,null,null,null,null,null,null,null,null,null,null,null,null,null,null,null,null,null,null,null,null,null,null,null,null,null,null,null,null,null,null,null,null,null,null,null,null,null,null,null,null,null,null,null,null,null,null,null,null,null,null,null,null,null,null,null,null,null,null,null,null,null,null,null,null,null,null,null,null,null,null,null,null,null,null,null,null,1]
["USGS",312242110511701,"D-23-15 31CCD",31.378333333333334,-110.85333333333332,"NAD27","1939-11-01",6.33,null,3652,"NGVD29","I",24,24,null,null,null,null,null,null,null,null,null,null,null,null,null,null,null,null,null,null,null,null,null,null,null,null,null,null,null,null,null,null,null,null,null,null,null,null,null,null,null,null,null,null,null,null,null,null,null,null,null,null,null,null,null,null,null,null,null,null,null,null,null,null,null,null,null,null,null,null,null,null,null,null,null,null,null,null,null,null,null,null,null,null,null,null,null,null,19391101]
["USGS",312242110511701,"D-23-15 31CCD",31.378333333333334,-110.85333333333332,"NAD27","1987-12-10",17.3,null,3652,"NGVD29","I",24,24,null,null,null,null,null,null,null,null,null,null,null,null,null,null,null,null,null,null,null,null,null,null,null,null,null,null,null,null,null,null,null,null,null,null,null,null,null,null,null,null,null,null,null,null,null,null,null,null,null,null,null,null,null,null,null,null,null,null,null,null,null,null,null,null,null,null,null,null,null,null,null,null,null,null,null,null,null,null,null,null,null,null,null,null,null,null,19871210]
["USGS",312248110503001,"D-23-15 31DDA",31.38,-110.84166666666667,"NAD27","1947-09-10",24.5,null,3690,"NGVD29","I",67,67,null,null,null,null,null,null,null,null,null,null,null,null,null,null,null,null,null,null,null,null,null,null,null,null,null,null,null,null,null,null,null,null,null,null,null,null,null,null,null,null,null,null,null,null,null,null,null,null,null,null,null,null,null,null,null,null,null,null,null,null,null,null,null,null,null,null,null,null,null,null,null,null,null,null,null,null,null,null,null,null,null,null,null,null,null,null,19470910]
["USGS",312248110503001,"D-23-15 31DDA",31.38,-110.84166666666667,"NAD27","1959-01-28",10.74,null,3690,"NGVD29","I",67,67,null,null,null,null,null,null,null,null,null,null,null,null,null,null,null,null,null,null,null,null,null,null,null,null,null,null,null,null,null,null,null,null,null,null,null,null,null,null,null,null,null,null,null,null,null,null,null,null,null,null,null,null,null,null,null,null,null,null,null,null,null,null,null,null,null,null,null,null,null,null,null,null,null,null,null,null,null,null,null,null,null,null,null,null,null,null,19590128]
["USGS",312248110503001,"D-23-15 31DDA",31.38,-110.84166666666667,"NAD27","1960-01-06",9.4499999999999993,null,3690,"NGVD29","I",67,67,null,null,null,null,null,null,null,null,null,null,null,null,null,null,null,null,null,null,null,null,null,null,null,null,null,null,null,null,null,null,null,null,null,null,null,null,null,null,null,null,null,null,null,null,null,null,null,null,null,null,null,null,null,null,null,null,null,null,null,null,null,null,null,null,null,null,null,null,null,null,null,null,null,null,null,null,null,null,null,null,null,null,null,null,null,null,19600106]
["USGS",312248110503001,"D-23-15 31DDA",31.38,-110.84166666666667,"NAD27","1965-02-09",10.42,null,3690,"NGVD29","I",67,67,null,null,null,null,null,null,null,null,null,null,null,null,null,null,null,null,null,null,null,null,null,null,null,null,null,null,null,null,null,null,null,null,null,null,null,null,null,null,null,null,null,null,null,null,null,null,null,null,null,null,null,null,null,null,null,null,null,null,null,null,null,null,null,null,null,null,null,null,null,null,null,null,null,null,null,null,null,null,null,null,null,null,null,null,null,null,19650209]
["USGS",312253110583101,"D-23-13 36CBC",31.381388888888889,-110.97527777777778,"NAD27","1955-01-04",147.54,null,3745,"NGVD29","P",430,430,null,null,null,null,null,null,null,null,null,null,null,null,null,null,null,null,null,null,null,null,null,null,null,null,null,null,null,null,null,null,null,null,null,null,null,null,null,null,null,null,null,null,null,null,null,null,null,null,null,null,null,null,null,null,null,null,null,null,null,null,null,null,null,null,null,null,null,null,null,null,null,null,null,null,null,null,null,null,null,null,null,null,null,null,null,null,19550104]
["USGS",312253110583101,"D-23-13 36CBC",31.381388888888889,-110.97527777777778,"NAD27","1957-12-23",148.80000000000001,null,3745,"NGVD29","P",430,430,null,null,null,null,null,null,null,null,null,null,null,null,null,null,null,null,null,null,null,null,null,null,null,null,null,null,null,null,null,null,null,null,null,null,null,null,null,null,null,null,null,null,null,null,null,null,null,null,null,null,null,null,null,null,null,null,null,null,null,null,null,null,null,null,null,null,null,null,null,null,null,null,null,null,null,null,null,null,null,null,null,null,null,null,null,null,19571223]
["USGS",312253110583101,"D-23-13 36CBC",31.381388888888889,-110.97527777777778,"NAD27","1960-01-06",146.55000000000001,null,3745,"NGVD29","P",430,430,null,null,null,null,null,null,null,null,null,null,null,null,null,null,null,null,null,null,null,null,null,null,null,null,null,null,null,null,null,null,null,null,null,null,null,null,null,null,null,null,null,null,null,null,null,null,null,null,null,null,null,null,null,null,null,null,null,null,null,null,null,null,null,null,null,null,null,null,null,null,null,null,null,null,null,null,null,null,null,null,null,null,null,null,null,null,19600106]
["USGS",312253110583101,"D-23-13 36CBC",31.381388888888889,-110.97527777777778,"NAD27","1987-06-09",231,null,3745,"NGVD29","P",430,430,null,null,null,null,null,null,null,null,null,null,null,null,null,null,null,null,null,null,null,null,null,null,null,null,null,null,null,null,null,null,null,null,null,null,null,null,null,null,null,null,null,null,null,null,null,null,null,null,null,null,null,null,null,null,null,null,null,null,null,null,null,null,null,null,null,null,null,null,null,null,null,null,null,null,null,null,null,null,null,null,null,null,null,null,null,null,19870609]
["USGS",312253110583101,"D-23-13 36CBC",31.381388888888889,-110.97527777777778,"NAD27","1989-11-27",251.4,"P",3745,"NGVD29","P",430,430,null,null,null,null,null,null,null,null,null,null,null,null,null,null,null,null,null,null,null,null,null,null,null,null,null,null,null,null,null,null,null,null,null,null,null,null,null,null,null,null,null,null,null,null,null,null,null,null,null,null,null,null,null,null,null,null,null,null,null,null,null,null,null,null,null,null,null,null,null,null,null,null,null,null,null,null,null,null,null,null,null,null,null,null,null,null,19891127]
["USGS",312253110583101,"D-23-13 36CBC",31.381388888888889,-110.97527777777778,"NAD27","1991-12-10",265.10000000000002,"P",3745,"NGVD29","P",430,430,null,null,null,null,null,null,null,null,null,null,null,null,null,null,null,null,null,null,null,null,null,null,null,null,null,null,null,null,null,null,null,null,null,null,null,null,null,null,null,null,null,null,null,null,null,null,null,null,null,null,null,null,null,null,null,null,null,null,null,null,null,null,null,null,null,null,null,null,null,null,null,null,null,null,null,null,null,null,null,null,null,null,null,null,null,null,19911210]
["USGS",312253110583101,"D-23-13 36CBC",31.381388888888889,-110.97527777777778,"NAD27","1992-12-02",255.7,"P",3745,"NGVD29","P",430,430,null,null,null,null,null,null,null,null,null,null,null,null,null,null,null,null,null,null,null,null,null,null,null,null,null,null,null,null,null,null,null,null,null,null,null,null,null,null,null,null,null,null,null,null,null,null,null,null,null,null,null,null,null,null,null,null,null,null,null,null,null,null,null,null,null,null,null,null,null,null,null,null,null,null,null,null,null,null,null,null,null,null,null,null,null,null,19921202]
["USGS",312253110583101,"D-23-13 36CBC",31.381388888888889,-110.97527777777778,"NAD27","1993-12-08",251.6,"P",3745,"NGVD29","P",430,430,null,null,null,null,null,null,null,null,null,null,null,null,null,null,null,null,null,null,null,null,null,null,null,null,null,null,null,null,null,null,null,null,null,null,null,null,null,null,null,null,null,null,null,null,null,null,null,null,null,null,null,null,null,null,null,null,null,null,null,null,null,null,null,null,null,null,null,null,null,null,null,null,null,null,null,null,null,null,null,null,null,null,null,null,null,null,19931208]
["USGS",312253110583101,"D-23-13 36CBC",31.381388888888889,-110.97527777777778,"NAD27","1995-11-29",169.6,null,3745,"NGVD29","P",430,430,null,null,null,null,null,null,null,null,null,null,null,null,null,null,null,null,null,null,null,null,null,null,null,null,null,null,null,null,null,null,null,null,null,null,null,null,null,null,null,null,null,null,null,null,null,null,null,null,null,null,null,null,null,null,null,null,null,null,null,null,null,null,null,null,null,null,null,null,null,null,null,null,null,null,null,null,null,null,null,null,null,null,null,null,null,null,19951129]
["USGS",312253110583101,"D-23-13 36CBC",31.381388888888889,-110.97527777777778,"NAD27","1996-06-03",260.2,"P",3745,"NGVD29","P",430,430,null,null,null,null,null,null,null,null,null,null,null,null,null,null,null,null,null,null,null,null,null,null,null,null,null,null,null,null,null,null,null,null,null,null,null,null,null,null,null,null,null,null,null,null,null,null,null,null,null,null,null,null,null,null,null,null,null,null,null,null,null,null,null,null,null,null,null,null,null,null,null,null,null,null,null,null,null,null,null,null,null,null,null,null,null,null,19960603]
["USGS",312253110583101,"D-23-13 36CBC",31.381388888888889,-110.97527777777778,"NAD27","1996-12-03",168.2,null,3745,"NGVD29","P",430,430,null,null,null,null,null,null,null,null,null,null,null,null,null,null,null,null,null,null,null,null,null,null,null,null,null,null,null,null,null,null,null,null,null,null,null,null,null,null,null,null,null,null,null,null,null,null,null,null,null,null,null,null,null,null,null,null,null,null,null,null,null,null,null,null,null,null,null,null,null,null,null,null,null,null,null,null,null,null,null,null,null,null,null,null,null,null,19961203]
["USGS",312253110583101,"D-23-13 36CBC",31.381388888888889,-110.97527777777778,"NAD27","1997-11-07",172.9,null,3745,"NGVD29","P",430,430,null,null,null,null,null,null,null,null,null,null,null,null,null,null,null,null,null,null,null,null,null,null,null,null,null,null,null,null,null,null,null,null,null,null,null,null,null,null,null,null,null,null,null,null,null,null,null,null,null,null,null,null,null,null,null,null,null,null,null,null,null,null,null,null,null,null,null,null,null,null,null,null,null,null,null,null,null,null,null,null,null,null,null,null,null,null,19971107]
["USGS",312253110583101,"D-23-13 36CBC",31.381388888888889,-110.97527777777778,"NAD27","1998-10-22",167.3,null,3745,"NGVD29","P",430,430,null,null,null,null,null,null,null,null,null,null,null,null,null,null,null,null,null,null,null,null,null,null,null,null,null,null,null,null,null,null,null,null,null,null,null,null,null,null,null,null,null,null,null,null,null,null,null,null,null,null,null,null,null,null,null,null,null,null,null,null,null,null,null,null,null,null,null,null,null,null,null,null,null,null,null,null,null,null,null,null,null,null,null,null,null,null,19981022]
["USGS",312253110583101,"D-23-13 36CBC",31.381388888888889,-110.97527777777778,"NAD27","1999-11-17",169,"R",3745,"NGVD29","P",430,430,null,null,null,null,null,null,null,null,null,null,null,null,null,null,null,null,null,null,null,null,null,null,null,null,null,null,null,null,null,null,null,null,null,null,null,null,null,null,null,null,null,null,null,null,null,null,null,null,null,null,null,null,null,null,null,null,null,null,null,null,null,null,null,null,null,null,null,null,null,null,null,null,null,null,null,null,null,null,null,null,null,null,null,null,null,null,19991117]
["USGS",312258110510901,"D-23-15 31CAC",31.382777777777779,-110.85249999999999,"NAD27","1995-01-10",18,null,3650,"NGVD29","H",80,80,null,null,null,null,null,null,null,null,null,null,null,null,null,null,null,null,null,null,null,null,null,null,null,null,null,null,null,null,null,null,null,null,null,null,null,null,null,null,null,null,null,null,null,null,null,null,null,null,null,null,null,null,null,null,null,null,null,null,null,null,null,null,null,null,null,null,null,null,null,null,null,null,null,null,null,null,null,null,null,null,null,null,null,null,null,null,19950110]
["USGS",312258110510901,"D-23-15 31CAC",31.382777777777779,-110.85249999999999,"NAD27","1998-12-15",22.6,null,3650,"NGVD29","H",80,80,null,null,null,null,null,null,null,null,null,null,null,null,null,null,null,null,null,null,null,null,null,null,null,null,null,null,null,null,null,null,null,null,null,null,null,null,null,null,null,null,null,null,null,null,null,null,null,null,null,null,null,null,null,null,null,null,null,null,null,null,null,null,null,null,null,null,null,null,null,null,null,null,null,null,null,null,null,null,null,null,null,null,null,null,null,null,19981215]
["USGS",312258110510901,"D-23-15 31CAC",31.382777777777779,-110.85249999999999,"NAD27","1999-01-12",26.8,null,3650,"NGVD29","H",80,80,null,null,null,null,null,null,null,null,null,null,null,null,null,null,null,null,null,null,null,null,null,null,null,null,null,null,null,null,null,null,null,null,null,null,null,null,null,null,null,null,null,null,null,null,null,null,null,null,null,null,null,null,null,null,null,null,null,null,null,null,null,null,null,null,null,null,null,null,null,null,null,null,null,null,null,null,null,null,null,null,null,null,null,null,null,null,19990112]
["USGS",312258110510901,"D-23-15 31CAC",31.382777777777779,-110.85249999999999,"NAD27","1999-02-12",26.55,null,3650,"NGVD29","H",80,80,null,null,null,null,null,null,null,null,null,null,null,null,null,null,null,null,null,null,null,null,null,null,null,null,null,null,null,null,null,null,null,null,null,null,null,null,null,null,null,null,null,null,null,null,null,null,null,null,null,null,null,null,null,null,null,null,null,null,null,null,null,null,null,null,null,null,null,null,null,null,null,null,null,null,null,null,null,null,null,null,null,null,null,null,null,null,19990212]
["USGS",312258110510901,"D-23-15 31CAC",31.382777777777779,-110.85249999999999,"NAD27","1999-03-03",27.7,null,3650,"NGVD29","H",80,80,null,null,null,null,null,null,null,null,null,null,null,null,null,null,null,null,null,null,null,null,null,null,null,null,null,null,null,null,null,null,null,null,null,null,null,null,null,null,null,null,null,null,null,null,null,null,null,null,null,null,null,null,null,null,null,null,null,null,null,null,null,null,null,null,null,null,null,null,null,null,null,null,null,null,null,null,null,null,null,null,null,null,null,null,null,null,19990303]
["USGS",312258110510901,"D-23-15 31CAC",31.382777777777779,-110.85249999999999,"NAD27","1999-04-06",30.2,null,3650,"NGVD29","H",80,80,null,null,null,null,null,null,null,null,null,null,null,null,null,null,null,null,null,null,null,null,null,null,null,null,null,null,null,null,null,null,null,null,null,null,null,null,null,null,null,null,null,null,null,null,null,null,null,null,null,null,null,null,null,null,null,null,null,null,null,null,null,null,null,null,null,null,null,null,null,null,null,null,null,null,null,null,null,null,null,null,null,null,null,null,null,null,19990406]
["USGS",312258110510901,"D-23-15 31CAC",31.382777777777779,-110.85249999999999,"NAD27","1999-04-29",31.6,null,3650,"NGVD29","H",80,80,null,null,null,null,null,null,null,null,null,null,null,null,null,null,null,null,null,null,null,null,null,null,null,null,null,null,null,null,null,null,null,null,null,null,null,null,null,null,null,null,null,null,null,null,null,null,null,null,null,null,null,null,null,null,null,null,null,null,null,null,null,null,null,null,null,null,null,null,null,null,null,null,null,null,null,null,null,null,null,null,null,null,null,null,null,null,19990429]
["USGS",312258110510901,"D-23-15 31CAC",31.382777777777779,-110.85249999999999,"NAD27","1999-05-25",34.700000000000003,null,3650,"NGVD29","H",80,80,null,null,null,null,null,null,null,null,null,null,null,null,null,null,null,null,null,null,null,null,null,null,null,null,null,null,null,null,null,null,null,null,null,null,null,null,null,null,null,null,null,null,null,null,null,null,null,null,null,null,null,null,null,null,null,null,null,null,null,null,null,null,null,null,null,null,null,null,null,null,null,null,null,null,null,null,null,null,null,null,null,null,null,null,null,null,19990525]
["USGS",312258110510901,"D-23-15 31CAC",31.382777777777779,-110.85249999999999,"NAD27","1999-06-22",37.1,null,3650,"NGVD29","H",80,80,null,null,null,null,null,null,null,null,null,null,null,null,null,null,null,null,null,null,null,null,null,null,null,null,null,null,null,null,null,null,null,null,null,null,null,null,null,null,null,null,null,null,null,null,null,null,null,null,null,null,null,null,null,null,null,null,null,null,null,null,null,null,null,null,null,null,null,null,null,null,null,null,null,null,null,null,null,null,null,null,null,null,null,null,null,null,19990622]
["USGS",312258110510901,"D-23-15 31CAC",31.382777777777779,-110.85249999999999,"NAD27","1999-07-13",37.799999999999997,null,3650,"NGVD29","H",80,80,null,null,null,null,null,null,null,null,null,null,null,null,null,null,null,null,null,null,null,null,null,null,null,null,null,null,null,null,null,null,null,null,null,null,null,null,null,null,null,null,null,null,null,null,null,null,null,null,null,null,null,null,null,null,null,null,null,null,null,null,null,null,null,null,null,null,null,null,null,null,null,null,null,null,null,null,null,null,null,null,null,null,null,null,null,null,19990713]
["USGS",312258110510901,"D-23-15 31CAC",31.382777777777779,-110.85249999999999,"NAD27","1999-08-17",17.7,null,3650,"NGVD29","H",80,80,null,null,null,null,null,null,null,null,null,null,null,null,null,null,null,null,null,null,null,null,null,null,null,null,null,null,null,null,null,null,null,null,null,null,null,null,null,null,null,null,null,null,null,null,null,null,null,null,null,null,null,null,null,null,null,null,null,null,null,null,null,null,null,null,null,null,null,null,null,null,null,null,null,null,null,null,null,null,null,null,null,null,null,null,null,null,19990817]
["USGS",312258110510901,"D-23-15 31CAC",31.382777777777779,-110.85249999999999,"NAD27","1999-08-18",16.600000000000001,null,3650,"NGVD29","H",80,80,null,null,null,null,null,null,null,null,null,null,null,null,null,null,null,null,null,null,null,null,null,null,null,null,null,null,null,null,null,null,null,null,null,null,null,null,null,null,null,null,null,null,null,null,null,null,null,null,null,null,null,null,null,null,null,null,null,null,null,null,null,null,null,null,null,null,null,null,null,null,null,null,null,null,null,null,null,null,null,null,null,null,null,null,null,null,19990818]
["USGS",312258110510901,"D-23-15 31CAC",31.382777777777779,-110.85249999999999,"NAD27","1999-09-02",10.4,null,3650,"NGVD29","H",80,80,null,null,null,null,null,null,null,null,null,null,null,null,null,null,null,null,null,null,null,null,null,null,null,null,null,null,null,null,null,null,null,null,null,null,null,null,null,null,null,null,null,null,null,null,null,null,null,null,null,null,null,null,null,null,null,null,null,null,null,null,null,null,null,null,null,null,null,null,null,null,null,null,null,null,null,null,null,null,null,null,null,null,null,null,null,null,19990902]
["USGS",312258110510901,"D-23-15 31CAC",31.382777777777779,-110.85249999999999,"NAD27","1999-09-21",9.3000000000000007,null,3650,"NGVD29","H",80,80,null,null,null,null,null,null,null,null,null,null,null,null,null,null,null,null,null,null,null,null,null,null,null,null,null,null,null,null,null,null,null,null,null,null,null,null,null,null,null,null,null,null,null,null,null,null,null,null,null,null,null,null,null,null,null,null,null,null,null,null,null,null,null,null,null,null,null,null,null,null,null,null,null,null,null,null,null,null,null,null,null,null,null,null,null,null,19990921]
["USGS",312258110510901,"D-23-15 31CAC",31.382777777777779,-110.85249999999999,"NAD27","1999-10-26",12.4,null,3650,"NGVD29","H",80,80,null,null,null,null,null,null,null,null,null,null,null,null,null,null,null,null,null,null,null,null,null,null,null,null,null,null,null,null,null,null,null,null,null,null,null,null,null,null,null,null,null,null,null,null,null,null,null,null,null,null,null,null,null,null,null,null,null,null,null,null,null,null,null,null,null,null,null,null,null,null,null,null,null,null,null,null,null,null,null,null,null,null,null,null,null,null,19991026]
["USGS",312258110510901,"D-23-15 31CAC",31.382777777777779,-110.85249999999999,"NAD27","1999-11-16",14.7,null,3650,"NGVD29","H",80,80,null,null,null,null,null,null,null,null,null,null,null,null,null,null,null,null,null,null,null,null,null,null,null,null,null,null,null,null,null,null,null,null,null,null,null,null,null,null,null,null,null,null,null,null,null,null,null,null,null,null,null,null,null,null,null,null,null,null,null,null,null,null,null,null,null,null,null,null,null,null,null,null,null,null,null,null,null,null,null,null,null,null,null,null,null,null,19991116]
["USGS",312258110510901,"D-23-15 31CAC",31.382777777777779,-110.85249999999999,"NAD27","1999-12-21",14.7,null,3650,"NGVD29","H",80,80,null,null,null,null,null,null,null,null,null,null,null,null,null,null,null,null,null,null,null,null,null,null,null,null,null,null,null,null,null,null,null,null,null,null,null,null,null,null,null,null,null,null,null,null,null,null,null,null,null,null,null,null,null,null,null,null,null,null,null,null,null,null,null,null,null,null,null,null,null,null,null,null,null,null,null,null,null,null,null,null,null,null,null,null,null,null,19991221]
["USGS",312258110510901,"D-23-15 31CAC",31.382777777777779,-110.85249999999999,"NAD27","2000-01-25",17.05,null,3650,"NGVD29","H",80,80,null,null,null,null,null,null,null,null,null,null,null,null,null,null,null,null,null,null,null,null,null,null,null,null,null,null,null,null,null,null,null,null,null,null,null,null,null,null,null,null,null,null,null,null,null,null,null,null,null,null,null,null,null,null,null,null,null,null,null,null,null,null,null,null,null,null,null,null,null,null,null,null,null,null,null,null,null,null,null,null,null,null,null,null,null,null,20000125]
["USGS",312258110510901,"D-23-15 31CAC",31.382777777777779,-110.85249999999999,"NAD27","2000-02-22",18.600000000000001,null,3650,"NGVD29","H",80,80,null,null,null,null,null,null,null,null,null,null,null,null,null,null,null,null,null,null,null,null,null,null,null,null,null,null,null,null,null,null,null,null,null,null,null,null,null,null,null,null,null,null,null,null,null,null,null,null,null,null,null,null,null,null,null,null,null,null,null,null,null,null,null,null,null,null,null,null,null,null,null,null,null,null,null,null,null,null,null,null,null,null,null,null,null,null,20000222]
["USGS",312258110510901,"D-23-15 31CAC",31.382777777777779,-110.85249999999999,"NAD27","2000-03-28",18.2,null,3650,"NGVD29","H",80,80,null,null,null,null,null,null,null,null,null,null,null,null,null,null,null,null,null,null,null,null,null,null,null,null,null,null,null,null,null,null,null,null,null,null,null,null,null,null,null,null,null,null,null,null,null,null,null,null,null,null,null,null,null,null,null,null,null,null,null,null,null,null,null,null,null,null,null,null,null,null,null,null,null,null,null,null,null,null,null,null,null,null,null,null,null,null,20000328]
["USGS",312258110510901,"D-23-15 31CAC",31.382777777777779,-110.85249999999999,"NAD27","2000-04-25",22.57,null,3650,"NGVD29","H",80,80,null,null,null,null,null,null,null,null,null,null,null,null,null,null,null,null,null,null,null,null,null,null,null,null,null,null,null,null,null,null,null,null,null,null,null,null,null,null,null,null,null,null,null,null,null,null,null,null,null,null,null,null,null,null,null,null,null,null,null,null,null,null,null,null,null,null,null,null,null,null,null,null,null,null,null,null,null,null,null,null,null,null,null,null,null,null,20000425]
["USGS",312258110510901,"D-23-15 31CAC",31.382777777777779,-110.85249999999999,"NAD27","2000-05-16",24.4,null,3650,"NGVD29","H",80,80,null,null,null,null,null,null,null,null,null,null,null,null,null,null,null,null,null,null,null,null,null,null,null,null,null,null,null,null,null,null,null,null,null,null,null,null,null,null,null,null,null,null,null,null,null,null,null,null,null,null,null,null,null,null,null,null,null,null,null,null,null,null,null,null,null,null,null,null,null,null,null,null,null,null,null,null,null,null,null,null,null,null,null,null,null,null,20000516]
["USGS",312258110510901,"D-23-15 31CAC",31.382777777777779,-110.85249999999999,"NAD27","2000-06-13",26.8,null,3650,"NGVD29","H",80,80,null,null,null,null,null,null,null,null,null,null,null,null,null,null,null,null,null,null,null,null,null,null,null,null,null,null,null,null,null,null,null,null,null,null,null,null,null,null,null,null,null,null,null,null,null,null,null,null,null,null,null,null,null,null,null,null,null,null,null,null,null,null,null,null,null,null,null,null,null,null,null,null,null,null,null,null,null,null,null,null,null,null,null,null,null,null,20000613]
["USGS",312258110510901,"D-23-15 31CAC",31.382777777777779,-110.85249999999999,"NAD27","2000-06-28",30,null,3650,"NGVD29","H",80,80,null,null,null,null,null,null,null,null,null,null,null,null,null,null,null,null,null,null,null,null,null,null,null,null,null,null,null,null,null,null,null,null,null,null,null,null,null,null,null,null,null,null,null,null,null,null,null,null,null,null,null,null,null,null,null,null,null,null,null,null,null,null,null,null,null,null,null,null,null,null,null,null,null,null,null,null,null,null,null,null,null,null,null,null,null,null,20000628]
["USGS",312258110510901,"D-23-15 31CAC",31.382777777777779,-110.85249999999999,"NAD27","2000-07-25",27.59,null,3650,"NGVD29","H",80,80,null,null,null,null,null,null,null,null,null,null,null,null,null,null,null,null,null,null,null,null,null,null,null,null,null,null,null,null,null,null,null,null,null,null,null,null,null,null,null,null,null,null,null,null,null,null,null,null,null,null,null,null,null,null,null,null,null,null,null,null,null,null,null,null,null,null,null,null,null,null,null,null,null,null,null,null,null,null,null,null,null,null,null,null,null,null,20000725]
["USGS",312258110510901,"D-23-15 31CAC",31.382777777777779,-110.85249999999999,"NAD27","2000-08-30",25.86,null,3650,"NGVD29","H",80,80,null,null,null,null,null,null,null,null,null,null,null,null,null,null,null,null,null,null,null,null,null,null,null,null,null,null,null,null,null,null,null,null,null,null,null,null,null,null,null,null,null,null,null,null,null,null,null,null,null,null,null,null,null,null,null,null,null,null,null,null,null,null,null,null,null,null,null,null,null,null,null,null,null,null,null,null,null,null,null,null,null,null,null,null,null,null,20000830]
["USGS",312258110510901,"D-23-15 31CAC",31.382777777777779,-110.85249999999999,"NAD27","2000-09-26",26.92,null,3650,"NGVD29","H",80,80,null,null,null,null,null,null,null,null,null,null,null,null,null,null,null,null,null,null,null,null,null,null,null,null,null,null,null,null,null,null,null,null,null,null,null,null,null,null,null,null,null,null,null,null,null,null,null,null,null,null,null,null,null,null,null,null,null,null,null,null,null,null,null,null,null,null,null,null,null,null,null,null,null,null,null,null,null,null,null,null,null,null,null,null,null,null,20000926]
["USGS",312258110510901,"D-23-15 31CAC",31.382777777777779,-110.85249999999999,"NAD27","2000-10-31",7.62,"X",3650,"NGVD29","H",80,80,null,null,null,null,null,null,null,null,null,null,null,null,null,null,null,null,null,null,null,null,null,null,null,null,null,null,null,null,null,null,null,null,null,null,null,null,null,null,null,null,null,null,null,null,null,null,null,null,null,null,null,null,null,null,null,null,null,null,null,null,null,null,null,null,null,null,null,null,null,null,null,null,null,null,null,null,null,null,null,null,null,null,null,null,null,null,20001031]
["USGS",312258110510901,"D-23-15 31CAC",31.382777777777779,-110.85249999999999,"NAD27","2000-12-07",8.9,"X",3650,"NGVD29","H",80,80,null,null,null,null,null,null,null,null,null,null,null,null,null,null,null,null,null,null,null,null,null,null,null,null,null,null,null,null,null,null,null,null,null,null,null,null,null,null,null,null,null,null,null,null,null,null,null,null,null,null,null,null,null,null,null,null,null,null,null,null,null,null,null,null,null,null,null,null,null,null,null,null,null,null,null,null,null,null,null,null,null,null,null,null,null,null,20001207]
["USGS",312258110510901,"D-23-15 31CAC",31.382777777777779,-110.85249999999999,"NAD27","2001-02-13",9.15,null,3650,"NGVD29","H",80,80,null,null,null,null,null,null,null,null,null,null,null,null,null,null,null,null,null,null,null,null,null,null,null,null,null,null,null,null,null,null,null,null,null,null,null,null,null,null,null,null,null,null,null,null,null,null,null,null,null,null,null,null,null,null,null,null,null,null,null,null,null,null,null,null,null,null,null,null,null,null,null,null,null,null,null,null,null,null,null,null,null,null,null,null,null,null,20010213]
["USGS",312258110510901,"D-23-15 31CAC",31.382777777777779,-110.85249999999999,"NAD27","2001-03-28",9.3000000000000007,null,3650,"NGVD29","H",80,80,null,null,null,null,null,null,null,null,null,null,null,null,null,null,null,null,null,null,null,null,null,null,null,null,null,null,null,null,null,null,null,null,null,null,null,null,null,null,null,null,null,null,null,null,null,null,null,null,null,null,null,null,null,null,null,null,null,null,null,null,null,null,null,null,null,null,null,null,null,null,null,null,null,null,null,null,null,null,null,null,null,null,null,null,null,null,20010328]
["USGS",312258110510901,"D-23-15 31CAC",31.382777777777779,-110.85249999999999,"NAD27","2001-06-26",15.36,null,3650,"NGVD29","H",80,80,null,null,null,null,null,null,null,null,null,null,null,null,null,null,null,null,null,null,null,null,null,null,null,null,null,null,null,null,null,null,null,null,null,null,null,null,null,null,null,null,null,null,null,null,null,null,null,null,null,null,null,null,null,null,null,null,null,null,null,null,null,null,null,null,null,null,null,null,null,null,null,null,null,null,null,null,null,null,null,null,null,null,null,null,null,null,20010626]
["USGS",312258110510901,"D-23-15 31CAC",31.382777777777779,-110.85249999999999,"NAD27","2001-08-07",16.25,null,3650,"NGVD29","H",80,80,null,null,null,null,null,null,null,null,null,null,null,null,null,null,null,null,null,null,null,null,null,null,null,null,null,null,null,null,null,null,null,null,null,null,null,null,null,null,null,null,null,null,null,null,null,null,null,null,null,null,null,null,null,null,null,null,null,null,null,null,null,null,null,null,null,null,null,null,null,null,null,null,null,null,null,null,null,null,null,null,null,null,null,null,null,null,20010807]
["USGS",312258110510901,"D-23-15 31CAC",31.382777777777779,-110.85249999999999,"NAD27","2001-09-10",17.55,null,3650,"NGVD29","H",80,80,null,null,null,null,null,null,null,null,null,null,null,null,null,null,null,null,null,null,null,null,null,null,null,null,null,null,null,null,null,null,null,null,null,null,null,null,null,null,null,null,null,null,null,null,null,null,null,null,null,null,null,null,null,null,null,null,null,null,null,null,null,null,null,null,null,null,null,null,null,null,null,null,null,null,null,null,null,null,null,null,null,null,null,null,null,null,20010910]
["USGS",312258110510901,"D-23-15 31CAC",31.382777777777779,-110.85249999999999,"NAD27","2001-10-22",20,null,3650,"NGVD29","H",80,80,null,null,null,null,null,null,null,null,null,null,null,null,null,null,null,null,null,null,null,null,null,null,null,null,null,null,null,null,null,null,null,null,null,null,null,null,null,null,null,null,null,null,null,null,null,null,null,null,null,null,null,null,null,null,null,null,null,null,null,null,null,null,null,null,null,null,null,null,null,null,null,null,null,null,null,null,null,null,null,null,null,null,null,null,null,null,20011022]
["USGS",312258110510901,"D-23-15 31CAC",31.382777777777779,-110.85249999999999,"NAD27","2001-11-20",22.05,null,3650,"NGVD29","H",80,80,null,null,null,null,null,null,null,null,null,null,null,null,null,null,null,null,null,null,null,null,null,null,null,null,null,null,null,null,null,null,null,null,null,null,null,null,null,null,null,null,null,null,null,null,null,null,null,null,null,null,null,null,null,null,null,null,null,null,null,null,null,null,null,null,null,null,null,null,null,null,null,null,null,null,null,null,null,null,null,null,null,null,null,null,null,null,20011120]
["USGS",312258110510901,"D-23-15 31CAC",31.382777777777779,-110.85249999999999,"NAD27","2002-01-16",24.32,null,3650,"NGVD29","H",80,80,null,null,null,null,null,null,null,null,null,null,null,null,null,null,null,null,null,null,null,null,null,null,null,null,null,null,null,null,null,null,null,null,null,null,null,null,null,null,null,null,null,null,null,null,null,null,null,null,null,null,null,null,null,null,null,null,null,null,null,null,null,null,null,null,null,null,null,null,null,null,null,null,null,null,null,null,null,null,null,null,null,null,null,null,null,null,20020116]
["USGS",312258110510901,"D-23-15 31CAC",31.382777777777779,-110.85249999999999,"NAD27","2002-02-26",27.57,null,3650,"NGVD29","H",80,80,null,null,null,null,null,null,null,null,null,null,null,null,null,null,null,null,null,null,null,null,null,null,null,null,null,null,null,null,null,null,null,null,null,null,null,null,null,null,null,null,null,null,null,null,null,null,null,null,null,null,null,null,null,null,null,null,null,null,null,null,null,null,null,null,null,null,null,null,null,null,null,null,null,null,null,null,null,null,null,null,null,null,null,null,null,null,20020226]
["USGS",312300110565201,"D-23-14 31DBA2",31.383333333333333,-110.94861111111112,"NAD27","1982-02-22",11.9,null,3672,"NGVD29","P",260,260,null,null,null,null,null,null,null,null,null,null,null,null,null,null,null,null,null,null,null,null,null,null,null,null,null,null,null,null,null,null,null,null,null,null,null,null,null,null,null,null,null,null,null,null,null,null,null,null,null,null,null,null,null,null,null,null,null,null,null,null,null,null,null,null,null,null,null,null,null,null,null,null,null,null,null,null,null,null,null,null,null,null,null,null,null,null,19820222]
["USGS",312300110565201,"D-23-14 31DBA2",31.383333333333333,-110.94861111111112,"NAD27","1995-01-11",13.9,"R",3672,"NGVD29","P",260,260,null,null,null,null,null,null,null,null,null,null,null,null,null,null,null,null,null,null,null,null,null,null,null,null,null,null,null,null,null,null,null,null,null,null,null,null,null,null,null,null,null,null,null,null,null,null,null,null,null,null,null,null,null,null,null,null,null,null,null,null,null,null,null,null,null,null,null,null,null,null,null,null,null,null,null,null,null,null,null,null,null,null,null,null,null,null,19950111]
["USGS",312300110565201,"D-23-14 31DBA2",31.383333333333333,-110.94861111111112,"NAD27","1996-12-05",17.5,null,3672,"NGVD29","P",260,260,null,null,null,null,null,null,null,null,null,null,null,null,null,null,null,null,null,null,null,null,null,null,null,null,null,null,null,null,null,null,null,null,null,null,null,null,null,null,null,null,null,null,null,null,null,null,null,null,null,null,null,null,null,null,null,null,null,null,null,null,null,null,null,null,null,null,null,null,null,null,null,null,null,null,null,null,null,null,null,null,null,null,null,null,null,null,19961205]
["USGS",312300110565201,"D-23-14 31DBA2",31.383333333333333,-110.94861111111112,"NAD27","1997-11-05",18.899999999999999,null,3672,"NGVD29","P",260,260,null,null,null,null,null,null,null,null,null,null,null,null,null,null,null,null,null,null,null,null,null,null,null,null,null,null,null,null,null,null,null,null,null,null,null,null,null,null,null,null,null,null,null,null,null,null,null,null,null,null,null,null,null,null,null,null,null,null,null,null,null,null,null,null,null,null,null,null,null,null,null,null,null,null,null,null,null,null,null,null,null,null,null,null,null,null,19971105]
["USGS",312300110565201,"D-23-14 31DBA2",31.383333333333333,-110.94861111111112,"NAD27","1998-10-22",16.5,null,3672,"NGVD29","P",260,260,null,null,null,null,null,null,null,null,null,null,null,null,null,null,null,null,null,null,null,null,null,null,null,null,null,null,null,null,null,null,null,null,null,null,null,null,null,null,null,null,null,null,null,null,null,null,null,null,null,null,null,null,null,null,null,null,null,null,null,null,null,null,null,null,null,null,null,null,null,null,null,null,null,null,null,null,null,null,null,null,null,null,null,null,null,null,19981022]
["USGS",312300110565201,"D-23-14 31DBA2",31.383333333333333,-110.94861111111112,"NAD27","1999-11-19",16,"R",3672,"NGVD29","P",260,260,null,null,null,null,null,null,null,null,null,null,null,null,null,null,null,null,null,null,null,null,null,null,null,null,null,null,null,null,null,null,null,null,null,null,null,null,null,null,null,null,null,null,null,null,null,null,null,null,null,null,null,null,null,null,null,null,null,null,null,null,null,null,null,null,null,null,null,null,null,null,null,null,null,null,null,null,null,null,null,null,null,null,null,null,null,null,19991119]
["USGS",312300110565201,"D-23-14 31DBA2",31.383333333333333,-110.94861111111112,"NAD27","2000-11-02",15.9,"R",3672,"NGVD29","P",260,260,null,null,null,null,null,null,null,null,null,null,null,null,null,null,null,null,null,null,null,null,null,null,null,null,null,null,null,null,null,null,null,null,null,null,null,null,null,null,null,null,null,null,null,null,null,null,null,null,null,null,null,null,null,null,null,null,null,null,null,null,null,null,null,null,null,null,null,null,null,null,null,null,null,null,null,null,null,null,null,null,null,null,null,null,null,null,20001102]
["USGS",312300110565201,"D-23-14 31DBA2",31.383333333333333,-110.94861111111112,"NAD27","2001-10-24",15.4,null,3672,"NGVD29","P",260,260,null,null,null,null,null,null,null,null,null,null,null,null,null,null,null,null,null,null,null,null,null,null,null,null,null,null,null,null,null,null,null,null,null,null,null,null,null,null,null,null,null,null,null,null,null,null,null,null,null,null,null,null,null,null,null,null,null,null,null,null,null,null,null,null,null,null,null,null,null,null,null,null,null,null,null,null,null,null,null,null,null,null,null,null,null,null,20011024]
["USGS",312301111024801,"D-23-13 31DAB",31.383611111111112,-111.04666666666667,"NAD27","1995-01-12",314.3,null,4040,"NGVD29","H",600,600,null,null,null,null,null,null,null,null,null,null,null,null,null,null,null,null,null,null,null,null,null,null,null,null,null,null,null,null,null,null,null,null,null,null,null,null,null,null,null,null,null,null,null,null,null,null,null,null,null,null,null,null,null,null,null,null,null,null,null,null,null,null,null,null,null,null,null,null,null,null,null,null,null,null,null,null,null,null,null,null,null,null,null,null,null,null,19950112]
["USGS",312301111024801,"D-23-13 31DAB",31.383611111111112,-111.04666666666667,"NAD27","1996-12-05",314.3,null,4040,"NGVD29","H",600,600,null,null,null,null,null,null,null,null,null,null,null,null,null,null,null,null,null,null,null,null,null,null,null,null,null,null,null,null,null,null,null,null,null,null,null,null,null,null,null,null,null,null,null,null,null,null,null,null,null,null,null,null,null,null,null,null,null,null,null,null,null,null,null,null,null,null,null,null,null,null,null,null,null,null,null,null,null,null,null,null,null,null,null,null,null,null,19961205]
["USGS",312301111024801,"D-23-13 31DAB",31.383611111111112,-111.04666666666667,"NAD27","1997-11-04",314.3,null,4040,"NGVD29","H",600,600,null,null,null,null,null,null,null,null,null,null,null,null,null,null,null,null,null,null,null,null,null,null,null,null,null,null,null,null,null,null,null,null,null,null,null,null,null,null,null,null,null,null,null,null,null,null,null,null,null,null,null,null,null,null,null,null,null,null,null,null,null,null,null,null,null,null,null,null,null,null,null,null,null,null,null,null,null,null,null,null,null,null,null,null,null,null,19971104]
["USGS",312301111024801,"D-23-13 31DAB",31.383611111111112,-111.04666666666667,"NAD27","1998-10-21",310.2,null,4040,"NGVD29","H",600,600,null,null,null,null,null,null,null,null,null,null,null,null,null,null,null,null,null,null,null,null,null,null,null,null,null,null,null,null,null,null,null,null,null,null,null,null,null,null,null,null,null,null,null,null,null,null,null,null,null,null,null,null,null,null,null,null,null,null,null,null,null,null,null,null,null,null,null,null,null,null,null,null,null,null,null,null,null,null,null,null,null,null,null,null,null,null,19981021]
["USGS",312301111024801,"D-23-13 31DAB",31.383611111111112,-111.04666666666667,"NAD27","1999-11-15",310,null,4040,"NGVD29","H",600,600,null,null,null,null,null,null,null,null,null,null,null,null,null,null,null,null,null,null,null,null,null,null,null,null,null,null,null,null,null,null,null,null,null,null,null,null,null,null,null,null,null,null,null,null,null,null,null,null,null,null,null,null,null,null,null,null,null,null,null,null,null,null,null,null,null,null,null,null,null,null,null,null,null,null,null,null,null,null,null,null,null,null,null,null,null,null,19991115]
["USGS",312301111024801,"D-23-13 31DAB",31.383611111111112,-111.04666666666667,"NAD27","2000-11-01",301,"X",4040,"NGVD29","H",600,600,null,null,null,null,null,null,null,null,null,null,null,null,null,null,null,null,null,null,null,null,null,null,null,null,null,null,null,null,null,null,null,null,null,null,null,null,null,null,null,null,null,null,null,null,null,null,null,null,null,null,null,null,null,null,null,null,null,null,null,null,null,null,null,null,null,null,null,null,null,null,null,null,null,null,null,null,null,null,null,null,null,null,null,null,null,null,20001101]
["USGS",312301111024801,"D-23-13 31DAB",31.383611111111112,-111.04666666666667,"NAD27","2001-10-23",307.8,null,4040,"NGVD29","H",600,600,null,null,null,null,null,null,null,null,null,null,null,null,null,null,null,null,null,null,null,null,null,null,null,null,null,null,null,null,null,null,null,null,null,null,null,null,null,null,null,null,null,null,null,null,null,null,null,null,null,null,null,null,null,null,null,null,null,null,null,null,null,null,null,null,null,null,null,null,null,null,null,null,null,null,null,null,null,null,null,null,null,null,null,null,null,null,20011023]